Workbook

Sheet Main
B10: 2020-02-27
B12: Sheet No. | C12: Template Name | D12: Summary
B13: 1 | C13: Future Intra | D13: For Intraday trading in F&O segment
B14: 2 | C14: Cash Intra | D14: For Intraday trading in cash market segment
B15: 3 | C15: Mid-cap Intra | D15: For Intraday trading in Mid-cap stocks
B16: 4 | C16: Bulk Deals | D16: Reveals Bulk Deals carried on NSE & BSE
B17: 5 | C17: Call Tracker
K27: `

Sheet Future Intra
M5: Back to Main Page
A6: FOR INTRA DAY TRADING | L6: =Main!B10 -> 2020-02-27
A9: Sr.no | B9: Sector | C9: Scrip | D9: CLOSE RATE | E9: Pivot Point | F9: Supports | I9: Resistances
B10: Sector | D10: Point | E10: Point | F10: S1 | G10: S2 | H10: S3 | I10: R1 | J10: R2 | K10: R3 | L10: HIGH | M10: LOW | N10: OI | O10: % Change in OI
A11: 1 | B11: Index | C11: BANKNIFTY | D11: 30315.50 | E11: 30319.37 | F11: 30121.63 | G11: 29927.77 | H11: 29730.03 | I11: 30513.23 | J11: 30710.97 | K11: 30904.83 | L11: 30517.1 | M11: 30125.5 | N11: 1351180 | O11: 1.25%
A12: 2 | B12: Index | C12: NIFTY | D12: 11695.65 | E12: 11706.22 | F12: 11624.73 | G12: 11553.82 | H12: 11472.33 | I12: 11777.13 | J12: 11858.62 | K12: 11929.53 | L12: 11787.7 | M12: 11635.3 | N12: 17876175 | O12: 10.26%
A13: 3 | B13: Index | C13: NIFTYIT | D13: 16319.00 | E13: 16359.00 | F13: 16240.00 | G13: 16161.00 | H13: 16042.00 | I13: 16438.00 | J13: 16557.00 | K13: 16636.00 | L13: 16478 | M13: 16280 | N13: 6500 | O13: -16.13%
A14: 4 | B14: Cement | C14: ACC | D14: 1396.75 | E14: 1397.57 | F14: 1377.23 | G14: 1357.72 | H14: 1337.38 | I14: 1417.08 | J14: 1437.42 | K14: 1456.93 | L14: 1417.9 | M14: 1378.05 | N14: 3972000 | O14: -5.63%
A15: 5 | B15: Others | C15: ADANIENT | D15: 242.50 | E15: 242.97 | F15: 239.63 | G15: 236.77 | H15: 233.43 | I15: 245.83 | J15: 249.17 | K15: 252.03 | L15: 246.3 | M15: 240.1 | N15: 35556000 | O15: -0.53%
A16: 6 | B16: Others | C16: ADANIPORTS | D16: 358.60 | E16: 358.30 | F16: 353.85 | G16: 349.10 | H16: 344.65 | I16: 363.05 | J16: 367.50 | K16: 372.25 | L16: 362.75 | M16: 353.55 | N16: 34012500 | O16: 6.54%
A17: 7 | B17: Power | C17: ADANIPOWER | D17: 54.40 | E17: 54.77 | F17: 53.28 | G17: 52.17 | H17: 50.68 | I17: 55.88 | J17: 57.37 | K17: 58.48 | L17: 56.25 | M17: 53.65 | N17: 89060000 | O17: -1.31%
A18: 8 | B18: Automobile | C18: AMARAJABAT | D18: 694.25 | E18: 693.27 | F18: 677.43 | G18: 660.62 | H18: 644.78 | I18: 710.08 | J18: 725.92 | K18: 742.73 | L18: 709.1 | M18: 676.45 | N18: 2228000 | O18: 3.03%
A19: 9 | B19: Cement | C19: AMBUJACEM | D19: 213.75 | E19: 213.28 | F19: 210.57 | G19: 207.38 | H19: 204.67 | I19: 216.47 | J19: 219.18 | K19: 222.37 | L19: 216 | M19: 210.1 | N19: 21327500 | O19: -9.85%
A20: 10 | B20: Others | C20: APOLLOHOSP | D20: 1769.75 | E20: 1776.27 | F20: 1757.33 | G20: 1744.92 | H20: 1725.98 | I20: 1788.68 | J20: 1807.62 | K20: 1820.03 | L20: 1795.2 | M20: 1763.85 | N20: 2018500 | O20: -6.40%
A21: 11 | B21: Automobile | C21: APOLLOTYRE | D21: 148.90 | E21: 151.27 | F21: 144.33 | G21: 139.77 | H21: 132.83 | I21: 155.83 | J21: 162.77 | K21: 167.33 | L21: 158.2 | M21: 146.7 | N21: 21825000 | O21: -7.51%
A22: 12 | B22: Automobile | C22: ASHOKLEY | D22: 77.70 | E22: 78.95 | F22: 76.10 | G22: 74.50 | H22: 71.65 | I22: 80.55 | J22: 83.40 | K22: 85.00 | L22: 81.8 | M22: 77.35 | N22: 76216000 | O22: 3.51%
A23: 13 | B23: FMCG | C23: ASIANPAINT | D23: 1824.95 | E23: 1830.33 | F23: 1815.72 | G23: 1806.48 | H23: 1791.87 | I23: 1839.57 | J23: 1854.18 | K23: 1863.42 | L23: 1844.95 | M23: 1821.1 | N23: 7192800 | O23: -3.37%
A24: 14 | B24: Pharma | C24: AUROPHARMA | D24: 509.25 | E24: 510.92 | F24: 501.83 | G24: 494.42 | H24: 485.33 | I24: 518.33 | J24: 527.42 | K24: 534.83 | L24: 520 | M24: 503.5 | N24: 15429000 | O24: -0.90%
A25: 15 | B25: Banking | C25: AXISBANK | D25: 728.70 | E25: 718.10 | F25: 701.45 | G25: 674.20 | H25: 657.55 | I25: 745.35 | J25: 762.00 | K25: 789.25 | L25: 734.75 | M25: 690.85 | N25: 55934400 | O25: 0.82%
A26: 16 | B26: Automobile | C26: BAJAJ-AUTO | D26: 2941.40 | E26: 2944.88 | F26: 2919.77 | G26: 2898.13 | H26: 2873.02 | I26: 2966.52 | J26: 2991.63 | K26: 3013.27 | L26: 2970 | M26: 2923.25 | N26: 1691500 | O26: -1.24%
A27: 17 | B27: Finance | C27: BAJAJFINSV | D27: 9397.45 | E27: 9422.43 | F27: 9340.37 | G27: 9283.28 | H27: 9201.22 | I27: 9479.52 | J27: 9561.58 | K27: 9618.67 | L27: 9504.5 | M27: 9365.35 | N27: 1038250 | O27: -0.10%
A28: 18 | B28: Finance | C28: BAJFINANCE | D28: 4814.30 | E28: 4810.03 | F28: 4778.27 | G28: 4742.23 | H28: 4710.47 | I28: 4846.07 | J28: 4877.83 | K28: 4913.87 | L28: 4841.8 | M28: 4774 | N28: 5724750 | O28: -2.78%
A29: 19 | B29: Automobile | C29: BALKRISIND | D29: 1184.85 | E29: 1191.35 | F29: 1173.60 | G29: 1162.35 | H29: 1144.60 | I29: 1202.60 | J29: 1220.35 | K29: 1231.60 | L29: 1209.1 | M29: 1180.1 | N29: 1743200 | O29: -7.75%
A30: 20 | B30: Banking | C30: BANKBARODA | D30: 80.20 | E30: 80.15 | F30: 79.10 | G30: 78.00 | H30: 76.95 | I30: 81.25 | J30: 82.30 | K30: 83.40 | L30: 81.2 | M30: 79.05 | N30: 81124200 | O30: -2.38%
A31: 21 | B31: FMCG | C31: BATAINDIA | D31: 1678.40 | E31: 1686.67 | F31: 1659.93 | G31: 1641.47 | H31: 1614.73 | I31: 1705.13 | J31: 1731.87 | K31: 1750.33 | L31: 1713.4 | M31: 1668.2 | N31: 2951300 | O31: -1.31%
A32: 22 | B32: Capital_Goods | C32: BEL | D32: 80.25 | E32: 80.72 | F32: 78.78 | G32: 77.32 | H32: 75.38 | I32: 82.18 | J32: 84.12 | K32: 85.58 | L32: 82.65 | M32: 79.25 | N32: 51540000 | O32: -0.13%
A33: 23 | B33: FMCG | C33: BERGEPAINT | D33: 567.60 | E33: 569.27 | F33: 564.33 | G33: 561.07 | H33: 556.13 | I33: 572.53 | J33: 577.47 | K33: 580.73 | L33: 574.2 | M33: 566 | N33: 7304000 | O33: -4.79%
A34: 24 | B34: Automobile | C34: BHARATFORG | D34: 456.25 | E34: 457.32 | F34: 451.33 | G34: 446.42 | H34: 440.43 | I34: 462.23 | J34: 468.22 | K34: 473.13 | L34: 463.3 | M34: 452.4 | N34: 8061300 | O34: 3.23%
A35: 25 | B35: Telecom | C35: BHARTIARTL | D35: 535.15 | E35: 531.67 | F35: 524.03 | G35: 512.92 | H35: 505.28 | I35: 542.78 | J35: 550.42 | K35: 561.53 | L35: 539.3 | M35: 520.55 | N35: 56231529 | O35: 0.29%
A36: 26 | B36: Capital_Goods | C36: BHEL | D36: 33.30 | E36: 33.42 | F36: 32.98 | G36: 32.67 | H36: 32.23 | I36: 33.73 | J36: 34.17 | K36: 34.48 | L36: 33.85 | M36: 33.1 | N36: 105924000 | O36: 0.35%
A37: 27 | B37: Pharma | C37: BIOCON | D37: 299.10 | E37: 301.52 | F37: 295.38 | G37: 291.67 | H37: 285.53 | I37: 305.23 | J37: 311.37 | K37: 315.08 | L37: 307.65 | M37: 297.8 | N37: 13215800 | O37: -3.53%
A38: 28 | B38: Automobile | C38: BOSCHLTD | D38: 13312.05 | E38: 13464.30 | F38: 13108.70 | G38: 12905.35 | H38: 12549.75 | I38: 13667.65 | J38: 14023.25 | K38: 14226.60 | L38: 13819.9 | M38: 13260.95 | N38: 138080 | O38: 1.98%
A39: 29 | B39: Oil_Gas | C39: BPCL | D39: 449.15 | E39: 450.82 | F39: 441.83 | G39: 434.52 | H39: 425.53 | I39: 458.13 | J39: 467.12 | K39: 474.43 | L39: 459.8 | M39: 443.5 | N39: 35683200 | O39: 4.39%
A40: 30 | B40: FMCG | C40: BRITANNIA | D40: 3041.05 | E40: 3038.95 | F40: 3013.40 | G40: 2985.75 | H40: 2960.20 | I40: 3066.60 | J40: 3092.15 | K40: 3119.80 | L40: 3064.5 | M40: 3011.3 | N40: 2809400 | O40: -3.40%
A41: 31 | B41: Pharma | C41: CADILAHC | D41: 262.35 | E41: 265.07 | F41: 258.93 | G41: 255.52 | H41: 249.38 | I41: 268.48 | J41: 274.62 | K41: 278.03 | L41: 271.2 | M41: 261.65 | N41: 7796800 | O41: -2.96%
A42: 32 | B42: Banking | C42: CANBK | D42: 159.75 | E42: 160.55 | F42: 158.05 | G42: 156.35 | H42: 153.85 | I42: 162.25 | J42: 164.75 | K42: 166.45 | L42: 163.05 | M42: 158.85 | N42: 20610200 | O42: -4.55%
A43: 33 | B43: Textile | C43: CENTURYTEX | D43: 558.85 | E43: 561.70 | F43: 549.80 | G43: 540.75 | H43: 528.85 | I43: 570.75 | J43: 582.65 | K43: 591.70 | L43: 573.6 | M43: 552.65 | N43: 4362600 | O43: -6.41%
A44: 34 | B44: Power | C44: CESC | D44: 669.45 | E44: 674.13 | F44: 662.17 | G44: 654.88 | H44: 642.92 | I44: 681.42 | J44: 693.38 | K44: 700.67 | L44: 686.1 | M44: 666.85 | N44: 1937600 | O44: -0.08%
A45: 35 | B45: Finance | C45: CHOLAFIN | D45: 318.90 | E45: 319.10 | F45: 312.60 | G45: 306.30 | H45: 299.80 | I45: 325.40 | J45: 331.90 | K45: 338.20 | L45: 325.6 | M45: 312.8 | N45: 7302500 | O45: -22.99%
A46: 36 | B46: Pharma | C46: CIPLA | D46: 421.50 | E46: 417.35 | F46: 411.15 | G46: 400.80 | H46: 394.60 | I46: 427.70 | J46: 433.90 | K46: 444.25 | L46: 423.55 | M46: 407 | N46: 14893650 | O46: -0.14%
A47: 37 | B47: Others | C47: COALINDIA | D47: 173.95 | E47: 174.87 | F47: 171.68 | G47: 169.42 | H47: 166.23 | I47: 177.13 | J47: 180.32 | K47: 182.58 | L47: 178.05 | M47: 172.6 | N47: 52571700 | O47: -2.65%
A48: 38 | B48: FMCG | C48: COLPAL | D48: 1325.60 | E48: 1328.70 | F48: 1313.45 | G48: 1301.30 | H48: 1286.05 | I48: 1340.85 | J48: 1356.10 | K48: 1368.25 | L48: 1343.95 | M48: 1316.55 | N48: 3593800 | O48: -3.80%
A49: 39 | B49: Others | C49: CONCOR | D49: 515.15 | E49: 522.70 | F49: 502.45 | G49: 489.75 | H49: 469.50 | I49: 535.40 | J49: 555.65 | K49: 568.35 | L49: 542.95 | M49: 510 | N49: 6406737 | O49: -0.10%
A50: 40 | B50: Capital_Goods | C50: CUMMINSIND | D50: 532.70 | E50: 534.62 | F50: 525.33 | G50: 517.97 | H50: 508.68 | I50: 541.98 | J50: 551.27 | K50: 558.63 | L50: 543.9 | M50: 527.25 | N50: 1763100 | O50: 7.70%
A51: 41 | B51: FMCG | C51: DABUR | D51: 501.25 | E51: 501.55 | F51: 496.70 | G51: 492.15 | H51: 487.30 | I51: 506.10 | J51: 510.95 | K51: 515.50 | L51: 506.4 | M51: 497 | N51: 12733750 | O51: -2.44%
A52: 42 | B52: Pharma | C52: DIVISLAB | D52: 2141.60 | E52: 2133.48 | F52: 2104.97 | G52: 2068.33 | H52: 2039.82 | I52: 2170.12 | J52: 2198.63 | K52: 2235.27 | L52: 2162 | M52: 2096.85 | N52: 1661200 | O52: -2.42%
A53: 43 | B53: Realty | C53: DLF | D53: 212.35 | E53: 213.67 | F53: 209.33 | G53: 206.32 | H53: 201.98 | I53: 216.68 | J53: 221.02 | K53: 224.03 | L53: 218 | M53: 210.65 | N53: 46572900 | O53: 8.77%
A54: 44 | B54: Pharma | C54: DRREDDY | D54: 3074.75 | E54: 3086.07 | F54: 3053.58 | G54: 3032.42 | H54: 2999.93 | I54: 3107.23 | J54: 3139.72 | K54: 3160.88 | L54: 3118.55 | M54: 3064.9 | N54: 3010500 | O54: -0.59%
A55: 45 | B55: Automobile | C55: EICHERMOT | D55: 17182.05 | E55: 17273.38 | F55: 16963.62 | G55: 16745.18 | H55: 16435.42 | I55: 17491.82 | J55: 17801.58 | K55: 18020.02 | L55: 17583.15 | M55: 17054.95 | N55: 296520 | O55: 5.28%
A56: 46 | B56: Finance | C56: EQUITAS | D56: 114.45 | E56: 114.63 | F56: 113.17 | G56: 111.88 | H56: 110.42 | I56: 115.92 | J56: 117.38 | K56: 118.67 | L56: 116.1 | M56: 113.35 | N56: 21148400 | O56: 1.67%
A57: 47 | B57: Automobile | C57: ESCORTS | D57: 828.90 | E57: 830.43 | F57: 819.52 | G57: 810.13 | H57: 799.22 | I57: 839.82 | J57: 850.73 | K57: 860.12 | L57: 841.35 | M57: 821.05 | N57: 5892700 | O57: 1.19%
A58: 48 | B58: Automobile | C58: EXIDEIND | D58: 170.15 | E58: 170.48 | F58: 168.02 | G58: 165.88 | H58: 163.42 | I58: 172.62 | J58: 175.08 | K58: 177.22 | L58: 172.95 | M58: 168.35 | N58: 11849400 | O58: -3.18%
A59: 49 | B59: Banking | C59: FEDERALBNK | D59: 85.05 | E59: 85.35 | F59: 84.50 | G59: 83.95 | H59: 83.10 | I59: 85.90 | J59: 86.75 | K59: 87.30 | L59: 86.2 | M59: 84.8 | N59: 68859000 | O59: -2.25%
A60: 50 | B60: Oil_Gas | C60: GAIL | D60: 108.15 | E60: 109.98 | F60: 105.87 | G60: 103.58 | H60: 99.47 | I60: 112.27 | J60: 116.38 | K60: 118.67 | L60: 114.1 | M60: 107.7 | N60: 47083218 | O60: 1.92%
A61: 51 | B61: Pharma | C61: GLENMARK | D61: 295.45 | E61: 297.82 | F61: 291.48 | G61: 287.52 | H61: 281.18 | I61: 301.78 | J61: 308.12 | K61: 312.08 | L61: 304.15 | M61: 293.85 | N61: 9651600 | O61: 6.55%
A62: 52 | B62: Infrastructure | C62: GMRINFRA | D62: 24.45 | E62: 24.75 | F62: 24.00 | G62: 23.55 | H62: 22.80 | I62: 25.20 | J62: 25.95 | K62: 26.40 | L62: 25.5 | M62: 24.3 | N62: 256230000 | O62: 7.01%
A63: 53 | B63: FMCG | C63: GODREJCP | D63: 601.40 | E63: 603.90 | F63: 595.95 | G63: 590.50 | H63: 582.55 | I63: 609.35 | J63: 617.30 | K63: 622.75 | L63: 611.85 | M63: 598.45 | N63: 8066400 | O63: -1.01%
A64: 54 | B64: Cement | C64: GRASIM | D64: 702.80 | E64: 708.68 | F64: 693.22 | G64: 683.63 | H64: 668.17 | I64: 718.27 | J64: 733.73 | K64: 743.32 | L64: 724.15 | M64: 699.1 | N64: 29160750 | O64: -1.25%
A65: 55 | B65: Others | C65: HAVELLS | D65: 646.95 | E65: 645.13 | F65: 638.37 | G65: 629.78 | H65: 623.02 | I65: 653.72 | J65: 660.48 | K65: 669.07 | L65: 651.9 | M65: 636.55 | N65: 6551000 | O65: -3.16%
A66: 56 | B66: Technology | C66: HCLTECH | D66: 583.00 | E66: 582.68 | F66: 576.77 | G66: 570.53 | H66: 564.62 | I66: 588.92 | J66: 594.83 | K66: 601.07 | L66: 588.6 | M66: 576.45 | N66: 21956200 | O66: -2.20%
A67: 57 | B67: Finance | C67: HDFC | D67: 2281.45 | E67: 2281.53 | F67: 2257.12 | G67: 2232.78 | H67: 2208.37 | I67: 2305.87 | J67: 2330.28 | K67: 2354.62 | L67: 2305.95 | M67: 2257.2 | N67: 33841250 | O67: -1.10%
A68: 58 | B68: Banking | C68: HDFCBANK | D68: 1199.65 | E68: 1196.73 | F68: 1189.12 | G68: 1178.58 | H68: 1170.97 | I68: 1207.27 | J68: 1214.88 | K68: 1225.42 | L68: 1204.35 | M68: 1186.2 | N68: 41826000 | O68: 0.45%
A69: 59 | B69: Automobile | C69: HEROMOTOCO | D69: 2141.45 | E69: 2156.23 | F69: 2120.32 | G69: 2099.18 | H69: 2063.27 | I69: 2177.37 | J69: 2213.28 | K69: 2234.42 | L69: 2192.15 | M69: 2135.1 | N69: 3612200 | O69: -7.20%
A70: 60 | B70: Metals | C70: HINDALCO | D70: 169.85 | E70: 170.52 | F70: 167.43 | G70: 165.02 | H70: 161.93 | I70: 172.93 | J70: 176.02 | K70: 178.43 | L70: 173.6 | M70: 168.1 | N70: 53494000 | O70: -0.63%
A71: 61 | B71: Oil_Gas | C71: HINDPETRO | D71: 209.00 | E71: 209.40 | F71: 207.25 | G71: 205.50 | H71: 203.35 | I71: 211.15 | J71: 213.30 | K71: 215.05 | L71: 211.55 | M71: 207.65 | N71: 23196600 | O71: 10.61%
A72: 62 | B72: FMCG | C72: HINDUNILVR | D72: 2236.05 | E72: 2231.58 | F72: 2207.37 | G72: 2178.68 | H72: 2154.47 | I72: 2260.27 | J72: 2284.48 | K72: 2313.17 | L72: 2255.8 | M72: 2202.9 | N72: 10466100 | O72: -0.28%
A73: 63 | B73: Finance | C73: IBULHSGFIN | D73: 321.70 | E73: 324.23 | F73: 313.02 | G73: 304.33 | H73: 293.12 | I73: 332.92 | J73: 344.13 | K73: 352.82 | L73: 335.45 | M73: 315.55 | N73: 22317600 | O73: -3.75%
A74: 64 | B74: Banking | C74: ICICIBANK | D74: 522.95 | E74: 524.60 | F74: 519.55 | G74: 516.15 | H74: 511.10 | I74: 528.00 | J74: 533.05 | K74: 536.45 | L74: 529.65 | M74: 521.2 | N74: 106475875 | O74: 1.27%
A75: 65 | B75: Finance | C75: ICICIPRULI | D75: 475.70 | E75: 478.63 | F75: 468.07 | G75: 460.43 | H75: 449.87 | I75: 486.27 | J75: 496.83 | K75: 504.47 | L75: 489.2 | M75: 471 | N75: 8433000 | O75: -2.87%
A76: 66 | B76: Telecom | C76: IDEA | D76: 4.00 | E76: 3.93 | F76: 3.72 | G76: 3.43 | H76: 3.22 | I76: 4.22 | J76: 4.43 | K76: 4.72 | L76: 4.15 | M76: 3.65 | N76: 776650000 | O76: 5.67%
A77: 67 | B77: Banking | C77: IDFCFIRSTB | D77: 38.95 | E77: 39.08 | F77: 38.67 | G77: 38.38 | H77: 37.97 | I77: 39.37 | J77: 39.78 | K77: 40.07 | L77: 39.5 | M77: 38.8 | N77: 222624000 | O77: -4.47%
A78: 68 | B78: Oil_Gas | C78: IGL | D78: 455.90 | E78: 456.75 | F78: 449.70 | G78: 443.50 | H78: 436.45 | I78: 462.95 | J78: 470.00 | K78: 476.20 | L78: 463.8 | M78: 450.55 | N78: 12947000 | O78: -17.58%
A79: 69 | B79: Others | C79: INDIGO | D79: 1393.05 | E79: 1385.42 | F79: 1361.88 | G79: 1330.72 | H79: 1307.18 | I79: 1416.58 | J79: 1440.12 | K79: 1471.28 | L79: 1408.95 | M79: 1354.25 | N79: 3515400 | O79: -1.39%
A80: 70 | B80: Banking | C80: INDUSINDBK | D80: 1136.25 | E80: 1136.93 | F80: 1122.37 | G80: 1108.48 | H80: 1093.92 | I80: 1150.82 | J80: 1165.38 | K80: 1179.27 | L80: 1151.5 | M80: 1123.05 | N80: 17404400 | O80: 12.28%
A81: 71 | B81: Telecom | C81: INFRATEL | D81: 219.10 | E81: 217.37 | F81: 213.33 | G81: 207.57 | H81: 203.53 | I81: 223.13 | J81: 227.17 | K81: 232.93 | L81: 221.4 | M81: 211.6 | N81: 12930000 | O81: 1.88%
A82: 72 | B82: Technology | C82: INFY | D82: 782.95 | E82: 788.15 | F82: 775.90 | G82: 768.85 | H82: 756.60 | I82: 795.20 | J82: 807.45 | K82: 814.50 | L82: 800.4 | M82: 781.1 | N82: 29581200 | O82: -3.15%
A83: 73 | B83: Oil_Gas | C83: IOC | D83: 108.60 | E83: 109.37 | F83: 107.33 | G83: 106.07 | H83: 104.03 | I83: 110.63 | J83: 112.67 | K83: 113.93 | L83: 111.4 | M83: 108.1 | N83: 59704000 | O83: 11.27%
A84: 74 | B84: FMCG | C84: ITC | D84: 198.60 | E84: 199.08 | F84: 195.97 | G84: 193.33 | H84: 190.22 | I84: 201.72 | J84: 204.83 | K84: 207.47 | L84: 202.2 | M84: 196.45 | N84: 155397600 | O84: -1.32%
A85: 75 | B85: Metals | C85: JINDALSTEL | D85: 170.30 | E85: 171.75 | F85: 167.75 | G85: 165.20 | H85: 161.20 | I85: 174.30 | J85: 178.30 | K85: 180.85 | L85: 175.75 | M85: 169.2 | N85: 34180000 | O85: 4.25%
A86: 76 | B86: Metals | C86: JSWSTEEL | D86: 260.10 | E86: 259.52 | F86: 256.33 | G86: 252.57 | H86: 249.38 | I86: 263.28 | J86: 266.47 | K86: 270.23 | L86: 262.7 | M86: 255.75 | N86: 56274100 | O86: 1.78%
A87: 77 | B87: Others | C87: JUBLFOOD | D87: 1844.25 | E87: 1843.90 | F87: 1822.35 | G87: 1800.45 | H87: 1778.90 | I87: 1865.80 | J87: 1887.35 | K87: 1909.25 | L87: 1865.45 | M87: 1822 | N87: 3122500 | O87: -5.78%
A88: 78 | B88: Others | C88: JUSTDIAL | D88: 488.15 | E88: 488.87 | F88: 483.73 | G88: 479.32 | H88: 474.18 | I88: 493.28 | J88: 498.42 | K88: 502.83 | L88: 494 | M88: 484.45 | N88: 3434200 | O88: -8.78%
A89: 79 | B89: Banking | C89: KOTAKBANK | D89: 1669.50 | E89: 1668.80 | F89: 1661.00 | G89: 1652.50 | H89: 1644.70 | I89: 1677.30 | J89: 1685.10 | K89: 1693.60 | L89: 1676.6 | M89: 1660.3 | N89: 10154400 | O89: 2.57%
A90: 80 | B90: Finance | C90: L&TFH | D90: 115.25 | E90: 115.43 | F90: 113.67 | G90: 112.08 | H90: 110.32 | I90: 117.02 | J90: 118.78 | K90: 120.37 | L90: 117.2 | M90: 113.85 | N90: 24640000 | O90: -11.49%
A91: 81 | B91: Finance | C91: LICHSGFIN | D91: 348.35 | E91: 349.15 | F91: 344.15 | G91: 339.95 | H91: 334.95 | I91: 353.35 | J91: 358.35 | K91: 362.55 | L91: 354.15 | M91: 344.95 | N91: 15392000 | O91: -4.56%
A92: 82 | B92: Capital_Goods | C92: LT | D92: 1211.25 | E92: 1218.27 | F92: 1197.98 | G92: 1184.72 | H92: 1164.43 | I92: 1231.53 | J92: 1251.82 | K92: 1265.08 | L92: 1238.55 | M92: 1205 | N92: 21390000 | O92: -0.52%
A93: 83 | B93: Pharma | C93: LUPIN | D93: 668.90 | E93: 669.65 | F93: 662.90 | G93: 656.90 | H93: 650.15 | I93: 675.65 | J93: 682.40 | K93: 688.40 | L93: 676.4 | M93: 663.65 | N93: 8610000 | O93: -1.18%
A94: 84 | B94: Automobile | C94: M&M | D94: 503.25 | E94: 505.57 | F94: 497.93 | G94: 492.62 | H94: 484.98 | I94: 510.88 | J94: 518.52 | K94: 523.83 | L94: 513.2 | M94: 500.25 | N94: 23147000 | O94: -1.17%
A95: 85 | B95: Finance | C95: M&MFIN | D95: 360.25 | E95: 362.47 | F95: 356.18 | G95: 352.12 | H95: 345.83 | I95: 366.53 | J95: 372.82 | K95: 376.88 | L95: 368.75 | M95: 358.4 | N95: 14043200 | O95: -0.90%
A96: 86 | B96: Finance | C96: MANAPPURAM | D96: 175.95 | E96: 176.47 | F96: 174.28 | G96: 172.62 | H96: 170.43 | I96: 178.13 | J96: 180.32 | K96: 181.98 | L96: 178.65 | M96: 174.8 | N96: 34500000 | O96: -0.83%
A97: 87 | B97: FMCG | C97: MARICO | D97: 306.25 | E97: 300.18 | F97: 292.17 | G97: 278.08 | H97: 270.07 | I97: 314.27 | J97: 322.28 | K97: 336.37 | L97: 308.2 | M97: 286.1 | N97: 13622700 | O97: -5.22%
A98: 88 | B98: Automobile | C98: MARUTI | D98: 6234.00 | E98: 6267.63 | F98: 6157.47 | G98: 6080.93 | H98: 5970.77 | I98: 6344.17 | J98: 6454.33 | K98: 6530.87 | L98: 6377.8 | M98: 6191.1 | N98: 3609800 | O98: 1.32%
A99: 89 | B99: FMCG | C99: MCDOWELL-N | D99: 688.50 | E99: 692.18 | F99: 681.82 | G99: 675.13 | H99: 664.77 | I99: 698.87 | J99: 709.23 | K99: 715.92 | L99: 702.55 | M99: 685.5 | N99: 14246250 | O99: 4.41%
A100: 90 | B100: Finance | C100: MFSL | D100: 588.10 | E100: 588.05 | F100: 582.25 | G100: 576.40 | H100: 570.60 | I100: 593.90 | J100: 599.70 | K100: 605.55 | L100: 593.85 | M100: 582.2 | N100: 5616000 | O100: 2.71%
A101: 91 | B101: Oil_Gas | C101: MGL | D101: 1077.80 | E101: 1086.20 | F101: 1065.05 | G101: 1052.30 | H101: 1031.15 | I101: 1098.95 | J101: 1120.10 | K101: 1132.85 | L101: 1107.35 | M101: 1073.45 | N101: 2740800 | O101: 11.91%
A102: 92 | B102: Technology | C102: MINDTREE | D102: 1020.25 | E102: 1026.92 | F102: 1003.43 | G102: 986.62 | H102: 963.13 | I102: 1043.73 | J102: 1067.22 | K102: 1084.03 | L102: 1050.4 | M102: 1010.1 | N102: 1373600 | O102: 0.29%
A103: 93 | B103: Automobile | C103: MOTHERSUMI | D103: 111.60 | E103: 112.52 | F103: 110.13 | G103: 108.67 | H103: 106.28 | I103: 113.98 | J103: 116.37 | K103: 117.83 | L103: 114.9 | M103: 111.05 | N103: 20840000 | O103: 5.79%
A104: 94 | B104: Automobile | C104: MRF | D104: 68270.00 | E104: 68571.00 | F104: 67809.00 | G104: 67348.00 | H104: 66586.00 | I104: 69032.00 | J104: 69794.00 | K104: 70255.00 | L104: 69333 | M104: 68110 | N104: 24290 | O104: 3.19%
A105: 95 | B105: Finance | C105: MUTHOOTFIN | D105: 941.50 | E105: 943.30 | F105: 933.70 | G105: 925.90 | H105: 916.30 | I105: 951.10 | J105: 960.70 | K105: 968.50 | L105: 952.9 | M105: 935.5 | N105: 7020000 | O105: 6.07%
A106: 96 | B106: Metals | C106: NATIONALUM | D106: 36.05 | E106: 36.20 | F106: 35.75 | G106: 35.45 | H106: 35.00 | I106: 36.50 | J106: 36.95 | K106: 37.25 | L106: 36.65 | M106: 35.9 | N106: 45009900 | O106: -3.37%
A107: 97 | B107: Infrastructure | C107: NCC | D107: 39.90 | E107: 40.12 | F107: 39.18 | G107: 38.47 | H107: 37.53 | I107: 40.83 | J107: 41.77 | K107: 42.48 | L107: 41.05 | M107: 39.4 | N107: 45576000 | O107: 0.40%
A108: 98 | B108: FMCG | C108: NESTLEIND | D108: 16245.65 | E108: 16291.27 | F108: 16089.38 | G108: 15933.12 | H108: 15731.23 | I108: 16447.53 | J108: 16649.42 | K108: 16805.68 | L108: 16493.15 | M108: 16135 | N108: 501900 | O108: -3.60%
A109: 99 | B109: Technology | C109: NIITTECH | D109: 1889.20 | E109: 1883.77 | F109: 1857.53 | G109: 1825.87 | H109: 1799.63 | I109: 1915.43 | J109: 1941.67 | K109: 1973.33 | L109: 1910 | M109: 1852.1 | N109: 745125 | O109: -17.89%
A110: 100 | B110: Metals | C110: NMDC | D110: 97.90 | E110: 98.97 | F110: 96.53 | G110: 95.17 | H110: 92.73 | I110: 100.33 | J110: 102.77 | K110: 104.13 | L110: 101.4 | M110: 97.6 | N110: 39426000 | O110: -0.35%
A111: 101 | B111: Power | C111: NTPC | D111: 109.00 | E111: 109.50 | F111: 107.60 | G111: 106.20 | H111: 104.30 | I111: 110.90 | J111: 112.80 | K111: 114.20 | L111: 111.4 | M111: 108.1 | N111: 116419200 | O111: -2.25%
A112: 102 | B112: Oil_Gas | C112: OIL | D112: 113.85 | E112: 115.08 | F112: 112.17 | G112: 110.48 | H112: 107.57 | I112: 116.77 | J112: 119.68 | K112: 121.37 | L112: 118 | M112: 113.4 | N112: 11128326 | O112: -2.50%
A113: 103 | B113: Oil_Gas | C113: ONGC | D113: 95.75 | E113: 96.60 | F113: 94.65 | G113: 93.55 | H113: 91.60 | I113: 97.70 | J113: 99.65 | K113: 100.75 | L113: 98.55 | M113: 95.5 | N113: 86526400 | O113: -2.17%
A114: 104 | B114: Textile | C114: PAGEIND | D114: 22105.55 | E114: 22075.37 | F114: 21802.78 | G114: 21500.02 | H114: 21227.43 | I114: 22378.13 | J114: 22650.72 | K114: 22953.48 | L114: 22347.95 | M114: 21772.6 | N114: 197450 | O114: 13.14%
A115: 105 | B115: Pharma | C115: PEL | D115: 1432.75 | E115: 1448.45 | F115: 1404.85 | G115: 1376.95 | H115: 1333.35 | I115: 1476.35 | J115: 1519.95 | K115: 1547.85 | L115: 1492.05 | M115: 1420.55 | N115: 4301898 | O115: 0.26%
A116: 106 | B116: Oil_Gas | C116: PETRONET | D116: 261.70 | E116: 261.68 | F116: 259.07 | G116: 256.43 | H116: 253.82 | I116: 264.32 | J116: 266.93 | K116: 269.57 | L116: 264.3 | M116: 259.05 | N116: 20469000 | O116: -3.53%
A117: 107 | B117: Finance | C117: PFC | D117: 127.30 | E117: 128.25 | F117: 126.00 | G117: 124.70 | H117: 122.45 | I117: 129.55 | J117: 131.80 | K117: 133.10 | L117: 130.5 | M117: 126.95 | N117: 37733200 | O117: 0.60%
A118: 108 | B118: FMCG | C118: PIDILITIND | D118: 1536.90 | E118: 1543.63 | F118: 1521.82 | G118: 1506.73 | H118: 1484.92 | I118: 1558.72 | J118: 1580.53 | K118: 1595.62 | L118: 1565.45 | M118: 1528.55 | N118: 2464000 | O118: -1.52%
A119: 109 | B119: Banking | C119: PNB | D119: 49.10 | E119: 49.38 | F119: 48.62 | G119: 48.13 | H119: 47.37 | I119: 49.87 | J119: 50.63 | K119: 51.12 | L119: 50.15 | M119: 48.9 | N119: 127089600 | O119: -1.19%
A120: 110 | B120: Power | C120: POWERGRID | D120: 185.85 | E120: 186.12 | F120: 183.73 | G120: 181.62 | H120: 179.23 | I120: 188.23 | J120: 190.62 | K120: 192.73 | L120: 188.5 | M120: 184 | N120: 55568000 | O120: 0.21%
A121: 111 | B121: Media | C121: PVR | D121: 2021.70 | E121: 2021.77 | F121: 1996.03 | G121: 1970.37 | H121: 1944.63 | I121: 2047.43 | J121: 2073.17 | K121: 2098.83 | L121: 2047.5 | M121: 1996.1 | N121: 1240800 | O121: 1.11%
A122: 112 | B122: Cement | C122: RAMCOCEM | D122: 787.85 | E122: 789.62 | F122: 779.48 | G122: 771.12 | H122: 760.98 | I122: 797.98 | J122: 808.12 | K122: 816.48 | L122: 799.75 | M122: 781.25 | N122: 1128800 | O122: -15.20%
A123: 113 | B123: Banking | C123: RBLBANK | D123: 314.75 | E123: 312.33 | F123: 306.27 | G123: 297.78 | H123: 291.72 | I123: 320.82 | J123: 326.88 | K123: 335.37 | L123: 318.4 | M123: 303.85 | N123: 17395500 | O123: -6.57%
A124: 114 | B124: Power | C124: RECLTD | D124: 129.85 | E124: 130.97 | F124: 128.18 | G124: 126.52 | H124: 123.73 | I124: 132.63 | J124: 135.42 | K124: 137.08 | L124: 133.75 | M124: 129.3 | N124: 25680000 | O124: 2.71%
A125: 115 | B125: Oil_Gas | C125: RELIANCE | D125: 1393.00 | E125: 1398.95 | F125: 1382.95 | G125: 1372.90 | H125: 1356.90 | I125: 1409.00 | J125: 1425.00 | K125: 1435.05 | L125: 1414.95 | M125: 1388.9 | N125: 41085000 | O125: -1.53%
A126: 116 | B126: Metals | C126: SAIL | D126: 38.60 | E126: 38.72 | F126: 38.13 | G126: 37.67 | H126: 37.08 | I126: 39.18 | J126: 39.77 | K126: 40.23 | L126: 39.3 | M126: 38.25 | N126: 90620400 | O126: -1.27%
A127: 117 | B127: Banking | C127: SBIN | D127: 328.30 | E127: 327.85 | F127: 324.45 | G127: 320.60 | H127: 317.20 | I127: 331.70 | J127: 335.10 | K127: 338.95 | L127: 331.25 | M127: 324 | N127: 153405000 | O127: 5.03%
A128: 118 | B128: Cement | C128: SHREECEM | D128: 23457.40 | E128: 23437.08 | F128: 23175.37 | G128: 22893.33 | H128: 22631.62 | I128: 23719.12 | J128: 23980.83 | K128: 24262.87 | L128: 23698.8 | M128: 23155.05 | N128: 179850 | O128: 1.27%
A129: 119 | B129: Capital_Goods | C129: SIEMENS | D129: 1349.75 | E129: 1362.93 | F129: 1331.42 | G129: 1313.08 | H129: 1281.57 | I129: 1381.27 | J129: 1412.78 | K129: 1431.12 | L129: 1394.45 | M129: 1344.6 | N129: 2470050 | O129: 8.03%
A130: 120 | B130: Textile | C130: SRF | D130: 4126.65 | E130: 4129.80 | F130: 4090.95 | G130: 4055.25 | H130: 4016.40 | I130: 4165.50 | J130: 4204.35 | K130: 4240.05 | L130: 4168.65 | M130: 4094.1 | N130: 941000 | O130: -0.40%
A131: 121 | B131: Finance | C131: SRTRANSFIN | D131: 1277.50 | E131: 1287.42 | F131: 1258.43 | G131: 1239.37 | H131: 1210.38 | I131: 1306.48 | J131: 1335.47 | K131: 1354.53 | L131: 1316.4 | M131: 1268.35 | N131: 6354000 | O131: -1.40%
A132: 122 | B132: Pharma | C132: SUNPHARMA | D132: 374.80 | E132: 378.25 | F132: 369.20 | G132: 363.60 | H132: 354.55 | I132: 383.85 | J132: 392.90 | K132: 398.50 | L132: 387.3 | M132: 372.65 | N132: 74951250 | O132: 0.19%
A133: 123 | B133: Media | C133: SUNTV | D133: 463.10 | E133: 466.68 | F133: 455.97 | G133: 448.83 | H133: 438.12 | I133: 473.82 | J133: 484.53 | K133: 491.67 | L133: 477.4 | M133: 459.55 | N133: 8067600 | O133: -2.37%
A134: 124 | B134: Fertilisers | C134: TATACHEM | D134: 740.80 | E134: 742.68 | F134: 734.12 | G134: 727.43 | H134: 718.87 | I134: 749.37 | J134: 757.93 | K134: 764.62 | L134: 751.25 | M134: 736 | N134: 3655800 | O134: -4.47%
A135: 125 | B135: FMCG | C135: TATAGLOBAL | D135: 365.45 | E135: 365.88 | F135: 361.07 | G135: 356.68 | H135: 351.87 | I135: 370.27 | J135: 375.08 | K135: 379.47 | L135: 370.7 | M135: 361.5 | N135: 20101500 | O135: 0.51%
A136: 126 | B136: Automobile | C136: TATAMOTORS | D136: 144.60 | E136: 145.45 | F136: 142.95 | G136: 141.30 | H136: 138.80 | I136: 147.10 | J136: 149.60 | K136: 151.25 | L136: 147.95 | M136: 143.8 | N136: 85660300 | O136: 1.26%
A137: 127 | B137: Power | C137: TATAPOWER | D137: 49.20 | E137: 49.65 | F137: 48.30 | G137: 47.40 | H137: 46.05 | I137: 50.55 | J137: 51.90 | K137: 52.80 | L137: 51 | M137: 48.75 | N137: 78750000 | O137: -6.37%
A138: 128 | B138: Metals | C138: TATASTEEL | D138: 416.10 | E138: 415.88 | F138: 411.47 | G138: 406.83 | H138: 402.42 | I138: 420.52 | J138: 424.93 | K138: 429.57 | L138: 420.3 | M138: 411.25 | N138: 26980500 | O138: -1.30%
A139: 129 | B139: Technology | C139: TCS | D139: 2122.85 | E139: 2132.67 | F139: 2101.98 | G139: 2081.12 | H139: 2050.43 | I139: 2153.53 | J139: 2184.22 | K139: 2205.08 | L139: 2163.35 | M139: 2111.8 | N139: 12318750 | O139: 2.88%
A140: 130 | B140: Technology | C140: TECHM | D140: 812.00 | E140: 814.82 | F140: 804.53 | G140: 797.07 | H140: 786.78 | I140: 822.28 | J140: 832.57 | K140: 840.03 | L140: 825.1 | M140: 807.35 | N140: 16764000 | O140: 4.67%
A141: 131 | B141: FMCG | C141: TITAN | D141: 1255.95 | E141: 1256.62 | F141: 1245.48 | G141: 1235.02 | H141: 1223.88 | I141: 1267.08 | J141: 1278.22 | K141: 1288.68 | L141: 1267.75 | M141: 1246.15 | N141: 7668750 | O141: -4.42%
A142: 132 | B142: Pharma | C142: TORNTPHARM | D142: 2251.05 | E142: 2241.80 | F142: 2204.60 | G142: 2158.15 | H142: 2120.95 | I142: 2288.25 | J142: 2325.45 | K142: 2371.90 | L142: 2279 | M142: 2195.35 | N142: 474500 | O142: 5.44%
A143: 133 | B143: Power | C143: TORNTPOWER | D143: 304.00 | E143: 305.62 | F143: 301.58 | G143: 299.17 | H143: 295.13 | I143: 308.03 | J143: 312.07 | K143: 314.48 | L143: 309.65 | M143: 303.2 | N143: 5082000 | O143: 0.89%
A144: 134 | B144: Automobile | C144: TVSMOTOR | D144: 431.55 | E144: 430.08 | F144: 425.32 | G144: 419.08 | H144: 414.32 | I144: 436.32 | J144: 441.08 | K144: 447.32 | L144: 434.85 | M144: 423.85 | N144: 5358150 | O144: -7.11%
A145: 135 | B145: FMCG | C145: UBL | D145: 1232.75 | E145: 1235.23 | F145: 1219.02 | G145: 1205.28 | H145: 1189.07 | I145: 1248.97 | J145: 1265.18 | K145: 1278.92 | L145: 1251.45 | M145: 1221.5 | N145: 2375100 | O145: -1.62%
A146: 136 | B146: Finance | C146: UJJIVAN | D146: 368.95 | E146: 370.95 | F146: 365.00 | G146: 361.05 | H146: 355.10 | I146: 374.90 | J146: 380.85 | K146: 384.80 | L146: 376.9 | M146: 367 | N146: 7034600 | O146: 2.83%
A147: 137 | B147: Cement | C147: ULTRACEMCO | D147: 4345.80 | E147: 4339.60 | F147: 4258.25 | G147: 4170.70 | H147: 4089.35 | I147: 4427.15 | J147: 4508.50 | K147: 4596.05 | L147: 4420.95 | M147: 4252.05 | N147: 2672800 | O147: -0.66%
A148: 138 | B148: Fertilisers | C148: UPL | D148: 563.50 | E148: 563.28 | F148: 556.82 | G148: 550.13 | H148: 543.67 | I148: 569.97 | J148: 576.43 | K148: 583.12 | L148: 569.75 | M148: 556.6 | N148: 14279400 | O148: -1.41%
A149: 139 | B149: Metals | C149: VEDL | D149: 130.30 | E149: 131.13 | F149: 128.52 | G149: 126.73 | H149: 124.12 | I149: 132.92 | J149: 135.53 | K149: 137.32 | L149: 133.75 | M149: 129.35 | N149: 90293000 | O149: -2.12%
A150: 140 | B150: Capital_Goods | C150: VOLTAS | D150: 691.80 | E150: 694.57 | F150: 683.73 | G150: 675.67 | H150: 664.83 | I150: 702.63 | J150: 713.47 | K150: 721.53 | L150: 705.4 | M150: 686.5 | N150: 4278000 | O150: -5.92%
A151: 141 | B151: Technology | C151: WIPRO | D151: 240.05 | E151: 240.33 | F151: 237.77 | G151: 235.48 | H151: 232.92 | I151: 242.62 | J151: 245.18 | K151: 247.47 | L151: 242.9 | M151: 238.05 | N151: 29260800 | O151: 13.44%
A152: 142 | B152: Banking | C152: YESBANK | D152: 36.50 | E152: 35.97 | F152: 34.88 | G152: 33.27 | H152: 32.18 | I152: 37.58 | J152: 38.67 | K152: 40.28 | L152: 37.05 | M152: 34.35 | N152: 371940800 | O152: 10.16%
A153: 143 | B153: Media | C153: ZEEL | D153: 251.40 | E153: 250.18 | F153: 247.12 | G153: 242.83 | H153: 239.77 | I153: 254.47 | J153: 257.53 | K153: 261.82 | L153: 253.25 | M153: 245.9 | N153: 27121800 | O153: -0.93%
A154: 144
A155: 145
A156: 146
A157: 147
A175: Pivot Point: This is trigger point for intra day buy/sell based on the price range of the previous day
A176: As per the tool,the trader should take BUY position just above Pivot and keep the stop loss of pivot point and the first target would be Resistance 1(R1)
A177: If R1 is crossed then R2 becomes the next target with stop loss of at R1
A178: Similarly if price goes below pivot point then the trader should sell and keep a stop loss of pivot point and the first target would be S1
A179: If S1 is crossed then S2 becomes the next target with stop loss of at S1
A181: Disclaimer:
A182: This document has been prepared by the Retail Research Desk of Asit C Mehta
A183: Investment Intermediates Ltd. and is meant for use of the recipient only
A184: and is not for circulation. This document is not to be reported or
A185: copied or made available to others. It should not be considered to be
A186: taken as an offer to sell or a solicitation to buy any security. The
A187: information contained herein is from sources believed reliable. We do
A188: not represent that it is accurate or complete and it should not be
A189: relied upon as such. We may from time to time have positions in and buy
A190: and sell securities referred to herein

Sheet Cash Intra
M5: Back to Main Page
A6: FOR INTRA DAY TRADING | K6: =Main!B10 -> 2020-02-27
A8: Sr.no | B8: Scrip | C8: CLOSE RATE | D8: Pivot Point | E8: Supports | H8: Resistances
C9: Point | E9: S1 | F9: S2 | G9: S3 | H9: R1 | I9: R2 | J9: R3 | K9: HIGH | L9: LOW | M9: Total Trade Quanity in Lakhs
A10: 1 | B10: Nifty 50 | C10: 11678.5 | D10: 11700.45 | E10: 11617.65 | F10: 11556.80 | G10: 11474.00 | H10: 11761.30 | I10: 11844.10 | J10: 11904.95 | K10: 11783.25 | L10: 11639.6
A11: 2 | B11: Nifty Bank | C11: 30306.85 | D11: 30317.98 | E11: 30120.62 | F11: 29934.38 | G11: 29737.02 | H11: 30504.22 | I11: 30701.58 | J11: 30887.82 | K11: 30515.35 | L11: 30131.75
A12: 3 | B12: Nifty CPSE | C12: 1598.55 | D12: 1607.73 | E12: 1584.52 | F12: 1570.48 | G12: 1547.27 | H12: 1621.77 | I12: 1644.98 | J12: 1659.02 | K12: 1630.95 | L12: 1593.7
A13: 4 | B13: Nifty Infra | C13: 3116.5 | D13: 3125.15 | E13: 3100.85 | F13: 3085.20 | G13: 3060.90 | H13: 3140.80 | I13: 3165.10 | J13: 3180.75 | K13: 3149.45 | L13: 3109.5
A14: 5 | B14: Nifty IT | C14: 16332.25 | D14: 16389.58 | E14: 16239.92 | F14: 16147.58 | G14: 15997.92 | H14: 16481.92 | I14: 16631.58 | J14: 16723.92 | K14: 16539.25 | L14: 16297.25
A15: 6 | B15: Nifty PSE | C15: 2832.85 | D15: 2847.50 | E15: 2808.15 | F15: 2783.45 | G15: 2744.10 | H15: 2872.20 | I15: 2911.55 | J15: 2936.25 | K15: 2886.85 | L15: 2822.8
A16: 7 | B16: Nifty Midcap 50 | C16: 4745.35 | D16: 4759.40 | E16: 4715.20 | F16: 4685.05 | G16: 4640.85 | H16: 4789.55 | I16: 4833.75 | J16: 4863.90 | K16: 4803.6 | L16: 4729.25
A17: 8 | B17: ACC | C17: 1399.5 | D17: 1401.85 | E17: 1385.00 | F17: 1370.50 | G17: 1353.65 | H17: 1416.35 | I17: 1433.20 | J17: 1447.70 | K17: 1418.7 | L17: 1387.35 | M17: 5.14199
A18: 9 | B18: AUBANK | C18: 1178.95 | D18: 1133.02 | E18: 1065.03 | F18: 951.12 | G18: 883.13 | H18: 1246.93 | I18: 1314.92 | J18: 1428.83 | K18: 1201 | L18: 1019.1 | M18: 4.21839
A19: 10 | B19: ADANIPORTS | C19: 358.4 | D19: 357.93 | E19: 353.37 | F19: 348.33 | G19: 343.77 | H19: 362.97 | I19: 367.53 | J19: 372.57 | K19: 362.5 | L19: 352.9 | M19: 29.12256
A20: 11 | B20: ADANIPOWER | C20: 54.45 | D20: 54.80 | E20: 53.45 | F20: 52.45 | G20: 51.10 | H20: 55.80 | I20: 57.15 | J20: 58.15 | K20: 56.15 | L20: 53.8 | M20: 57.54033
A21: 12 | B21: ABCAPITAL | C21: 83.2 | D21: 83.85 | E21: 82.30 | F21: 81.40 | G21: 79.85 | H21: 84.75 | I21: 86.30 | J21: 87.20 | K21: 85.4 | L21: 82.95 | M21: 21.59998
A22: 13 | B22: ABFRL | C22: 262.4 | D22: 262.97 | E22: 259.43 | F22: 256.47 | G22: 252.93 | H22: 265.93 | I22: 269.47 | J22: 272.43 | K22: 266.5 | L22: 260 | M22: 2.71489
A23: 14 | B23: AJANTPHARM | C23: 1414 | D23: 1402.95 | E23: 1371.90 | F23: 1329.80 | G23: 1298.75 | H23: 1445.05 | I23: 1476.10 | J23: 1518.20 | K23: 1434 | L23: 1360.85 | M23: 0.73403
A24: 15 | B24: ALKEM | C24: 2632.8 | D24: 2636.88 | E24: 2602.32 | F24: 2571.83 | G24: 2537.27 | H24: 2667.37 | I24: 2701.93 | J24: 2732.42 | K24: 2671.45 | L24: 2606.4 | M24: 1.31984
A25: 16 | B25: AMARAJABAT | C25: 695.3 | D25: 694.70 | E25: 676.60 | F25: 657.90 | G25: 639.80 | H25: 713.40 | I25: 731.50 | J25: 750.20 | K25: 712.8 | L25: 676 | M25: 5.92956
A26: 17 | B26: AMBUJACEM | C26: 213.6 | D26: 213.23 | E26: 210.42 | F26: 207.23 | G26: 204.42 | H26: 216.42 | I26: 219.23 | J26: 222.42 | K26: 216.05 | L26: 210.05 | M26: 29.06515
A27: 18 | B27: APOLLOHOSP | C27: 1767.2 | D27: 1775.72 | E27: 1754.48 | F27: 1741.77 | G27: 1720.53 | H27: 1788.43 | I27: 1809.67 | J27: 1822.38 | K27: 1796.95 | L27: 1763 | M27: 3.77299
A28: 19 | B28: APOLLOTYRE | C28: 148.7 | D28: 151.03 | E28: 144.07 | F28: 139.43 | G28: 132.47 | H28: 155.67 | I28: 162.63 | J28: 167.27 | K28: 158 | L28: 146.4 | M28: 20.59074
A29: 20 | B29: ASHOKLEY | C29: 77.95 | D29: 79.15 | E29: 76.40 | F29: 74.85 | G29: 72.10 | H29: 80.70 | I29: 83.45 | J29: 85.00 | K29: 81.9 | L29: 77.6 | M29: 119.77376
A30: 21 | B30: ASIANPAINT | C30: 1826.65 | D30: 1830.55 | E30: 1816.10 | F30: 1805.55 | G30: 1791.10 | H30: 1841.10 | I30: 1855.55 | J30: 1866.10 | K30: 1845 | L30: 1820 | M30: 11.69614
A31: 22 | B31: AUROPHARMA | C31: 510 | D31: 511.33 | E31: 502.67 | F31: 495.33 | G31: 486.67 | H31: 518.67 | I31: 527.33 | J31: 534.67 | K31: 520 | L31: 504 | M31: 31.79653
A32: 23 | B32: DMART | C32: 2358.4 | D32: 2360.82 | E32: 2302.63 | F32: 2246.87 | G32: 2188.68 | H32: 2416.58 | I32: 2474.77 | J32: 2530.53 | K32: 2419 | L32: 2305.05 | M32: 15.72997
A33: 24 | B33: AXISBANK | C33: 729.4 | D33: 729.05 | E33: 722.35 | F33: 715.30 | G33: 708.60 | H33: 736.10 | I33: 742.80 | J33: 749.85 | K33: 735.75 | L33: 722 | M33: 83.45819
A34: 25 | B34: BAJAJ-AUTO | C34: 2946.6 | D34: 2946.87 | E34: 2919.73 | F34: 2892.87 | G34: 2865.73 | H34: 2973.73 | I34: 3000.87 | J34: 3027.73 | K34: 2974 | L34: 2920 | M34: 11.41144
A35: 26 | B35: BAJFINANCE | C35: 4810 | D35: 4805.00 | E35: 4772.25 | F35: 4734.50 | G35: 4701.75 | H35: 4842.75 | I35: 4875.50 | J35: 4913.25 | K35: 4837.75 | L35: 4767.25 | M35: 17.36927
A36: 27 | B36: BAJAJFINSV | C36: 9387 | D36: 9413.97 | E36: 9333.03 | F36: 9279.07 | G36: 9198.13 | H36: 9467.93 | I36: 9548.87 | J36: 9602.83 | K36: 9494.9 | L36: 9360 | M36: 3.29541
A37: 28 | B37: BAJAJHLDNG | C37: 3483 | D37: 3532.00 | E37: 3416.00 | F37: 3349.00 | G37: 3233.00 | H37: 3599.00 | I37: 3715.00 | J37: 3782.00 | K37: 3648 | L37: 3465 | M37: 0.80743
A38: 29 | B38: BALKRISIND | C38: 1186.3 | D38: 1192.48 | E38: 1174.97 | F38: 1163.63 | G38: 1146.12 | H38: 1203.82 | I38: 1221.33 | J38: 1232.67 | K38: 1210 | L38: 1181.15 | M38: 2.71802
A39: 30 | B39: BANDHANBNK | C39: 394.1 | D39: 402.80 | E39: 382.60 | F39: 371.10 | G39: 350.90 | H39: 414.30 | I39: 434.50 | J39: 446.00 | K39: 423 | L39: 391.3 | M39: 27.62309
A40: 31 | B40: BANKBARODA | C40: 80.2 | D40: 80.10 | E40: 79.15 | F40: 78.10 | G40: 77.15 | H40: 81.15 | I40: 82.10 | J40: 83.15 | K40: 81.05 | L40: 79.05 | M40: 224.98038
A41: 32 | B41: BANKINDIA | C41: 56.9 | D41: 57.17 | E41: 56.28 | F41: 55.67 | G41: 54.78 | H41: 57.78 | I41: 58.67 | J41: 59.28 | K41: 58.05 | L41: 56.55 | M41: 67.267
A42: 33 | B42: BATAINDIA | C42: 1676.85 | D42: 1685.47 | E42: 1659.03 | F42: 1641.22 | G42: 1614.78 | H42: 1703.28 | I42: 1729.72 | J42: 1747.53 | K42: 1711.9 | L42: 1667.65 | M42: 2.78726
A43: 34 | B43: BERGEPAINT | C43: 567 | D43: 568.47 | E43: 563.58 | F43: 560.17 | G43: 555.28 | H43: 571.88 | I43: 576.77 | J43: 580.18 | K43: 573.35 | L43: 565.05 | M43: 12.10461
A44: 35 | B44: BEL | C44: 80.3 | D44: 80.77 | E44: 78.83 | F44: 77.37 | G44: 75.43 | H44: 82.23 | I44: 84.17 | J44: 85.63 | K44: 82.7 | L44: 79.3 | M44: 565.82665
A45: 36 | B45: BHARATFORG | C45: 458.3 | D45: 458.70 | E45: 452.25 | F45: 446.20 | G45: 439.75 | H45: 464.75 | I45: 471.20 | J45: 477.25 | K45: 465.15 | L45: 452.65 | M45: 7.00915
A46: 37 | B46: BHEL | C46: 33.25 | D46: 33.43 | E46: 32.92 | F46: 32.58 | G46: 32.07 | H46: 33.77 | I46: 34.28 | J46: 34.62 | K46: 33.95 | L46: 33.1 | M46: 140.87306
A47: 38 | B47: BPCL | C47: 448.8 | D47: 450.52 | E47: 441.48 | F47: 434.17 | G47: 425.13 | H47: 457.83 | I47: 466.87 | J47: 474.18 | K47: 459.55 | L47: 443.2 | M47: 69.46475
A48: 39 | B48: BHARTIARTL | C48: 535.95 | D48: 531.88 | E48: 524.37 | F48: 512.78 | G48: 505.27 | H48: 543.47 | I48: 550.98 | J48: 562.57 | K48: 539.4 | L48: 520.3 | M48: 180.17965
A49: 40 | B49: INFRATEL | C49: 218.75 | D49: 217.05 | E49: 212.70 | F49: 206.65 | G49: 202.30 | H49: 223.10 | I49: 227.45 | J49: 233.50 | K49: 221.4 | L49: 211 | M49: 58.11965
A50: 41 | B50: BIOCON | C50: 298.75 | D50: 301.37 | E50: 295.03 | F50: 291.32 | G50: 284.98 | H50: 305.08 | I50: 311.42 | J50: 315.13 | K50: 307.7 | L50: 297.65 | M50: 19.49668
A51: 42 | B51: BBTC | C51: 1099.45 | D51: 1088.12 | E51: 1066.43 | F51: 1033.42 | G51: 1011.73 | H51: 1121.13 | I51: 1142.82 | J51: 1175.83 | K51: 1109.8 | L51: 1055.1 | M51: 0.58867
A52: 43 | B52: BOSCHLTD | C52: 13290.65 | D52: 13449.15 | E52: 13063.55 | F52: 12836.45 | G52: 12450.85 | H52: 13676.25 | I52: 14061.85 | J52: 14288.95 | K52: 13834.75 | L52: 13222.05 | M52: 0.24677
A53: 44 | B53: BRITANNIA | C53: 3041.35 | D53: 3042.65 | E53: 3015.40 | F53: 2989.45 | G53: 2962.20 | H53: 3068.60 | I53: 3095.85 | J53: 3121.80 | K53: 3069.9 | L53: 3016.7 | M53: 4.6885
A54: 45 | B54: CESC | C54: 669.1 | D54: 673.68 | E54: 662.02 | F54: 654.93 | G54: 643.27 | H54: 680.77 | I54: 692.43 | J54: 699.52 | K54: 685.35 | L54: 666.6 | M54: 3.39974
A55: 46 | B55: CADILAHC | C55: 262.85 | D55: 265.48 | E55: 259.37 | F55: 255.88 | G55: 249.77 | H55: 268.97 | I55: 275.08 | J55: 278.57 | K55: 271.6 | L55: 262 | M55: 11.03855
A56: 47 | B56: CANBK | C56: 159.9 | D56: 160.70 | E56: 158.30 | F56: 156.70 | G56: 154.30 | H56: 162.30 | I56: 164.70 | J56: 166.30 | K56: 163.1 | L56: 159.1 | M56: 70.14346
A57: 48 | B57: CASTROLIND | C57: 153.5 | D57: 154.12 | E57: 150.73 | F57: 147.97 | G57: 144.58 | H57: 156.88 | I57: 160.27 | J57: 163.03 | K57: 157.5 | L57: 151.35 | M57: 34.61075
A58: 49 | B58: CHOLAFIN | C58: 318.1 | D58: 318.73 | E58: 312.27 | F58: 306.43 | G58: 299.97 | H58: 324.57 | I58: 331.03 | J58: 336.87 | K58: 325.2 | L58: 312.9 | M58: 16.87153
A59: 50 | B59: CIPLA | C59: 422.2 | D59: 417.67 | E59: 410.33 | F59: 398.47 | G59: 391.13 | H59: 429.53 | I59: 436.87 | J59: 448.73 | K59: 425 | L59: 405.8 | M59: 21.84609
A60: 51 | B60: CUB | C60: 217.5 | D60: 218.17 | E60: 216.33 | F60: 215.17 | G60: 213.33 | H60: 219.33 | I60: 221.17 | J60: 222.33 | K60: 220 | L60: 217 | M60: 10.62871
A61: 52 | B61: COALINDIA | C61: 173.8 | D61: 174.73 | E61: 171.72 | F61: 169.63 | G61: 166.62 | H61: 176.82 | I61: 179.83 | J61: 181.92 | K61: 177.75 | L61: 172.65 | M61: 352.81395
A62: 53 | B62: COLPAL | C62: 1325.8 | D62: 1328.72 | E62: 1312.63 | F62: 1299.47 | G62: 1283.38 | H62: 1341.88 | I62: 1357.97 | J62: 1371.13 | K62: 1344.8 | L62: 1315.55 | M62: 24.53672
A63: 54 | B63: CONCOR | C63: 515.8 | D63: 522.72 | E63: 503.23 | F63: 490.67 | G63: 471.18 | H63: 535.28 | I63: 554.77 | J63: 567.33 | K63: 542.2 | L63: 510.15 | M63: 6.92547
A64: 55 | B64: COROMANDEL | C64: 612.2 | D64: 613.30 | E64: 604.70 | F64: 597.20 | G64: 588.60 | H64: 620.80 | I64: 629.40 | J64: 636.90 | K64: 621.9 | L64: 605.8 | M64: 7.17405
A65: 56 | B65: CROMPTON | C65: 287.6 | D65: 285.80 | E65: 282.45 | F65: 277.30 | G65: 273.95 | H65: 290.95 | I65: 294.30 | J65: 299.45 | K65: 289.15 | L65: 280.65 | M65: 30.8845
A66: 57 | B66: CUMMINSIND | C66: 533.35 | D66: 534.62 | E66: 525.73 | F66: 518.12 | G66: 509.23 | H66: 542.23 | I66: 551.12 | J66: 558.73 | K66: 543.5 | L66: 527 | M66: 9.9194
A67: 58 | B67: DLF | C67: 212.45 | D67: 213.58 | E67: 209.47 | F67: 206.48 | G67: 202.37 | H67: 216.57 | I67: 220.68 | J67: 223.67 | K67: 217.7 | L67: 210.6 | M67: 108.10838
A68: 59 | B68: DABUR | C68: 501.95 | D68: 502.07 | E68: 497.13 | F68: 492.32 | G68: 487.38 | H68: 506.88 | I68: 511.82 | J68: 516.63 | K68: 507 | L68: 497.25 | M68: 74.62427
A69: 60 | B69: DALBHARAT | C69: 802.3 | D69: 809.10 | E69: 793.20 | F69: 784.10 | G69: 768.20 | H69: 818.20 | I69: 834.10 | J69: 843.20 | K69: 825 | L69: 800 | M69: 1.62129
A70: 61 | B70: DIVISLAB | C70: 2142.1 | D70: 2132.05 | E70: 2101.15 | F70: 2060.20 | G70: 2029.30 | H70: 2173.00 | I70: 2203.90 | J70: 2244.85 | K70: 2162.95 | L70: 2091.1 | M70: 3.22232
A71: 62 | B71: DRREDDY | C71: 3075.35 | D71: 3083.72 | E71: 3051.93 | F71: 3028.52 | G71: 2996.73 | H71: 3107.13 | I71: 3138.92 | J71: 3162.33 | K71: 3115.5 | L71: 3060.3 | M71: 6.68235
A72: 63 | B72: EDELWEISS | C72: 97.15 | D72: 97.57 | E72: 94.33 | F72: 91.52 | G72: 88.28 | H72: 100.38 | I72: 103.62 | J72: 106.43 | K72: 100.8 | L72: 94.75 | M72: 7.90032
A73: 64 | B73: EICHERMOT | C73: 17156.95 | D73: 17264.12 | E73: 16928.23 | F73: 16699.52 | G73: 16363.63 | H73: 17492.83 | I73: 17828.72 | J73: 18057.43 | K73: 17600 | L73: 17035.4 | M73: 1.02123
A74: 65 | B74: EMAMILTD | C74: 270.3 | D74: 270.93 | E74: 263.37 | F74: 256.43 | G74: 248.87 | H74: 277.87 | I74: 285.43 | J74: 292.37 | K74: 278.5 | L74: 264 | M74: 25.57313
A75: 66 | B75: ENDURANCE | C75: 974.35 | D75: 977.78 | E75: 956.57 | F75: 938.78 | G75: 917.57 | H75: 995.57 | I75: 1016.78 | J75: 1034.57 | K75: 999 | L75: 960 | M75: 0.47896
A76: 67 | B76: ENGINERSIN | C76: 74.95 | D76: 76.70 | E76: 72.75 | F76: 70.55 | G76: 66.60 | H76: 78.90 | I76: 82.85 | J76: 85.05 | K76: 80.65 | L76: 74.5 | M76: 17.04006
A77: 68 | B77: ESCORTS | C77: 827.85 | D77: 828.62 | E77: 817.78 | F77: 807.72 | G77: 796.88 | H77: 838.68 | I77: 849.52 | J77: 859.58 | K77: 839.45 | L77: 818.55 | M77: 70.11082
A78: 69 | B78: EXIDEIND | C78: 170.1 | D78: 170.83 | E78: 167.27 | F78: 164.43 | G78: 160.87 | H78: 173.67 | I78: 177.23 | J78: 180.07 | K78: 174.4 | L78: 168 | M78: 14.66191
A79: 70 | B79: FEDERALBNK | C79: 85.05 | D79: 85.25 | E79: 84.40 | F79: 83.75 | G79: 82.90 | H79: 85.90 | I79: 86.75 | J79: 87.40 | K79: 86.1 | L79: 84.6 | M79: 102.70614
A80: 71 | B80: FORTIS | C80: 156.7 | D80: 156.68 | E80: 153.12 | F80: 149.53 | G80: 145.97 | H80: 160.27 | I80: 163.83 | J80: 167.42 | K80: 160.25 | L80: 153.1 | M80: 19.33119
A81: 72 | B81: FCONSUMER | C81: 16.65 | D81: 16.92 | E81: 16.03 | F81: 15.42 | G81: 14.53 | H81: 17.53 | I81: 18.42 | J81: 19.03 | K81: 17.8 | L81: 16.3 | M81: 15.70645
A82: 73 | B82: FRETAIL | C82: 321.25 | D82: 322.45 | E82: 315.40 | F82: 309.55 | G82: 302.50 | H82: 328.30 | I82: 335.35 | J82: 341.20 | K82: 329.5 | L82: 316.6 | M82: 10.27307
A83: 74 | B83: GAIL | C83: 108.05 | D83: 109.92 | E83: 105.73 | F83: 103.42 | G83: 99.23 | H83: 112.23 | I83: 116.42 | J83: 118.73 | K83: 114.1 | L83: 107.6 | M83: 153.91445
A84: 75 | B84: GMRINFRA | C84: 24.4 | D84: 24.68 | E84: 23.92 | F84: 23.43 | G84: 22.67 | H84: 25.17 | I84: 25.93 | J84: 26.42 | K84: 25.45 | L84: 24.2 | M84: 105.71558
A85: 76 | B85: GICRE | C85: 190.05 | D85: 191.92 | E85: 185.18 | F85: 180.32 | G85: 173.58 | H85: 196.78 | I85: 203.52 | J85: 208.38 | K85: 198.65 | L85: 187.05 | M85: 2.09376
A86: 77 | B86: GLENMARK | C86: 295.9 | D86: 297.93 | E86: 291.97 | F86: 288.03 | G86: 282.07 | H86: 301.87 | I86: 307.83 | J86: 311.77 | K86: 303.9 | L86: 294 | M86: 26.37001
A87: 78 | B87: GODREJAGRO | C87: 501.2 | D87: 505.07 | E87: 486.13 | F87: 471.07 | G87: 452.13 | H87: 520.13 | I87: 539.07 | J87: 554.13 | K87: 524 | L87: 490 | M87: 0.4871
A88: 79 | B88: GODREJCP | C88: 601.25 | D88: 604.33 | E88: 595.92 | F88: 590.58 | G88: 582.17 | H88: 609.67 | I88: 618.08 | J88: 623.42 | K88: 612.75 | L88: 599 | M88: 18.59249
A89: 80 | B89: GODREJIND | C89: 410.65 | D89: 409.35 | E89: 401.70 | F89: 392.75 | G89: 385.10 | H89: 418.30 | I89: 425.95 | J89: 434.90 | K89: 417 | L89: 400.4 | M89: 0.88259
A90: 81 | B90: GODREJPROP | C90: 1082.1 | D90: 1077.95 | E90: 1056.45 | F90: 1030.80 | G90: 1009.30 | H90: 1103.60 | I90: 1125.10 | J90: 1150.75 | K90: 1099.45 | L90: 1052.3 | M90: 1.78002
A91: 82 | B91: GRAPHITE | C91: 255.05 | D91: 258.30 | E91: 249.95 | F91: 244.85 | G91: 236.50 | H91: 263.40 | I91: 271.75 | J91: 276.85 | K91: 266.65 | L91: 253.2 | M91: 8.51755
A92: 83 | B92: GRASIM | C92: 702.8 | D92: 708.33 | E92: 694.47 | F92: 686.13 | G92: 672.27 | H92: 716.67 | I92: 730.53 | J92: 738.87 | K92: 722.2 | L92: 700 | M92: 12.99292
A93: 84 | B93: GSPL | C93: 235.9 | D93: 235.78 | E93: 232.67 | F93: 229.43 | G93: 226.32 | H93: 239.02 | I93: 242.13 | J93: 245.37 | K93: 238.9 | L93: 232.55 | M93: 4.26398
A94: 85 | B94: HEG | C94: 961.15 | D94: 968.08 | E94: 941.17 | F94: 921.18 | G94: 894.27 | H94: 988.07 | I94: 1014.98 | J94: 1034.97 | K94: 995 | L94: 948.1 | M94: 1.68582
A95: 86 | B95: HCLTECH | C95: 583.6 | D95: 582.72 | E95: 576.38 | F95: 569.17 | G95: 562.83 | H95: 589.93 | I95: 596.27 | J95: 603.48 | K95: 589.05 | L95: 575.5 | M95: 35.90768
A96: 87 | B96: HDFCAMC | C96: 3273.75 | D96: 3271.25 | E96: 3227.50 | F96: 3181.25 | G96: 3137.50 | H96: 3317.50 | I96: 3361.25 | J96: 3407.50 | K96: 3315 | L96: 3225 | M96: 1.96125
A97: 88 | B97: HDFCBANK | C97: 1199.25 | D97: 1196.53 | E97: 1188.37 | F97: 1177.48 | G97: 1169.32 | H97: 1207.42 | I97: 1215.58 | J97: 1226.47 | K97: 1204.7 | L97: 1185.65 | M97: 55.89134
A98: 89 | B98: HDFCLIFE | C98: 557.05 | D98: 561.17 | E98: 550.88 | F98: 544.72 | G98: 534.43 | H98: 567.33 | I98: 577.62 | J98: 583.78 | K98: 571.45 | L98: 555 | M98: 12.60667
A99: 90 | B99: HAVELLS | C99: 646.8 | D99: 645.17 | E99: 637.63 | F99: 628.47 | G99: 620.93 | H99: 654.33 | I99: 661.87 | J99: 671.03 | K99: 652.7 | L99: 636 | M99: 11.71667
A100: 91 | B100: HEROMOTOCO | C100: 2142.55 | D100: 2157.85 | E100: 2120.70 | F100: 2098.85 | G100: 2061.70 | H100: 2179.70 | I100: 2216.85 | J100: 2238.70 | K100: 2195 | L100: 2136 | M100: 5.74957
A101: 92 | B101: HEXAWARE | C101: 365.05 | D101: 364.50 | E101: 361.05 | F101: 357.05 | G101: 353.60 | H101: 368.50 | I101: 371.95 | J101: 375.95 | K101: 367.95 | L101: 360.5 | M101: 3.23817
A102: 93 | B102: HINDALCO | C102: 169.9 | D102: 170.28 | E102: 167.37 | F102: 164.83 | G102: 161.92 | H102: 172.82 | I102: 175.73 | J102: 178.27 | K102: 173.2 | L102: 167.75 | M102: 60.08376
A103: 94 | B103: HINDPETRO | C103: 208.85 | D103: 209.10 | E103: 206.90 | F103: 204.95 | G103: 202.75 | H103: 211.05 | I103: 213.25 | J103: 215.20 | K103: 211.3 | L103: 207.15 | M103: 45.95587
A104: 95 | B104: HINDUNILVR | C104: 2236.2 | D104: 2231.42 | E104: 2207.13 | F104: 2178.07 | G104: 2153.78 | H104: 2260.48 | I104: 2284.77 | J104: 2313.83 | K104: 2255.7 | L104: 2202.35 | M104: 19.30834
A105: 96 | B105: HINDZINC | C105: 172.8 | D105: 173.87 | E105: 169.78 | F105: 166.77 | G105: 162.68 | H105: 176.88 | I105: 180.97 | J105: 183.98 | K105: 177.95 | L105: 170.85 | M105: 7.24986
A106: 97 | B106: HUDCO | C106: 31.95 | D106: 31.92 | E106: 31.33 | F106: 30.72 | G106: 30.13 | H106: 32.53 | I106: 33.12 | J106: 33.73 | K106: 32.5 | L106: 31.3 | M106: 10.06963
A107: 98 | B107: HDFC | C107: 2281.45 | D107: 2281.50 | E107: 2253.50 | F107: 2225.55 | G107: 2197.55 | H107: 2309.45 | I107: 2337.45 | J107: 2365.40 | K107: 2309.5 | L107: 2253.55 | M107: 28.28509
A108: 99 | B108: ICICIBANK | C108: 523.7 | D108: 525.08 | E108: 520.82 | F108: 517.93 | G108: 513.67 | H108: 527.97 | I108: 532.23 | J108: 535.12 | K108: 529.35 | L108: 522.2 | M108: 162.92578
A109: 100 | B109: ICICIGI | C109: 1235.45 | D109: 1247.38 | E109: 1202.07 | F109: 1168.68 | G109: 1123.37 | H109: 1280.77 | I109: 1326.08 | J109: 1359.47 | K109: 1292.7 | L109: 1214 | M109: 2.01621
A110: 101 | B110: ICICIPRULI | C110: 475.65 | D110: 478.47 | E110: 467.88 | F110: 460.12 | G110: 449.53 | H110: 486.23 | I110: 496.82 | J110: 504.58 | K110: 489.05 | L110: 470.7 | M110: 10.53162
A111: 102 | B111: IDBI | C111: 33.45 | D111: 33.63 | E111: 33.12 | F111: 32.78 | G111: 32.27 | H111: 33.97 | I111: 34.48 | J111: 34.82 | K111: 34.15 | L111: 33.3 | M111: 6.52812
A112: 103 | B112: IDFCFIRSTB | C112: 38.95 | D112: 39.05 | E112: 38.70 | F112: 38.45 | G112: 38.10 | H112: 39.30 | I112: 39.65 | J112: 39.90 | K112: 39.4 | L112: 38.8 | M112: 209.67183
A113: 104 | B113: ITC | C113: 198.6 | D113: 198.95 | E113: 195.95 | F113: 193.30 | G113: 190.30 | H113: 201.60 | I113: 204.60 | J113: 207.25 | K113: 201.95 | L113: 196.3 | M113: 184.5588
A114: 105 | B114: IBULHSGFIN | C114: 321.5 | D114: 323.95 | E114: 313.20 | F114: 304.90 | G114: 294.15 | H114: 332.25 | I114: 343.00 | J114: 351.30 | K114: 334.7 | L114: 315.65 | M114: 169.75776
A115: 106 | B115: IBVENTURES | C115: 190.4 | D115: 191.18 | E115: 184.42 | F115: 178.43 | G115: 171.67 | H115: 197.17 | I115: 203.93 | J115: 209.92 | K115: 197.95 | L115: 185.2 | M115: 38.76523
A116: 107 | B116: INDIANB | C116: 78.15 | D116: 78.57 | E116: 77.18 | F116: 76.22 | G116: 74.83 | H116: 79.53 | I116: 80.92 | J116: 81.88 | K116: 79.95 | L116: 77.6 | M116: 14.06266
A117: 108 | B117: INDHOTEL | C117: 140.3 | D117: 139.83 | E117: 138.47 | F117: 136.63 | G117: 135.27 | H117: 141.67 | I117: 143.03 | J117: 144.87 | K117: 141.2 | L117: 138 | M117: 7.1894
A118: 109 | B118: IOC | C118: 108.35 | D118: 109.22 | E118: 107.13 | F118: 105.92 | G118: 103.83 | H118: 110.43 | I118: 112.52 | J118: 113.73 | K118: 111.3 | L118: 108 | M118: 367.42641
A119: 110 | B119: IGL | C119: 455.9 | D119: 456.93 | E119: 450.37 | F119: 444.83 | G119: 438.27 | H119: 462.47 | I119: 469.03 | J119: 474.57 | K119: 463.5 | L119: 451.4 | M119: 21.83118
A120: 111 | B120: INDUSINDBK | C120: 1135 | D120: 1136.73 | E120: 1123.47 | F120: 1111.93 | G120: 1098.67 | H120: 1148.27 | I120: 1161.53 | J120: 1173.07 | K120: 1150 | L120: 1125.2 | M120: 83.91172
A121: 112 | B121: NAUKRI | C121: 2610.3 | D121: 2619.43 | E121: 2540.87 | F121: 2471.43 | G121: 2392.87 | H121: 2688.87 | I121: 2767.43 | J121: 2836.87 | K121: 2698 | L121: 2550 | M121: 2.45742
A122: 113 | B122: INFY | C122: 782.75 | D122: 788.23 | E122: 775.02 | F122: 767.28 | G122: 754.07 | H122: 795.97 | I122: 809.18 | J122: 816.92 | K122: 801.45 | L122: 780.5 | M122: 60.92028
A123: 114 | B123: INDIGO | C123: 1391.45 | D123: 1384.35 | E123: 1358.20 | F123: 1324.95 | G123: 1298.80 | H123: 1417.60 | I123: 1443.75 | J123: 1477.00 | K123: 1410.5 | L123: 1351.1 | M123: 18.09304
A124: 115 | B124: IPCALAB | C124: 1378.7 | D124: 1393.40 | E124: 1350.30 | F124: 1321.90 | G124: 1278.80 | H124: 1421.80 | I124: 1464.90 | J124: 1493.30 | K124: 1436.5 | L124: 1365 | M124: 0.82039
A125: 116 | B125: JSWENERGY | C125: 60.6 | D125: 60.92 | E125: 59.88 | F125: 59.17 | G125: 58.13 | H125: 61.63 | I125: 62.67 | J125: 63.38 | K125: 61.95 | L125: 60.2 | M125: 3.42262
A126: 117 | B126: JSWSTEEL | C126: 260.8 | D126: 260.02 | E126: 256.33 | F126: 251.87 | G126: 248.18 | H126: 264.48 | I126: 268.17 | J126: 272.63 | K126: 263.7 | L126: 255.55 | M126: 63.29214
A127: 118 | B127: JINDALSTEL | C127: 170.15 | D127: 171.70 | E127: 167.60 | F127: 165.05 | G127: 160.95 | H127: 174.25 | I127: 178.35 | J127: 180.90 | K127: 175.8 | L127: 169.15 | M127: 152.07085
A128: 119 | B128: JUBLFOOD | C128: 1846.2 | D128: 1843.73 | E128: 1822.47 | F128: 1798.73 | G128: 1777.47 | H128: 1867.47 | I128: 1888.73 | J128: 1912.47 | K128: 1865 | L128: 1820 | M128: 22.23606
A129: 120 | B129: JUBILANT | C129: 509.25 | D129: 512.88 | E129: 502.37 | F129: 495.48 | G129: 484.97 | H129: 519.77 | I129: 530.28 | J129: 537.17 | K129: 523.4 | L129: 506 | M129: 4.33124
A130: 121 | B130: KOTAKBANK | C130: 1666.5 | D130: 1667.07 | E130: 1656.43 | F130: 1646.37 | G130: 1635.73 | H130: 1677.13 | I130: 1687.77 | J130: 1697.83 | K130: 1677.7 | L130: 1657 | M130: 94.95046
A131: 122 | B131: L&TFH | C131: 115 | D131: 115.27 | E131: 113.43 | F131: 111.87 | G131: 110.03 | H131: 116.83 | I131: 118.67 | J131: 120.23 | K131: 117.1 | L131: 113.7 | M131: 77.86477
A132: 123 | B132: LTTS | C132: 1680 | D132: 1687.33 | E132: 1665.67 | F132: 1651.33 | G132: 1629.67 | H132: 1701.67 | I132: 1723.33 | J132: 1737.67 | K132: 1709 | L132: 1673 | M132: 0.39962
A133: 124 | B133: LICHSGFIN | C133: 348.15 | D133: 348.93 | E133: 343.87 | F133: 339.58 | G133: 334.52 | H133: 353.22 | I133: 358.28 | J133: 362.57 | K133: 354 | L133: 344.65 | M133: 75.80796
A134: 125 | B134: LTI | C134: 1998.4 | D134: 1990.80 | E134: 1977.60 | F134: 1956.80 | G134: 1943.60 | H134: 2011.60 | I134: 2024.80 | J134: 2045.60 | K134: 2004 | L134: 1970 | M134: 0.36496
A135: 126 | B135: LT | C135: 1211.15 | D135: 1218.38 | E135: 1198.77 | F135: 1186.38 | G135: 1166.77 | H135: 1230.77 | I135: 1250.38 | J135: 1262.77 | K135: 1238 | L135: 1206 | M135: 39.39306
A136: 127 | B136: LUPIN | C136: 669.8 | D136: 670.12 | E136: 664.23 | F136: 658.67 | G136: 652.78 | H136: 675.68 | I136: 681.57 | J136: 687.13 | K136: 676 | L136: 664.55 | M136: 11.17946
A137: 128 | B137: MRF | C137: 68140 | D137: 68464.65 | E137: 67525.35 | F137: 66910.70 | G137: 65971.40 | H137: 69079.30 | I137: 70018.60 | J137: 70633.25 | K137: 69403.95 | L137: 67850 | M137: 0.04805
A138: 129 | B138: MGL | C138: 1075.35 | D138: 1084.48 | E138: 1061.97 | F138: 1048.58 | G138: 1026.07 | H138: 1097.87 | I138: 1120.38 | J138: 1133.77 | K138: 1107 | L138: 1071.1 | M138: 13.51299
A139: 130 | B139: M&MFIN | C139: 360.85 | D139: 363.28 | E139: 356.57 | F139: 352.28 | G139: 345.57 | H139: 367.57 | I139: 374.28 | J139: 378.57 | K139: 370 | L139: 359 | M139: 23.06322
A140: 131 | B140: M&M | C140: 503 | D140: 505.15 | E140: 497.85 | F140: 492.70 | G140: 485.40 | H140: 510.30 | I140: 517.60 | J140: 522.75 | K140: 512.45 | L140: 500 | M140: 23.52196
A141: 132 | B141: MANAPPURAM | C141: 176.2 | D141: 176.77 | E141: 174.78 | F141: 173.37 | G141: 171.38 | H141: 178.18 | I141: 180.17 | J141: 181.58 | K141: 178.75 | L141: 175.35 | M141: 28.02932
A142: 133 | B142: MRPL | C142: 39.65 | D142: 39.83 | E142: 39.32 | F142: 38.98 | G142: 38.47 | H142: 40.17 | I142: 40.68 | J142: 41.02 | K142: 40.35 | L142: 39.5 | M142: 8.09305
A143: 134 | B143: MARICO | C143: 306.15 | D143: 304.77 | E143: 301.28 | F143: 296.42 | G143: 292.93 | H143: 309.63 | I143: 313.12 | J143: 317.98 | K143: 308.25 | L143: 299.9 | M143: 69.41813
A144: 135 | B144: MARUTI | C144: 6234.85 | D144: 6263.25 | E144: 6157.65 | F144: 6080.45 | G144: 5974.85 | H144: 6340.45 | I144: 6446.05 | J144: 6523.25 | K144: 6368.85 | L144: 6186.05 | M144: 8.68935
A145: 136 | B145: MFSL | C145: 588.15 | D145: 587.85 | E145: 582.10 | F145: 576.05 | G145: 570.30 | H145: 593.90 | I145: 599.65 | J145: 605.70 | K145: 593.6 | L145: 581.8 | M145: 16.72907
A146: 137 | B146: MINDTREE | C146: 1029.4 | D146: 1032.55 | E146: 1015.10 | F146: 1000.80 | G146: 983.35 | H146: 1046.85 | I146: 1064.30 | J146: 1078.60 | K146: 1050 | L146: 1018.25 | M146: 4.76824
A147: 138 | B147: MOTHERSUMI | C147: 111.25 | D147: 112.25 | E147: 109.70 | F147: 108.15 | G147: 105.60 | H147: 113.80 | I147: 116.35 | J147: 117.90 | K147: 114.8 | L147: 110.7 | M147: 275.35769
A148: 139 | B148: MPHASIS | C148: 851.9 | D148: 858.63 | E148: 833.27 | F148: 814.63 | G148: 789.27 | H148: 877.27 | I148: 902.63 | J148: 921.27 | K148: 884 | L148: 840 | M148: 0.51751
A149: 140 | B149: MUTHOOTFIN | C149: 939.95 | D149: 943.00 | E149: 931.95 | F149: 923.95 | G149: 912.90 | H149: 951.00 | I149: 962.05 | J149: 970.05 | K149: 954.05 | L149: 935 | M149: 5.3477
A150: 141 | B150: NATCOPHARM | C150: 623.5 | D150: 626.65 | E150: 617.95 | F150: 612.40 | G150: 603.70 | H150: 632.20 | I150: 640.90 | J150: 646.45 | K150: 635.35 | L150: 621.1 | M150: 0.70644
A151: 142 | B151: NBCC | C151: 28.25 | D151: 28.53 | E151: 27.37 | F151: 26.48 | G151: 25.32 | H151: 29.42 | I151: 30.58 | J151: 31.47 | K151: 29.7 | L151: 27.65 | M151: 131.59247
A152: 143 | B152: NHPC | C152: 21.65 | D152: 21.75 | E152: 21.45 | F152: 21.25 | G152: 20.95 | H152: 21.95 | I152: 22.25 | J152: 22.45 | K152: 22.05 | L152: 21.55 | M152: 169.98025
A153: 144 | B153: NMDC | C153: 97.65 | D153: 98.78 | E153: 96.17 | F153: 94.68 | G153: 92.07 | H153: 100.27 | I153: 102.88 | J153: 104.37 | K153: 101.4 | L153: 97.3 | M153: 115.54574
A154: 145 | B154: NTPC | C154: 109.1 | D154: 109.63 | E154: 107.72 | F154: 106.33 | G154: 104.42 | H154: 111.02 | I154: 112.93 | J154: 114.32 | K154: 111.55 | L154: 108.25 | M154: 645.18347
A155: 146 | B155: NATIONALUM | C155: 36 | D155: 36.17 | E155: 35.73 | F155: 35.47 | G155: 35.03 | H155: 36.43 | I155: 36.87 | J155: 37.13 | K155: 36.6 | L155: 35.9 | M155: 182.52296
A156: 147 | B156: NESTLEIND | C156: 16240.15 | D156: 16311.73 | E156: 16078.47 | F156: 15916.78 | G156: 15683.52 | H156: 16473.42 | I156: 16706.68 | J156: 16868.37 | K156: 16545 | L156: 16150.05 | M156: 0.59649
A157: 148 | B157: NAM-INDIA | C157: 425.8 | D157: 429.20 | E157: 413.95 | F157: 402.10 | G157: 386.85 | H157: 441.05 | I157: 456.30 | J157: 468.15 | K157: 444.45 | L157: 417.35 | M157: 1.68229
A158: 149 | B158: OBEROIRLTY | C158: 513.4 | D158: 512.95 | E158: 507.10 | F158: 500.80 | G158: 494.95 | H158: 519.25 | I158: 525.10 | J158: 531.40 | K158: 518.8 | L158: 506.65 | M158: 833.60147
A159: 150 | B159: ONGC | C159: 95.8 | D159: 96.60 | E159: 94.70 | F159: 93.60 | G159: 91.70 | H159: 97.70 | I159: 99.60 | J159: 100.70 | K159: 98.5 | L159: 95.5 | M159: 95.97439
A160: 151 | B160: OIL | C160: 113.45 | D160: 114.75 | E160: 111.80 | F160: 110.15 | G160: 107.20 | H160: 116.40 | I160: 119.35 | J160: 121.00 | K160: 117.7 | L160: 113.1 | M160: 0.2199
A161: 152 | B161: OFSS | C161: 2741.95 | D161: 2747.33 | E161: 2714.67 | F161: 2687.38 | G161: 2654.72 | H161: 2774.62 | I161: 2807.28 | J161: 2834.57 | K161: 2780 | L161: 2720.05 | M161: 3.09452
A162: 153 | B162: PIIND | C162: 1542.4 | D162: 1542.52 | E162: 1531.13 | F162: 1519.87 | G162: 1508.48 | H162: 1553.78 | I162: 1565.17 | J162: 1576.43 | K162: 1553.9 | L162: 1531.25 | M162: 7.15716
A163: 154 | B163: PNBHOUSING | C163: 396.15 | D163: 395.42 | E163: 383.23 | F163: 370.32 | G163: 358.13 | H163: 408.33 | I163: 420.52 | J163: 433.43 | K163: 407.6 | L163: 382.5 | M163: 0.22781
A164: 155 | B164: PAGEIND | C164: 22119.05 | D164: 22111.78 | E164: 21825.12 | F164: 21531.18 | G164: 21244.52 | H164: 22405.72 | I164: 22692.38 | J164: 22986.32 | K164: 22398.45 | L164: 21817.85 | M164: 23.08304
A165: 156 | B165: PETRONET | C165: 262.05 | D165: 261.75 | E165: 258.85 | F165: 255.65 | G165: 252.75 | H165: 264.95 | I165: 267.85 | J165: 271.05 | K165: 264.65 | L165: 258.55 | M165: 0.12497
A166: 157 | B166: PFIZER | C166: 4188.35 | D166: 4207.82 | E166: 4128.63 | F166: 4068.92 | G166: 3989.73 | H166: 4267.53 | I166: 4346.72 | J166: 4406.43 | K166: 4287 | L166: 4148.1 | M166: 7.69665
A167: 158 | B167: PIDILITIND | C167: 1535.7 | D167: 1541.62 | E167: 1520.28 | F167: 1504.87 | G167: 1483.53 | H167: 1557.03 | I167: 1578.37 | J167: 1593.78 | K167: 1562.95 | L167: 1526.2 | M167: 29.79765
A168: 159 | B168: PEL | C168: 1429.35 | D168: 1448.28 | E168: 1398.57 | F168: 1367.78 | G168: 1318.07 | H168: 1479.07 | I168: 1528.78 | J168: 1559.57 | K168: 1498 | L168: 1417.5 | M168: 94.55973
A169: 160 | B169: PFC | C169: 127.2 | D169: 128.07 | E169: 125.88 | F169: 124.57 | G169: 122.38 | H169: 129.38 | I169: 131.57 | J169: 132.88 | K169: 130.25 | L169: 126.75 | M169: 359.92338
A170: 161 | B170: POWERGRID | C170: 185.85 | D170: 186.07 | E170: 183.73 | F170: 181.62 | G170: 179.28 | H170: 188.18 | I170: 190.52 | J170: 192.63 | K170: 188.4 | L170: 183.95 | M170: 3.99518
A171: 162 | B171: PRESTIGE | C171: 333.6 | D171: 335.05 | E171: 327.55 | F171: 321.50 | G171: 314.00 | H171: 341.10 | I171: 348.60 | J171: 354.65 | K171: 342.55 | L171: 329 | M171: 0.02985
A172: 163 | B172: PGHH | C172: 11244.05 | D172: 11204.72 | E172: 11145.38 | F172: 11046.72 | G172: 10987.38 | H172: 11303.38 | I172: 11362.72 | J172: 11461.38 | K172: 11264.05 | L172: 11106.05 | M172: 154.49355
A173: 164 | B173: PNB | C173: 49.15 | D173: 49.42 | E173: 48.73 | F173: 48.32 | G173: 47.63 | H173: 49.83 | I173: 50.52 | J173: 50.93 | K173: 50.1 | L173: 49 | M173: 5.40845
A174: 165 | B174: QUESS | C174: 536.05 | D174: 533.72 | E174: 523.43 | F174: 510.82 | G174: 500.53 | H174: 546.33 | I174: 556.62 | J174: 569.23 | K174: 544 | L174: 521.1 | M174: 58.43485
A175: 166 | B175: RBLBANK | C175: 314.5 | D175: 312.35 | E175: 306.85 | F175: 299.20 | G175: 293.70 | H175: 320.00 | I175: 325.50 | J175: 333.15 | K175: 317.85 | L175: 304.7 | M175: 70.38131
A176: 167 | B176: RECLTD | C176: 129.75 | D176: 130.93 | E176: 128.12 | F176: 126.48 | G176: 123.67 | H176: 132.57 | I176: 135.38 | J176: 137.02 | K176: 133.75 | L176: 129.3 | M176: 1.23317
A177: 168 | B177: RAJESHEXPO | C177: 639.5 | D177: 644.82 | E177: 632.68 | F177: 625.87 | G177: 613.73 | H177: 651.63 | I177: 663.77 | J177: 670.58 | K177: 656.95 | L177: 638 | M177: 158.86673
A178: 169 | B178: RELIANCE | C178: 1392 | D178: 1397.23 | E178: 1382.12 | F178: 1372.23 | G178: 1357.12 | H178: 1407.12 | I178: 1422.23 | J178: 1432.12 | K178: 1412.35 | L178: 1387.35 | M178: 4.4517
A179: 170 | B179: SBILIFE | C179: 891.35 | D179: 895.88 | E179: 876.97 | F179: 862.58 | G179: 843.67 | H179: 910.27 | I179: 929.18 | J179: 943.57 | K179: 914.8 | L179: 881.5 | M179: 3.14532
A180: 171 | B180: SRF | C180: 4125.1 | D180: 4129.92 | E180: 4094.33 | F180: 4063.57 | G180: 4027.98 | H180: 4160.68 | I180: 4196.27 | J180: 4227.03 | K180: 4165.5 | L180: 4099.15 | M180: 0.26041
A181: 172 | B181: SHREECEM | C181: 23465.15 | D181: 23405.18 | E181: 23213.07 | F181: 22960.98 | G181: 22768.87 | H181: 23657.27 | I181: 23849.38 | J181: 24101.47 | K181: 23597.3 | L181: 23153.1 | M181: 19.83266
A182: 173 | B182: SRTRANSFIN | C182: 1276.95 | D182: 1287.67 | E182: 1257.33 | F182: 1237.72 | G182: 1207.38 | H182: 1307.28 | I182: 1337.62 | J182: 1357.23 | K182: 1318 | L182: 1268.05 | M182: 3.34263
A183: 174 | B183: SIEMENS | C183: 1346.4 | D183: 1361.35 | E183: 1325.05 | F183: 1303.70 | G183: 1267.40 | H183: 1382.70 | I183: 1419.00 | J183: 1440.35 | K183: 1397.65 | L183: 1340 | M183: 926.56638
A184: 175 | B184: SBIN | C184: 328.2 | D184: 327.73 | E184: 324.67 | F184: 321.13 | G184: 318.07 | H184: 331.27 | I184: 334.33 | J184: 337.87 | K184: 330.8 | L184: 324.2 | M184: 179.54383
A185: 176 | B185: SAIL | C185: 38.55 | D185: 38.67 | E185: 38.13 | F185: 37.72 | G185: 37.18 | H185: 39.08 | I185: 39.62 | J185: 40.03 | K185: 39.2 | L185: 38.25 | M185: 8.07575
A186: 177 | B186: STRTECH | C186: 103 | D186: 104.15 | E186: 101.00 | F186: 99.00 | G186: 95.85 | H186: 106.15 | I186: 109.30 | J186: 111.30 | K186: 107.3 | L186: 102.15 | M186: 37.57229
A187: 178 | B187: SUNPHARMA | C187: 374.7 | D187: 378.05 | E187: 369.15 | F187: 363.60 | G187: 354.70 | H187: 383.60 | I187: 392.50 | J187: 398.05 | K187: 386.95 | L187: 372.5 | M187: 15.5546
A188: 179 | B188: SUNTV | C188: 462 | D188: 466.22 | E188: 454.78 | F188: 447.57 | G188: 436.13 | H188: 473.43 | I188: 484.87 | J188: 492.08 | K188: 477.65 | L188: 459 | M188: 0.78761
A189: 180 | B189: SYNGENE | C189: 306.9 | D189: 308.02 | E189: 303.58 | F189: 300.27 | G189: 295.83 | H189: 311.33 | I189: 315.77 | J189: 319.08 | K189: 312.45 | L189: 304.7 | M189: 8.43524
A190: 181 | B190: TVSMOTOR | C190: 435.3 | D190: 432.22 | E190: 426.63 | F190: 417.97 | G190: 412.38 | H190: 440.88 | I190: 446.47 | J190: 455.13 | K190: 437.8 | L190: 423.55 | M190: 32.87223
A191: 182 | B191: TCS | C191: 2123.6 | D191: 2133.48 | E191: 2103.07 | F191: 2082.53 | G191: 2052.12 | H191: 2154.02 | I191: 2184.43 | J191: 2204.97 | K191: 2163.9 | L191: 2112.95 | M191: 26.8123
A192: 183 | B192: TATAGLOBAL | C192: 365.65 | D192: 365.67 | E192: 361.18 | F192: 356.72 | G192: 352.23 | H192: 370.13 | I192: 374.62 | J192: 379.08 | K192: 370.15 | L192: 361.2 | M192: 38.13549
A193: 184 | B193: TATAMTRDVR | C193: 60.65 | D193: 60.78 | E193: 59.17 | F193: 57.68 | G193: 56.07 | H193: 62.27 | I193: 63.88 | J193: 65.37 | K193: 62.4 | L193: 59.3 | M193: 756.21897
A194: 185 | B194: TATAMOTORS | C194: 144.55 | D194: 145.38 | E194: 142.87 | F194: 141.18 | G194: 138.67 | H194: 147.07 | I194: 149.58 | J194: 151.27 | K194: 147.9 | L194: 143.7 | M194: 79.77888
A195: 186 | B195: TATAPOWER | C195: 49.35 | D195: 49.77 | E195: 48.38 | F195: 47.42 | G195: 46.03 | H195: 50.73 | I195: 52.12 | J195: 53.08 | K195: 51.15 | L195: 48.8 | M195: 107.38727
A196: 187 | B196: TATASTEEL | C196: 416.3 | D196: 415.67 | E196: 411.93 | F196: 407.57 | G196: 403.83 | H196: 420.03 | I196: 423.77 | J196: 428.13 | K196: 419.4 | L196: 411.3 | M196: 30.81521
A197: 188 | B197: TECHM | C197: 811.45 | D197: 815.05 | E197: 804.60 | F197: 797.75 | G197: 787.30 | H197: 821.90 | I197: 832.35 | J197: 839.20 | K197: 825.5 | L197: 808.2 | M197: 1.68669
A198: 189 | B198: NIACL | C198: 116.9 | D198: 118.85 | E198: 113.70 | F198: 110.50 | G198: 105.35 | H198: 122.05 | I198: 127.20 | J198: 130.40 | K198: 124 | L198: 115.65 | M198: 5.867
A199: 190 | B199: RAMCOCEM | C199: 790.6 | D199: 789.72 | E199: 779.73 | F199: 768.87 | G199: 758.88 | H199: 800.58 | I199: 810.57 | J199: 821.43 | K199: 799.7 | L199: 778.85 | M199: 18.09101
A200: 191 | B200: TITAN | C200: 1255.1 | D200: 1255.73 | E200: 1244.47 | F200: 1233.83 | G200: 1222.57 | H200: 1266.37 | I200: 1277.63 | J200: 1288.27 | K200: 1267 | L200: 1245.1 | M200: 1.67763
A201: 192 | B201: TORNTPHARM | C201: 2251.1 | D201: 2245.57 | E201: 2207.13 | F201: 2163.17 | G201: 2124.73 | H201: 2289.53 | I201: 2327.97 | J201: 2371.93 | K201: 2284 | L201: 2201.6 | M201: 11.09871
A202: 193 | B202: TORNTPOWER | C202: 303.85 | D202: 305.57 | E202: 300.78 | F202: 297.72 | G202: 292.93 | H202: 308.63 | I202: 313.42 | J202: 316.48 | K202: 310.35 | L202: 302.5 | M202: 43.40034
A203: 194 | B203: UPL | C203: 563 | D203: 562.93 | E203: 556.07 | F203: 549.13 | G203: 542.27 | H203: 569.87 | I203: 576.73 | J203: 583.67 | K203: 569.8 | L203: 556 | M203: 4.5163
A204: 195 | B204: ULTRACEMCO | C204: 4341.5 | D204: 4350.48 | E204: 4277.07 | F204: 4212.63 | G204: 4139.22 | H204: 4414.92 | I204: 4488.33 | J204: 4552.77 | K204: 4423.9 | L204: 4286.05 | M204: 21.60583
A205: 196 | B205: UNIONBANK | C205: 41.3 | D205: 41.53 | E205: 40.77 | F205: 40.23 | G205: 39.47 | H205: 42.07 | I205: 42.83 | J205: 43.37 | K205: 42.3 | L205: 41 | M205: 3.17811
... 30 more rows

Sheet MidCap Intra
L5: Back To Main Page
A6: FOR INTRA DAY TRADING | K6: =Main!B10 -> 2020-02-27
A9: Sr.no | B9: Scrip | C9: CLOSE RATE | D9: Pivot Point | E9: Supports | H9: Resistances
C10: Point | E10: S1 | F10: S2 | G10: S3 | H10: R1 | I10: R2 | J10: R3 | K10: HIGH | L10: LOW | M10: Total Trade Quanity in Lakhs
A11: 1 | B11: 3MINDIA | C11: 20771.6 | D11: 20857.20 | E11: 20614.40 | F11: 20457.20 | G11: 20214.40 | H11: 21014.40 | I11: 21257.20 | J11: 21414.40 | K11: 21100 | L11: 20700 | M11: 0.03205
A12: 2 | B12: AARTIIND | C12: 999.7 | D12: 1007.55 | E12: 988.10 | F12: 976.50 | G12: 957.05 | H12: 1019.15 | I12: 1038.60 | J12: 1050.20 | K12: 1027 | L12: 995.95 | M12: 3.42707
A13: 3 | B13: AAVAS | C13: 1903.75 | D13: 1907.87 | E13: 1870.88 | F13: 1838.02 | G13: 1801.03 | H13: 1940.73 | I13: 1977.72 | J13: 2010.58 | K13: 1944.85 | L13: 1875 | M13: 0.32924
A14: 4 | B14: ABBOTINDIA | C14: 16237.1 | D14: 16228.70 | E14: 15958.40 | F14: 15679.70 | G14: 15409.40 | H14: 16507.40 | I14: 16777.70 | J14: 17056.40 | K14: 16499 | L14: 15950 | M14: 0.14286
A15: 5 | B15: ABCAPITAL | C15: 83.2 | D15: 83.85 | E15: 82.30 | F15: 81.40 | G15: 79.85 | H15: 84.75 | I15: 86.30 | J15: 87.20 | K15: 85.4 | L15: 82.95 | M15: 12.74174
A16: 6 | B16: ABFRL | C16: 262.4 | D16: 262.97 | E16: 259.43 | F16: 256.47 | G16: 252.93 | H16: 265.93 | I16: 269.47 | J16: 272.43 | K16: 266.5 | L16: 260 | M16: 6.05177
A17: 7 | B17: ACC | C17: 1399.5 | D17: 1401.85 | E17: 1385.00 | F17: 1370.50 | G17: 1353.65 | H17: 1416.35 | I17: 1433.20 | J17: 1447.70 | K17: 1418.7 | L17: 1387.35 | M17: 8.8657
A18: 8 | B18: ADANIGAS | C18: 149 | D18: 152.27 | E18: 144.83 | F18: 140.67 | G18: 133.23 | H18: 156.43 | I18: 163.87 | J18: 168.03 | K18: 159.7 | L18: 148.1 | M18: 43.22437
A19: 9 | B19: ADANIGREEN | C19: 171.55 | D19: 173.65 | E19: 169.45 | F19: 167.35 | G19: 163.15 | H19: 175.75 | I19: 179.95 | J19: 182.05 | K19: 177.85 | L19: 171.55 | M19: 9.96786
A20: 10 | B20: ADANIPORTS | C20: 358.4 | D20: 357.93 | E20: 353.37 | F20: 348.33 | G20: 343.77 | H20: 362.97 | I20: 367.53 | J20: 372.57 | K20: 362.5 | L20: 352.9 | M20: 41.64401
A21: 11 | B21: ADANIPOWER | C21: 54.45 | D21: 54.80 | E21: 53.45 | F21: 52.45 | G21: 51.10 | H21: 55.80 | I21: 57.15 | J21: 58.15 | K21: 56.15 | L21: 53.8 | M21: 91.0703
A22: 12 | B22: ADANITRANS | C22: 263.95 | D22: 270.40 | E22: 254.80 | F22: 245.65 | G22: 230.05 | H22: 279.55 | I22: 295.15 | J22: 304.30 | K22: 286 | L22: 261.25 | M22: 3.54124
A23: 13 | B23: ADVENZYMES | C23: 160.65 | D23: 161.20 | E23: 157.60 | F23: 154.55 | G23: 150.95 | H23: 164.25 | I23: 167.85 | J23: 170.90 | K23: 164.8 | L23: 158.15 | M23: 0.62338
A24: 14 | B24: AEGISCHEM | C24: 239.85 | D24: 241.68 | E24: 235.37 | F24: 230.88 | G24: 224.57 | H24: 246.17 | I24: 252.48 | J24: 256.97 | K24: 248 | L24: 237.2 | M24: 2.16287
A25: 15 | B25: AFFLE | C25: 2128.8 | D25: 2122.65 | E25: 2076.30 | F25: 2023.80 | G25: 1977.45 | H25: 2175.15 | I25: 2221.50 | J25: 2274.00 | K25: 2169 | L25: 2070.15 | M25: 1.69645
A26: 16 | B26: AIAENG | C26: 1744.65 | D26: 1749.85 | E26: 1726.80 | F26: 1708.95 | G26: 1685.90 | H26: 1767.70 | I26: 1790.75 | J26: 1808.60 | K26: 1772.9 | L26: 1732 | M26: 0.58662
A27: 17 | B27: AJANTPHARM | C27: 1414 | D27: 1402.95 | E27: 1371.90 | F27: 1329.80 | G27: 1298.75 | H27: 1445.05 | I27: 1476.10 | J27: 1518.20 | K27: 1434 | L27: 1360.85 | M27: 2.54445
A28: 18 | B28: AKZOINDIA | C28: 2304.15 | D28: 2296.40 | E28: 2272.75 | F28: 2241.35 | G28: 2217.70 | H28: 2327.80 | I28: 2351.45 | J28: 2382.85 | K28: 2320.05 | L28: 2265 | M28: 0.13439
A29: 19 | B29: ALKEM | C29: 2632.8 | D29: 2636.88 | E29: 2602.32 | F29: 2571.83 | G29: 2537.27 | H29: 2667.37 | I29: 2701.93 | J29: 2732.42 | K29: 2671.45 | L29: 2606.4 | M29: 0.35926
A30: 20 | B30: ALLCARGO | C30: 109.25 | D30: 110.15 | E30: 107.10 | F30: 104.95 | G30: 101.90 | H30: 112.30 | I30: 115.35 | J30: 117.50 | K30: 113.2 | L30: 108 | M30: 1.57405
A31: 21 | B31: AMARAJABAT | C31: 695.3 | D31: 694.70 | E31: 676.60 | F31: 657.90 | G31: 639.80 | H31: 713.40 | I31: 731.50 | J31: 750.20 | K31: 712.8 | L31: 676 | M31: 21.36846
A32: 22 | B32: AMBER | C32: 1482.85 | D32: 1493.98 | E32: 1453.97 | F32: 1425.08 | G32: 1385.07 | H32: 1522.87 | I32: 1562.88 | J32: 1591.77 | K32: 1534 | L32: 1465.1 | M32: 0.55889
A33: 23 | B33: AMBUJACEM | C33: 213.6 | D33: 213.23 | E33: 210.42 | F33: 207.23 | G33: 204.42 | H33: 216.42 | I33: 219.23 | J33: 222.42 | K33: 216.05 | L33: 210.05 | M33: 60.34979
A34: 24 | B34: APLAPOLLO | C34: 1995.6 | D34: 2005.20 | E34: 1980.50 | F34: 1965.40 | G34: 1940.70 | H34: 2020.30 | I34: 2045.00 | J34: 2060.10 | K34: 2029.9 | L34: 1990.1 | M34: 0.8701
A35: 25 | B35: APLLTD | C35: 647.55 | D35: 652.20 | E35: 640.40 | F35: 633.25 | G35: 621.45 | H35: 659.35 | I35: 671.15 | J35: 678.30 | K35: 664 | L35: 645.05 | M35: 1.50491
A36: 26 | B36: APOLLOHOSP | C36: 1767.2 | D36: 1775.72 | E36: 1754.48 | F36: 1741.77 | G36: 1720.53 | H36: 1788.43 | I36: 1809.67 | J36: 1822.38 | K36: 1796.95 | L36: 1763 | M36: 4.94854
A37: 27 | B37: APOLLOTYRE | C37: 148.7 | D37: 151.03 | E37: 144.07 | F37: 139.43 | G37: 132.47 | H37: 155.67 | I37: 162.63 | J37: 167.27 | K37: 158 | L37: 146.4 | M37: 80.17307
A38: 28 | B38: ARVINDFASN | C38: 358.7 | D38: 354.90 | E38: 348.85 | F38: 339.00 | G38: 332.95 | H38: 364.75 | I38: 370.80 | J38: 380.65 | K38: 360.95 | L38: 345.05 | M38: 0.54174
A39: 29 | B39: ASAHIINDIA | C39: 256.2 | D39: 255.53 | E39: 250.12 | F39: 244.03 | G39: 238.62 | H39: 261.62 | I39: 267.03 | J39: 273.12 | K39: 260.95 | L39: 249.45 | M39: 0.7101
A40: 30 | B40: ASHOKA | C40: 92.9 | D40: 92.28 | E40: 91.17 | F40: 89.43 | G40: 88.32 | H40: 94.02 | I40: 95.13 | J40: 96.87 | K40: 93.4 | L40: 90.55 | M40: 1.83003
A41: 31 | B41: ASHOKLEY | C41: 77.95 | D41: 79.15 | E41: 76.40 | F41: 74.85 | G41: 72.10 | H41: 80.70 | I41: 83.45 | J41: 85.00 | K41: 81.9 | L41: 77.6 | M41: 329.81809
A42: 32 | B42: ASIANPAINT | C42: 1826.65 | D42: 1830.55 | E42: 1816.10 | F42: 1805.55 | G42: 1791.10 | H42: 1841.10 | I42: 1855.55 | J42: 1866.10 | K42: 1845 | L42: 1820 | M42: 19.09619
A43: 33 | B43: ASTERDM | C43: 167.55 | D43: 167.63 | E43: 165.27 | F43: 162.98 | G43: 160.62 | H43: 169.92 | I43: 172.28 | J43: 174.57 | K43: 170 | L43: 165.35 | M43: 0.73584
A44: 34 | B44: ASTRAL | C44: 1175.3 | D44: 1179.80 | E44: 1166.65 | F44: 1158.00 | G44: 1144.85 | H44: 1188.45 | I44: 1201.60 | J44: 1210.25 | K44: 1192.95 | L44: 1171.15 | M44: 0.71818
A45: 35 | B45: ASTRAZEN | C45: 2662.15 | D45: 2690.72 | E45: 2621.43 | F45: 2580.72 | G45: 2511.43 | H45: 2731.43 | I45: 2800.72 | J45: 2841.43 | K45: 2760 | L45: 2650 | M45: 0.15886
A46: 36 | B46: ATUL | C46: 4890.45 | D46: 4901.83 | E46: 4833.67 | F46: 4776.88 | G46: 4708.72 | H46: 4958.62 | I46: 5026.78 | J46: 5083.57 | K46: 4970 | L46: 4845.05 | M46: 0.33592
A47: 37 | B47: AUBANK | C47: 1178.95 | D47: 1133.02 | E47: 1065.03 | F47: 951.12 | G47: 883.13 | H47: 1246.93 | I47: 1314.92 | J47: 1428.83 | K47: 1201 | L47: 1019.1 | M47: 9.58992
A48: 38 | B48: AUROPHARMA | C48: 510 | D48: 511.33 | E48: 502.67 | F48: 495.33 | G48: 486.67 | H48: 518.67 | I48: 527.33 | J48: 534.67 | K48: 520 | L48: 504 | M48: 70.1276
A49: 39 | B49: AVANTIFEED | C49: 514.5 | D49: 519.48 | E49: 505.02 | F49: 495.53 | G49: 481.07 | H49: 528.97 | I49: 543.43 | J49: 552.92 | K49: 533.95 | L49: 510 | M49: 5.33848
A50: 40 | B50: AXISBANK | C50: 729.4 | D50: 729.05 | E50: 722.35 | F50: 715.30 | G50: 708.60 | H50: 736.10 | I50: 742.80 | J50: 749.85 | K50: 735.75 | L50: 722 | M50: 71.36975
A51: 41 | B51: BAJAJ-AUTO | C51: 2946.6 | D51: 2946.87 | E51: 2919.73 | F51: 2892.87 | G51: 2865.73 | H51: 2973.73 | I51: 3000.87 | J51: 3027.73 | K51: 2974 | L51: 2920 | M51: 4.45577
A52: 42 | B52: BAJAJCON | C52: 187.3 | D52: 187.10 | E52: 184.20 | F52: 181.10 | G52: 178.20 | H52: 190.20 | I52: 193.10 | J52: 196.20 | K52: 190 | L52: 184 | M52: 2.86981
A53: 43 | B53: BAJAJELEC | C53: 436.35 | D53: 437.85 | E53: 429.80 | F53: 423.25 | G53: 415.20 | H53: 444.40 | I53: 452.45 | J53: 459.00 | K53: 445.9 | L53: 431.3 | M53: 1.84482
A54: 44 | B54: BAJAJFINSV | C54: 9387 | D54: 9413.97 | E54: 9333.03 | F54: 9279.07 | G54: 9198.13 | H54: 9467.93 | I54: 9548.87 | J54: 9602.83 | K54: 9494.9 | L54: 9360 | M54: 1.75517
A55: 45 | B55: BAJAJHLDNG | C55: 3483 | D55: 3532.00 | E55: 3416.00 | F55: 3349.00 | G55: 3233.00 | H55: 3599.00 | I55: 3715.00 | J55: 3782.00 | K55: 3648 | L55: 3465 | M55: 0.53905
A56: 46 | B56: BAJFINANCE | C56: 4810 | D56: 4805.00 | E56: 4772.25 | F56: 4734.50 | G56: 4701.75 | H56: 4842.75 | I56: 4875.50 | J56: 4913.25 | K56: 4837.75 | L56: 4767.25 | M56: 8.51346
A57: 47 | B57: BALKRISIND | C57: 1186.3 | D57: 1192.48 | E57: 1174.97 | F57: 1163.63 | G57: 1146.12 | H57: 1203.82 | I57: 1221.33 | J57: 1232.67 | K57: 1210 | L57: 1181.15 | M57: 9.55428
A58: 48 | B58: BALMLAWRIE | C58: 106 | D58: 106.57 | E58: 105.13 | F58: 104.27 | G58: 102.83 | H58: 107.43 | I58: 108.87 | J58: 109.73 | K58: 108 | L58: 105.7 | M58: 1.06505
A59: 49 | B59: BALRAMCHIN | C59: 151.6 | D59: 153.48 | E59: 148.97 | F59: 146.33 | G59: 141.82 | H59: 156.12 | I59: 160.63 | J59: 163.27 | K59: 158 | L59: 150.85 | M59: 10.33308
A60: 50 | B60: BANDHANBNK | C60: 394.1 | D60: 402.80 | E60: 382.60 | F60: 371.10 | G60: 350.90 | H60: 414.30 | I60: 434.50 | J60: 446.00 | K60: 423 | L60: 391.3 | M60: 72.23093
A61: 51 | B61: BANKBARODA | C61: 80.2 | D61: 80.10 | E61: 79.15 | F61: 78.10 | G61: 77.15 | H61: 81.15 | I61: 82.10 | J61: 83.15 | K61: 81.05 | L61: 79.05 | M61: 155.84386
A62: 52 | B62: BANKINDIA | C62: 56.9 | D62: 57.17 | E62: 56.28 | F62: 55.67 | G62: 54.78 | H62: 57.78 | I62: 58.67 | J62: 59.28 | K62: 58.05 | L62: 56.55 | M62: 12.83896
A63: 53 | B63: BASF | C63: 940.95 | D63: 901.37 | E63: 848.73 | F63: 756.52 | G63: 703.88 | H63: 993.58 | I63: 1046.22 | J63: 1138.43 | K63: 954 | L63: 809.15 | M63: 4.36542
A64: 54 | B64: BATAINDIA | C64: 1676.85 | D64: 1685.47 | E64: 1659.03 | F64: 1641.22 | G64: 1614.78 | H64: 1703.28 | I64: 1729.72 | J64: 1747.53 | K64: 1711.9 | L64: 1667.65 | M64: 7.44063
A65: 55 | B65: BAYERCROP | C65: 4457.7 | D65: 4482.57 | E65: 4405.13 | F65: 4352.57 | G65: 4275.13 | H65: 4535.13 | I65: 4612.57 | J65: 4665.13 | K65: 4560 | L65: 4430 | M65: 0.37471
A66: 56 | B66: BBTC | C66: 1099.45 | D66: 1088.12 | E66: 1066.43 | F66: 1033.42 | G66: 1011.73 | H66: 1121.13 | I66: 1142.82 | J66: 1175.83 | K66: 1109.8 | L66: 1055.1 | M66: 0.70895
A67: 57 | B67: BDL | C67: 280.15 | D67: 281.83 | E67: 276.32 | F67: 272.48 | G67: 266.97 | H67: 285.67 | I67: 291.18 | J67: 295.02 | K67: 287.35 | L67: 278 | M67: 0.43911
A68: 58 | B68: BEL | C68: 80.3 | D68: 80.77 | E68: 78.83 | F68: 77.37 | G68: 75.43 | H68: 82.23 | I68: 84.17 | J68: 85.63 | K68: 82.7 | L68: 79.3 | M68: 65.12548
A69: 59 | B69: BEML | C69: 820.35 | D69: 827.45 | E69: 809.90 | F69: 799.45 | G69: 781.90 | H69: 837.90 | I69: 855.45 | J69: 865.90 | K69: 845 | L69: 817 | M69: 2.29225
A70: 60 | B70: BERGEPAINT | C70: 567 | D70: 568.47 | E70: 563.58 | F70: 560.17 | G70: 555.28 | H70: 571.88 | I70: 576.77 | J70: 580.18 | K70: 573.35 | L70: 565.05 | M70: 7.92167
A71: 61 | B71: BHARATFORG | C71: 458.3 | D71: 458.70 | E71: 452.25 | F71: 446.20 | G71: 439.75 | H71: 464.75 | I71: 471.20 | J71: 477.25 | K71: 465.15 | L71: 452.65 | M71: 13.82554
A72: 62 | B72: BHARTIARTL | C72: 535.95 | D72: 531.88 | E72: 524.37 | F72: 512.78 | G72: 505.27 | H72: 543.47 | I72: 550.98 | J72: 562.57 | K72: 539.4 | L72: 520.3 | M72: 186.1573
A73: 63 | B73: BHEL | C73: 33.25 | D73: 33.43 | E73: 32.92 | F73: 32.58 | G73: 32.07 | H73: 33.77 | I73: 34.28 | J73: 34.62 | K73: 33.95 | L73: 33.1 | M73: 134.62112
A74: 64 | B74: BIOCON | C74: 298.75 | D74: 301.37 | E74: 295.03 | F74: 291.32 | G74: 284.98 | H74: 305.08 | I74: 311.42 | J74: 315.13 | K74: 307.7 | L74: 297.65 | M74: 49.64185
A75: 65 | B75: BIRLACORPN | C75: 723.8 | D75: 724.87 | E75: 704.93 | F75: 686.07 | G75: 666.13 | H75: 743.73 | I75: 763.67 | J75: 782.53 | K75: 744.8 | L75: 706 | M75: 0.89441
A76: 66 | B76: BLISSGVS | C76: 128.15 | D76: 130.38 | E76: 122.37 | F76: 116.58 | G76: 108.57 | H76: 136.17 | I76: 144.18 | J76: 149.97 | K76: 138.4 | L76: 124.6 | M76: 3.83998
A77: 67 | B77: BLUEDART | C77: 2856 | D77: 2841.63 | E77: 2789.37 | F77: 2722.73 | G77: 2670.47 | H77: 2908.27 | I77: 2960.53 | J77: 3027.17 | K77: 2893.9 | L77: 2775 | M77: 0.05088
A78: 68 | B78: BLUESTARCO | C78: 846 | D78: 839.12 | E78: 829.23 | F78: 812.47 | G78: 802.58 | H78: 855.88 | I78: 865.77 | J78: 882.53 | K78: 849 | L78: 822.35 | M78: 0.54424
A79: 69 | B79: BOMDYEING | C79: 75.8 | D79: 76.45 | E79: 74.60 | F79: 73.40 | G79: 71.55 | H79: 77.65 | I79: 79.50 | J79: 80.70 | K79: 78.3 | L79: 75.25 | M79: 15.36121
A80: 70 | B80: BOSCHLTD | C80: 13290.65 | D80: 13449.15 | E80: 13063.55 | F80: 12836.45 | G80: 12450.85 | H80: 13676.25 | I80: 14061.85 | J80: 14288.95 | K80: 13834.75 | L80: 13222.05 | M80: 0.14261
A81: 71 | B81: BPCL | C81: 448.8 | D81: 450.52 | E81: 441.48 | F81: 434.17 | G81: 425.13 | H81: 457.83 | I81: 466.87 | J81: 474.18 | K81: 459.55 | L81: 443.2 | M81: 72.45545
A82: 72 | B82: BRIGADE | C82: 236.15 | D82: 234.33 | E82: 229.92 | F82: 223.68 | G82: 219.27 | H82: 240.57 | I82: 244.98 | J82: 251.22 | K82: 238.75 | L82: 228.1 | M82: 2.04906
A83: 73 | B83: BRITANNIA | C83: 3041.35 | D83: 3042.65 | E83: 3015.40 | F83: 2989.45 | G83: 2962.20 | H83: 3068.60 | I83: 3095.85 | J83: 3121.80 | K83: 3069.9 | L83: 3016.7 | M83: 3.66302
A84: 74 | B84: BSE | C84: 497.05 | D84: 499.02 | E84: 493.03 | F84: 489.02 | G84: 483.03 | H84: 503.03 | I84: 509.02 | J84: 513.03 | K84: 505 | L84: 495 | M84: 0.88036
A85: 75 | B85: BSOFT | C85: 97.95 | D85: 98.80 | E85: 95.95 | F85: 93.95 | G85: 91.10 | H85: 100.80 | I85: 103.65 | J85: 105.65 | K85: 101.65 | L85: 96.8 | M85: 19.77583
A86: 76 | B86: CADILAHC | C86: 262.85 | D86: 265.48 | E86: 259.37 | F86: 255.88 | G86: 249.77 | H86: 268.97 | I86: 275.08 | J86: 278.57 | K86: 271.6 | L86: 262 | M86: 11.72207
A87: 77 | B87: CANBK | C87: 159.9 | D87: 160.70 | E87: 158.30 | F87: 156.70 | G87: 154.30 | H87: 162.30 | I87: 164.70 | J87: 166.30 | K87: 163.1 | L87: 159.1 | M87: 69.50126
A88: 78 | B88: CANFINHOME | C88: 507.9 | D88: 507.63 | E88: 505.27 | F88: 502.63 | G88: 500.27 | H88: 510.27 | I88: 512.63 | J88: 515.27 | K88: 510 | L88: 505 | M88: 1.83689
A89: 79 | B89: CAPLIPOINT | C89: 320.1 | D89: 321.07 | E89: 314.23 | F89: 308.37 | G89: 301.53 | H89: 326.93 | I89: 333.77 | J89: 339.63 | K89: 327.9 | L89: 315.2 | M89: 0.72597
A90: 80 | B90: CARBORUNIV | C90: 335.1 | D90: 337.98 | E90: 329.47 | F90: 323.83 | G90: 315.32 | H90: 343.62 | I90: 352.13 | J90: 357.77 | K90: 346.5 | L90: 332.35 | M90: 0.62229
A91: 81 | B91: CARERATING | C91: 494.65 | D91: 499.42 | E91: 485.73 | F91: 476.82 | G91: 463.13 | H91: 508.33 | I91: 522.02 | J91: 530.93 | K91: 513.1 | L91: 490.5 | M91: 0.98433
A92: 82 | B92: CASTROLIND | C92: 153.5 | D92: 154.12 | E92: 150.73 | F92: 147.97 | G92: 144.58 | H92: 156.88 | I92: 160.27 | J92: 163.03 | K92: 157.5 | L92: 151.35 | M92: 12.49868
A93: 83 | B93: CCL | C93: 236.5 | D93: 236.95 | E93: 230.20 | F93: 223.90 | G93: 217.15 | H93: 243.25 | I93: 250.00 | J93: 256.30 | K93: 243.7 | L93: 230.65 | M93: 2.64785
A94: 84 | B94: CDSL | C94: 283.95 | D94: 284.77 | E94: 279.53 | F94: 275.12 | G94: 269.88 | H94: 289.18 | I94: 294.42 | J94: 298.83 | K94: 290 | L94: 280.35 | M94: 8.52357
A95: 85 | B95: CEATLTD | C95: 1008.3 | D95: 1015.45 | E95: 986.20 | F95: 964.10 | G95: 934.85 | H95: 1037.55 | I95: 1066.80 | J95: 1088.90 | K95: 1044.7 | L95: 993.35 | M95: 0.82981
A96: 86 | B96: CENTRALBK | C96: 16.15 | D96: 16.22 | E96: 15.98 | F96: 15.82 | G96: 15.58 | H96: 16.38 | I96: 16.62 | J96: 16.78 | K96: 16.45 | L96: 16.05 | M96: 3.48873
A97: 87 | B97: CENTURYPLY | C97: 156.45 | D97: 155.60 | E97: 153.85 | F97: 151.25 | G97: 149.50 | H97: 158.20 | I97: 159.95 | J97: 162.55 | K97: 157.35 | L97: 153 | M97: 1.38132
A98: 88 | B98: CERA | C98: 2443.6 | D98: 2436.55 | E98: 2417.05 | F98: 2390.50 | G98: 2371.00 | H98: 2463.10 | I98: 2482.60 | J98: 2509.15 | K98: 2456.05 | L98: 2410 | M98: 0.03812
A99: 89 | B99: CESC | C99: 669.1 | D99: 673.68 | E99: 662.02 | F99: 654.93 | G99: 643.27 | H99: 680.77 | I99: 692.43 | J99: 699.52 | K99: 685.35 | L99: 666.6 | M99: 1.3002
A100: 90 | B100: CGCL | C100: 209.85 | D100: 206.82 | E100: 201.63 | F100: 193.42 | G100: 188.23 | H100: 215.03 | I100: 220.22 | J100: 228.43 | K100: 212 | L100: 198.6 | M100: 3.39369
A101: 91 | B101: CHALET | C101: 329 | D101: 329.27 | E101: 323.33 | F101: 317.67 | G101: 311.73 | H101: 334.93 | I101: 340.87 | J101: 346.53 | K101: 335.2 | L101: 323.6 | M101: 0.92517
A102: 92 | B102: CHAMBLFERT | C102: 150.2 | D102: 150.85 | E102: 148.05 | F102: 145.90 | G102: 143.10 | H102: 153.00 | I102: 155.80 | J102: 157.95 | K102: 153.65 | L102: 148.7 | M102: 4.05579
A103: 93 | B103: CHENNPETRO | C103: 109.7 | D103: 110.48 | E103: 108.47 | F103: 107.23 | G103: 105.22 | H103: 111.72 | I103: 113.73 | J103: 114.97 | K103: 112.5 | L103: 109.25 | M103: 1.06638
A104: 94 | B104: CHOLAFIN | C104: 318.1 | D104: 318.73 | E104: 312.27 | F104: 306.43 | G104: 299.97 | H104: 324.57 | I104: 331.03 | J104: 336.87 | K104: 325.2 | L104: 312.9 | M104: 10.60934
A105: 95 | B105: CHOLAHLDNG | C105: 543.05 | D105: 542.00 | E105: 539.00 | F105: 534.95 | G105: 531.95 | H105: 546.05 | I105: 549.05 | J105: 553.10 | K105: 545 | L105: 537.95 | M105: 5.35557
A106: 96 | B106: CIPLA | C106: 422.2 | D106: 417.67 | E106: 410.33 | F106: 398.47 | G106: 391.13 | H106: 429.53 | I106: 436.87 | J106: 448.73 | K106: 425 | L106: 405.8 | M106: 80.68909
A107: 97 | B107: COALINDIA | C107: 173.8 | D107: 174.73 | E107: 171.72 | F107: 169.63 | G107: 166.62 | H107: 176.82 | I107: 179.83 | J107: 181.92 | K107: 177.75 | L107: 172.65 | M107: 109.25243
A108: 98 | B108: COCHINSHIP | C108: 344.75 | D108: 348.93 | E108: 337.97 | F108: 331.18 | G108: 320.22 | H108: 355.72 | I108: 366.68 | J108: 373.47 | K108: 359.9 | L108: 342.15 | M108: 9.71292
A109: 99 | B109: COLPAL | C109: 1325.8 | D109: 1328.72 | E109: 1312.63 | F109: 1299.47 | G109: 1283.38 | H109: 1341.88 | I109: 1357.97 | J109: 1371.13 | K109: 1344.8 | L109: 1315.55 | M109: 4.00747
A110: 100 | B110: CONCOR | C110: 515.8 | D110: 522.72 | E110: 503.23 | F110: 490.67 | G110: 471.18 | H110: 535.28 | I110: 554.77 | J110: 567.33 | K110: 542.2 | L110: 510.15 | M110: 16.84463
A111: 101 | B111: COROMANDEL | C111: 612.2 | D111: 613.30 | E111: 604.70 | F111: 597.20 | G111: 588.60 | H111: 620.80 | I111: 629.40 | J111: 636.90 | K111: 621.9 | L111: 605.8 | M111: 2.10506
A112: 102 | B112: CREDITACC | C112: 935.85 | D112: 942.58 | E112: 925.27 | F112: 914.68 | G112: 897.37 | H112: 953.17 | I112: 970.48 | J112: 981.07 | K112: 959.9 | L112: 932 | M112: 0.97678
A113: 103 | B113: CRISIL | C113: 1569.25 | D113: 1588.53 | E113: 1530.72 | F113: 1492.18 | G113: 1434.37 | H113: 1627.07 | I113: 1684.88 | J113: 1723.42 | K113: 1646.35 | L113: 1550 | M113: 0.52409
A114: 104 | B114: CROMPTON | C114: 287.6 | D114: 285.80 | E114: 282.45 | F114: 277.30 | G114: 273.95 | H114: 290.95 | I114: 294.30 | J114: 299.45 | K114: 289.15 | L114: 280.65 | M114: 6.73356
A115: 105 | B115: CUB | C115: 217.5 | D115: 218.17 | E115: 216.33 | F115: 215.17 | G115: 213.33 | H115: 219.33 | I115: 221.17 | J115: 222.33 | K115: 220 | L115: 217 | M115: 6.65945
A116: 106 | B116: CUMMINSIND | C116: 533.35 | D116: 534.62 | E116: 525.73 | F116: 518.12 | G116: 509.23 | H116: 542.23 | I116: 551.12 | J116: 558.73 | K116: 543.5 | L116: 527 | M116: 4.15081
A117: 107 | B117: CYIENT | C117: 430.15 | D117: 432.07 | E117: 424.13 | F117: 418.12 | G117: 410.18 | H117: 438.08 | I117: 446.02 | J117: 452.03 | K117: 440 | L117: 426.05 | M117: 5.51065
A118: 108 | B118: DABUR | C118: 501.95 | D118: 502.07 | E118: 497.13 | F118: 492.32 | G118: 487.38 | H118: 506.88 | I118: 511.82 | J118: 516.63 | K118: 507 | L118: 497.25 | M118: 27.75398
A119: 109 | B119: DALBHARAT | C119: 802.3 | D119: 809.10 | E119: 793.20 | F119: 784.10 | G119: 768.20 | H119: 818.20 | I119: 834.10 | J119: 843.20 | K119: 825 | L119: 800 | M119: 1.00626
A120: 110 | B120: DBCORP | C120: 118.45 | D120: 117.73 | E120: 115.72 | F120: 112.98 | G120: 110.97 | H120: 120.47 | I120: 122.48 | J120: 125.22 | K120: 119.75 | L120: 115 | M120: 0.47074
A121: 111 | B121: DBL | C121: 330.05 | D121: 331.38 | E121: 326.67 | F121: 323.28 | G121: 318.57 | H121: 334.77 | I121: 339.48 | J121: 342.87 | K121: 336.1 | L121: 328 | M121: 2.02488
A122: 112 | B122: DCAL | C122: 84.45 | D122: 84.45 | E122: 81.50 | F122: 78.55 | G122: 75.60 | H122: 87.40 | I122: 90.35 | J122: 93.30 | K122: 87.4 | L122: 81.5 | M122: 3.98221
A123: 113 | B123: DCBBANK | C123: 162 | D123: 162.13 | E123: 159.27 | F123: 156.53 | G123: 153.67 | H123: 164.87 | I123: 167.73 | J123: 170.47 | K123: 165 | L123: 159.4 | M123: 4.57335
A124: 114 | B124: DCMSHRIRAM | C124: 339.65 | D124: 339.67 | E124: 335.48 | F124: 331.32 | G124: 327.13 | H124: 343.83 | I124: 348.02 | J124: 352.18 | K124: 343.85 | L124: 335.5 | M124: 0.56819
A125: 115 | B125: DEEPAKNTR | C125: 501.45 | D125: 506.08 | E125: 491.37 | F125: 481.28 | G125: 466.57 | H125: 516.17 | I125: 530.88 | J125: 540.97 | K125: 520.8 | L125: 496 | M125: 20.54528
A126: 116 | B126: DELTACORP | C126: 154.4 | D126: 154.35 | E126: 151.10 | F126: 147.80 | G126: 144.55 | H126: 157.65 | I126: 160.90 | J126: 164.20 | K126: 157.6 | L126: 151.05 | M126: 13.33652
A127: 117 | B127: DHFL | C127: 12.95 | D127: 12.95 | E127: 12.95 | F127: 12.95 | G127: 12.95 | H127: 12.95 | I127: 12.95 | J127: 12.95 | K127: 12.95 | L127: 12.95 | M127: 5.1697
A128: 118 | B128: DISHTV | C128: 9.9 | D128: 10.00 | E128: 9.70 | F128: 9.50 | G128: 9.20 | H128: 10.20 | I128: 10.50 | J128: 10.70 | K128: 10.3 | L128: 9.8 | M128: 95.80311
A129: 119 | B129: DIVISLAB | C129: 2142.1 | D129: 2132.05 | E129: 2101.15 | F129: 2060.20 | G129: 2029.30 | H129: 2173.00 | I129: 2203.90 | J129: 2244.85 | K129: 2162.95 | L129: 2091.1 | M129: 5.78955
A130: 120 | B130: DIXON | C130: 4041.45 | D130: 4063.60 | E130: 3980.05 | F130: 3918.65 | G130: 3835.10 | H130: 4125.00 | I130: 4208.55 | J130: 4269.95 | K130: 4147.15 | L130: 4002.2 | M130: 0.47909
A131: 121 | B131: DLF | C131: 212.45 | D131: 213.58 | E131: 209.47 | F131: 206.48 | G131: 202.37 | H131: 216.57 | I131: 220.68 | J131: 223.67 | K131: 217.7 | L131: 210.6 | M131: 60.37598
A132: 122 | B132: DMART | C132: 2358.4 | D132: 2360.82 | E132: 2302.63 | F132: 2246.87 | G132: 2188.68 | H132: 2416.58 | I132: 2474.77 | J132: 2530.53 | K132: 2419 | L132: 2305.05 | M132: 13.02206
A133: 123 | B133: DRREDDY | C133: 3075.35 | D133: 3083.72 | E133: 3051.93 | F133: 3028.52 | G133: 2996.73 | H133: 3107.13 | I133: 3138.92 | J133: 3162.33 | K133: 3115.5 | L133: 3060.3 | M133: 7.62169
A134: 124 | B134: ECLERX | C134: 588.55 | D134: 597.75 | E134: 577.80 | F134: 567.05 | G134: 547.10 | H134: 608.50 | I134: 628.45 | J134: 639.20 | K134: 617.7 | L134: 587 | M134: 0.27696
A135: 125 | B135: EDELWEISS | C135: 97.15 | D135: 97.57 | E135: 94.33 | F135: 91.52 | G135: 88.28 | H135: 100.38 | I135: 103.62 | J135: 106.43 | K135: 100.8 | L135: 94.75 | M135: 27.41309
A136: 126 | B136: EICHERMOT | C136: 17156.95 | D136: 17264.12 | E136: 16928.23 | F136: 16699.52 | G136: 16363.63 | H136: 17492.83 | I136: 17828.72 | J136: 18057.43 | K136: 17600 | L136: 17035.4 | M136: 2.15113
A137: 127 | B137: EIDPARRY | C137: 196.05 | D137: 195.58 | E137: 192.17 | F137: 188.28 | G137: 184.87 | H137: 199.47 | I137: 202.88 | J137: 206.77 | K137: 199 | L137: 191.7 | M137: 1.344
A138: 128 | B138: EIHOTEL | C138: 135.35 | D138: 136.02 | E138: 133.93 | F138: 132.52 | G138: 130.43 | H138: 137.43 | I138: 139.52 | J138: 140.93 | K138: 138.1 | L138: 134.6 | M138: 0.32222
A139: 129 | B139: ELGIEQUIP | C139: 215.2 | D139: 215.88 | E139: 211.32 | F139: 207.43 | G139: 202.87 | H139: 219.77 | I139: 224.33 | J139: 228.22 | K139: 220.45 | L139: 212 | M139: 0.88698
A140: 130 | B140: EMAMILTD | C140: 270.3 | D140: 270.93 | E140: 263.37 | F140: 256.43 | G140: 248.87 | H140: 277.87 | I140: 285.43 | J140: 292.37 | K140: 278.5 | L140: 264 | M140: 4.79077
A141: 131 | B141: ENDURANCE | C141: 974.35 | D141: 977.78 | E141: 956.57 | F141: 938.78 | G141: 917.57 | H141: 995.57 | I141: 1016.78 | J141: 1034.57 | K141: 999 | L141: 960 | M141: 0.22198
A142: 132 | B142: ENGINERSIN | C142: 74.95 | D142: 76.70 | E142: 72.75 | F142: 70.55 | G142: 66.60 | H142: 78.90 | I142: 82.85 | J142: 85.05 | K142: 80.65 | L142: 74.5 | M142: 15.64697
A143: 133 | B143: EQUITAS | C143: 114.45 | D143: 114.63 | E143: 113.32 | F143: 112.18 | G143: 110.87 | H143: 115.77 | I143: 117.08 | J143: 118.22 | K143: 115.95 | L143: 113.5 | M143: 41.63094
A144: 134 | B144: ERIS | C144: 413.35 | D144: 416.65 | E144: 401.80 | F144: 390.25 | G144: 375.40 | H144: 428.20 | I144: 443.05 | J144: 454.60 | K144: 431.5 | L144: 405.1 | M144: 0.28392
A145: 135 | B145: ESCORTS | C145: 827.85 | D145: 828.62 | E145: 817.78 | F145: 807.72 | G145: 796.88 | H145: 838.68 | I145: 849.52 | J145: 859.58 | K145: 839.45 | L145: 818.55 | M145: 24.03134
A146: 136 | B146: ESSELPACK | C146: 188.25 | D146: 188.70 | E146: 185.95 | F146: 183.65 | G146: 180.90 | H146: 191.00 | I146: 193.75 | J146: 196.05 | K146: 191.45 | L146: 186.4 | M146: 1.25856
A147: 137 | B147: EXIDEIND | C147: 170.1 | D147: 170.83 | E147: 167.27 | F147: 164.43 | G147: 160.87 | H147: 173.67 | I147: 177.23 | J147: 180.07 | K147: 174.4 | L147: 168 | M147: 32.01542
A148: 138 | B148: FCONSUMER | C148: 16.65 | D148: 16.92 | E148: 16.03 | F148: 15.42 | G148: 14.53 | H148: 17.53 | I148: 18.42 | J148: 19.03 | K148: 17.8 | L148: 16.3 | M148: 58.95168
A149: 139 | B149: FDC | C149: 247.55 | D149: 251.08 | E149: 241.47 | F149: 235.38 | G149: 225.77 | H149: 257.17 | I149: 266.78 | J149: 272.87 | K149: 260.7 | L149: 245 | M149: 1.10208
A150: 140 | B150: FEDERALBNK | C150: 85.05 | D150: 85.25 | E150: 84.40 | F150: 83.75 | G150: 82.90 | H150: 85.90 | I150: 86.75 | J150: 87.40 | K150: 86.1 | L150: 84.6 | M150: 41.61156
A151: 141 | B151: FINCABLES | C151: 347.8 | D151: 350.35 | E151: 344.00 | F151: 340.20 | G151: 333.85 | H151: 354.15 | I151: 360.50 | J151: 364.30 | K151: 356.7 | L151: 346.55 | M151: 0.43042
A152: 142 | B152: FINEORG | C152: 2241.65 | D152: 2248.57 | E152: 2213.13 | F152: 2184.62 | G152: 2149.18 | H152: 2277.08 | I152: 2312.52 | J152: 2341.03 | K152: 2284 | L152: 2220.05 | M152: 0.25109
A153: 143 | B153: FINPIPE | C153: 553.4 | D153: 552.57 | E153: 548.93 | F153: 544.47 | G153: 540.83 | H153: 557.03 | I153: 560.67 | J153: 565.13 | K153: 556.2 | L153: 548.1 | M153: 0.12385
A154: 144 | B154: FLFL | C154: 363.95 | D154: 362.70 | E154: 351.85 | F154: 339.75 | G154: 328.90 | H154: 374.80 | I154: 385.65 | J154: 397.75 | K154: 373.55 | L154: 350.6 | M154: 0.36547
A155: 145 | B155: FMGOETZE | C155: 554.3 | D155: 548.43 | E155: 540.87 | F155: 527.43 | G155: 519.87 | H155: 561.87 | I155: 569.43 | J155: 582.87 | K155: 556 | L155: 535 | M155: 0.01157
A156: 146 | B156: FORTIS | C156: 156.7 | D156: 156.68 | E156: 153.12 | F156: 149.53 | G156: 145.97 | H156: 160.27 | I156: 163.83 | J156: 167.42 | K156: 160.25 | L156: 153.1 | M156: 20.99578
A157: 147 | B157: FRETAIL | C157: 321.25 | D157: 322.45 | E157: 315.40 | F157: 309.55 | G157: 302.50 | H157: 328.30 | I157: 335.35 | J157: 341.20 | K157: 329.5 | L157: 316.6 | M157: 14.13474
A158: 148 | B158: FSL | C158: 45.65 | D158: 45.52 | E158: 44.83 | F158: 44.02 | G158: 43.33 | H158: 46.33 | I158: 47.02 | J158: 47.83 | K158: 46.2 | L158: 44.7 | M158: 12.6151
A159: 149 | B159: GAIL | C159: 108.05 | D159: 109.92 | E159: 105.73 | F159: 103.42 | G159: 99.23 | H159: 112.23 | I159: 116.42 | J159: 118.73 | K159: 114.1 | L159: 107.6 | M159: 180.72839
A160: 150 | B160: GALAXYSURF | C160: 1627.35 | D160: 1621.52 | E160: 1578.03 | F160: 1528.72 | G160: 1485.23 | H160: 1670.83 | I160: 1714.32 | J160: 1763.63 | K160: 1665 | L160: 1572.2 | M160: 0.17682
A161: 151 | B161: GARFIBRES | C161: 1645.3 | D161: 1618.48 | E161: 1571.92 | F161: 1498.53 | G161: 1451.97 | H161: 1691.87 | I161: 1738.43 | J161: 1811.82 | K161: 1665.05 | L161: 1545.1 | M161: 0.23112
A162: 152 | B162: GAYAPROJ | C162: 21.75 | D162: 21.75 | E162: 21.75 | F162: 21.75 | G162: 21.75 | H162: 21.75 | I162: 21.75 | J162: 21.75 | K162: 21.75 | L162: 21.75 | M162: 0.32756
A163: 153 | B163: GEPIL | C163: 726.5 | D163: 730.65 | E163: 715.85 | F163: 705.20 | G163: 690.40 | H163: 741.30 | I163: 756.10 | J163: 766.75 | K163: 745.45 | L163: 720 | M163: 0.09288
A164: 154 | B164: GESHIP | C164: 258.55 | D164: 258.87 | E164: 250.73 | F164: 242.92 | G164: 234.78 | H164: 266.68 | I164: 274.82 | J164: 282.63 | K164: 267 | L164: 251.05 | M164: 3.24259
A165: 155 | B165: GET&D | C165: 129 | D165: 128.82 | E165: 126.23 | F165: 123.47 | G165: 120.88 | H165: 131.58 | I165: 134.17 | J165: 136.93 | K165: 131.4 | L165: 126.05 | M165: 0.38505
A166: 156 | B166: GHCL | C166: 178.45 | D166: 176.80 | E166: 173.10 | F166: 167.75 | G166: 164.05 | H166: 182.15 | I166: 185.85 | J166: 191.20 | K166: 180.5 | L166: 171.45 | M166: 7.88188
A167: 157 | B167: GICRE | C167: 190.05 | D167: 191.92 | E167: 185.18 | F167: 180.32 | G167: 173.58 | H167: 196.78 | I167: 203.52 | J167: 208.38 | K167: 198.65 | L167: 187.05 | M167: 3.75679
A168: 158 | B168: GILLETTE | C168: 5832.85 | D168: 5844.43 | E168: 5788.92 | F168: 5744.98 | G168: 5689.47 | H168: 5888.37 | I168: 5943.88 | J168: 5987.82 | K168: 5899.95 | L168: 5800.5 | M168: 0.03262
A169: 159 | B169: GLAXO | C169: 1355.95 | D169: 1363.97 | E169: 1331.98 | F169: 1308.02 | G169: 1276.03 | H169: 1387.93 | I169: 1419.92 | J169: 1443.88 | K169: 1395.95 | L169: 1340 | M169: 0.81279
A170: 160 | B170: GLENMARK | C170: 295.9 | D170: 297.93 | E170: 291.97 | F170: 288.03 | G170: 282.07 | H170: 301.87 | I170: 307.83 | J170: 311.77 | K170: 303.9 | L170: 294 | M170: 48.9679
A171: 161 | B171: GMDCLTD | C171: 53.9 | D171: 54.37 | E171: 53.08 | F171: 52.27 | G171: 50.98 | H171: 55.18 | I171: 56.47 | J171: 57.28 | K171: 55.65 | L171: 53.55 | M171: 1.6316
A172: 162 | B172: GMRINFRA | C172: 24.4 | D172: 24.68 | E172: 23.92 | F172: 23.43 | G172: 22.67 | H172: 25.17 | I172: 25.93 | J172: 26.42 | K172: 25.45 | L172: 24.2 | M172: 386.02471
A173: 163 | B173: GNFC | C173: 169.15 | D173: 170.08 | E173: 167.17 | F173: 165.18 | G173: 162.27 | H173: 172.07 | I173: 174.98 | J173: 176.97 | K173: 173 | L173: 168.1 | M173: 3.21907
A174: 164 | B174: GODFRYPHLP | C174: 1187.7 | D174: 1200.08 | E174: 1170.17 | F174: 1152.63 | G174: 1122.72 | H174: 1217.62 | I174: 1247.53 | J174: 1265.07 | K174: 1230 | L174: 1182.55 | M174: 1.17876
A175: 165 | B175: GODREJAGRO | C175: 501.2 | D175: 505.07 | E175: 486.13 | F175: 471.07 | G175: 452.13 | H175: 520.13 | I175: 539.07 | J175: 554.13 | K175: 524 | L175: 490 | M175: 0.72233
A176: 166 | B176: GODREJCP | C176: 601.25 | D176: 604.33 | E176: 595.92 | F176: 590.58 | G176: 582.17 | H176: 609.67 | I176: 618.08 | J176: 623.42 | K176: 612.75 | L176: 599 | M176: 10.8927
A177: 167 | B177: GODREJIND | C177: 410.65 | D177: 409.35 | E177: 401.70 | F177: 392.75 | G177: 385.10 | H177: 418.30 | I177: 425.95 | J177: 434.90 | K177: 417 | L177: 400.4 | M177: 1.74955
A178: 168 | B178: GODREJPROP | C178: 1082.1 | D178: 1077.95 | E178: 1056.45 | F178: 1030.80 | G178: 1009.30 | H178: 1103.60 | I178: 1125.10 | J178: 1150.75 | K178: 1099.45 | L178: 1052.3 | M178: 0.89304
A179: 169 | B179: GPPL | C179: 76.45 | D179: 76.52 | E179: 74.98 | F179: 73.52 | G179: 71.98 | H179: 77.98 | I179: 79.52 | J179: 80.98 | K179: 78.05 | L179: 75.05 | M179: 1.8327
A180: 170 | B180: GRANULES | C180: 173.4 | D180: 174.10 | E180: 170.00 | F180: 166.60 | G180: 162.50 | H180: 177.50 | I180: 181.60 | J180: 185.00 | K180: 178.2 | L180: 170.7 | M180: 12.48658
A181: 171 | B181: GRAPHITE | C181: 255.05 | D181: 258.30 | E181: 249.95 | F181: 244.85 | G181: 236.50 | H181: 263.40 | I181: 271.75 | J181: 276.85 | K181: 266.65 | L181: 253.2 | M181: 11.0455
A182: 172 | B182: GRASIM | C182: 702.8 | D182: 708.33 | E182: 694.47 | F182: 686.13 | G182: 672.27 | H182: 716.67 | I182: 730.53 | J182: 738.87 | K182: 722.2 | L182: 700 | M182: 28.41126
A183: 173 | B183: GREAVESCOT | C183: 132.5 | D183: 133.82 | E183: 130.68 | F183: 128.87 | G183: 125.73 | H183: 135.63 | I183: 138.77 | J183: 140.58 | K183: 136.95 | L183: 132 | M183: 1.72129
A184: 174 | B184: GRINDWELL | C184: 596 | D184: 596.98 | E184: 592.97 | F184: 589.93 | G184: 585.92 | H184: 600.02 | I184: 604.03 | J184: 607.07 | K184: 601 | L184: 593.95 | M184: 0.33709
A185: 175 | B185: GSFC | C185: 66.5 | D185: 66.47 | E185: 65.58 | F185: 64.67 | G185: 63.78 | H185: 67.38 | I185: 68.27 | J185: 69.18 | K185: 67.35 | L185: 65.55 | M185: 2.03184
A186: 176 | B186: GSPL | C186: 235.9 | D186: 235.78 | E186: 232.67 | F186: 229.43 | G186: 226.32 | H186: 239.02 | I186: 242.13 | J186: 245.37 | K186: 238.9 | L186: 232.55 | M186: 4.48088
A187: 177 | B187: GUJALKALI | C187: 353.25 | D187: 357.17 | E187: 346.58 | F187: 339.92 | G187: 329.33 | H187: 363.83 | I187: 374.42 | J187: 381.08 | K187: 367.75 | L187: 350.5 | M187: 0.42589
A188: 178 | B188: GUJGASLTD | C188: 284.5 | D188: 286.58 | E188: 280.47 | F188: 276.43 | G188: 270.32 | H188: 290.62 | I188: 296.73 | J188: 300.77 | K188: 292.7 | L188: 282.55 | M188: 10.8565
A189: 179 | B189: GULFOILLUB | C189: 712.75 | D189: 718.58 | E189: 702.17 | F189: 691.58 | G189: 675.17 | H189: 729.17 | I189: 745.58 | J189: 756.17 | K189: 735 | L189: 708 | M189: 0.1557
A190: 180 | B190: HAL | C190: 705.35 | D190: 708.58 | E190: 697.17 | F190: 688.98 | G190: 677.57 | H190: 716.77 | I190: 728.18 | J190: 736.37 | K190: 720 | L190: 700.4 | M190: 0.49062
A191: 181 | B191: HATSUN | C191: 665.1 | D191: 668.02 | E191: 662.03 | F191: 658.97 | G191: 652.98 | H191: 671.08 | I191: 677.07 | J191: 680.13 | K191: 674 | L191: 664.95 | M191: 0.12036
A192: 182 | B192: HAVELLS | C192: 646.8 | D192: 645.17 | E192: 637.63 | F192: 628.47 | G192: 620.93 | H192: 654.33 | I192: 661.87 | J192: 671.03 | K192: 652.7 | L192: 636 | M192: 18.24325
A193: 183 | B193: HCLTECH | C193: 583.6 | D193: 582.72 | E193: 576.38 | F193: 569.17 | G193: 562.83 | H193: 589.93 | I193: 596.27 | J193: 603.48 | K193: 589.05 | L193: 575.5 | M193: 54.6007
A194: 184 | B194: HDFC | C194: 2281.45 | D194: 2281.50 | E194: 2253.50 | F194: 2225.55 | G194: 2197.55 | H194: 2309.45 | I194: 2337.45 | J194: 2365.40 | K194: 2309.5 | L194: 2253.55 | M194: 61.63133
A195: 185 | B195: HDFCAMC | C195: 3273.75 | D195: 3271.25 | E195: 3227.50 | F195: 3181.25 | G195: 3137.50 | H195: 3317.50 | I195: 3361.25 | J195: 3407.50 | K195: 3315 | L195: 3225 | M195: 3.95946
A196: 186 | B196: HDFCBANK | C196: 1199.25 | D196: 1196.53 | E196: 1188.37 | F196: 1177.48 | G196: 1169.32 | H196: 1207.42 | I196: 1215.58 | J196: 1226.47 | K196: 1204.7 | L196: 1185.65 | M196: 69.07393
A197: 187 | B197: HDFCLIFE | C197: 557.05 | D197: 561.17 | E197: 550.88 | F197: 544.72 | G197: 534.43 | H197: 567.33 | I197: 577.62 | J197: 583.78 | K197: 571.45 | L197: 555 | M197: 23.1347
A198: 188 | B198: HEG | C198: 961.15 | D198: 968.08 | E198: 941.17 | F198: 921.18 | G198: 894.27 | H198: 988.07 | I198: 1014.98 | J198: 1034.97 | K198: 995 | L198: 948.1 | M198: 3.3509
A199: 189 | B199: HEIDELBERG | C199: 203.4 | D199: 204.43 | E199: 196.17 | F199: 188.93 | G199: 180.67 | H199: 211.67 | I199: 219.93 | J199: 227.17 | K199: 212.7 | L199: 197.2 | M199: 9.49547
A200: 190 | B200: HERITGFOOD | C200: 339.45 | D200: 342.15 | E200: 334.30 | F200: 329.15 | G200: 321.30 | H200: 347.30 | I200: 355.15 | J200: 360.30 | K200: 350 | L200: 337 | M200: 0.19382
A201: 191 | B201: HEROMOTOCO | C201: 2142.55 | D201: 2157.85 | E201: 2120.70 | F201: 2098.85 | G201: 2061.70 | H201: 2179.70 | I201: 2216.85 | J201: 2238.70 | K201: 2195 | L201: 2136 | M201: 9.72076
A202: 192 | B202: HEXAWARE | C202: 365.05 | D202: 364.50 | E202: 361.05 | F202: 357.05 | G202: 353.60 | H202: 368.50 | I202: 371.95 | J202: 375.95 | K202: 367.95 | L202: 360.5 | M202: 3.55557
A203: 193 | B203: HFCL | C203: 16.5 | D203: 16.58 | E203: 16.32 | F203: 16.13 | G203: 15.87 | H203: 16.77 | I203: 17.03 | J203: 17.22 | K203: 16.85 | L203: 16.4 | M203: 7.52063
A204: 194 | B204: HIMATSEIDE | C204: 106.45 | D204: 107.30 | E204: 103.55 | F204: 100.65 | G204: 96.90 | H204: 110.20 | I204: 113.95 | J204: 116.85 | K204: 111.05 | L204: 104.4 | M204: 1.0266
A205: 195 | B205: HINDALCO | C205: 169.9 | D205: 170.28 | E205: 167.37 | F205: 164.83 | G205: 161.92 | H205: 172.82 | I205: 175.73 | J205: 178.27 | K205: 173.2 | L205: 167.75 | M205: 168.55158
A206: 196 | B206: HINDCOPPER | C206: 34.25 | D206: 34.35 | E206: 33.70 | F206: 33.15 | G206: 32.50 | H206: 34.90 | I206: 35.55 | J206: 36.10 | K206: 35 | L206: 33.8 | M206: 5.51075
... 321 more rows

Sheet Bulk Deals
E6: Back To Main Page
A7: Subject : | B7: BULK DEAL | D7: =Main!B10 -> 2020-02-27
A9: Date | B9: Scrip code | C9: Scrip Name | D9: Client Name | E9: Buy / Sell | F9: Quantity Traded | G9: Trade Price / Wt.Avg.trade price | H9: Exchange
A10: 2020-02-26 | B10: 500463 | C10: AGCNET | D10: SILVERLEAF OAK ADVISORS LLP | E10: SELL | F10: 500,000 | G10: 416.16 | H10: BSE
A11: 2020-02-26 | B11: 500463 | C11: AGCNET | D11: SILVERLEAF OAK ADVISORS LLP | E11: SELL | F11: 250,000 | G11: 414.06 | H11: BSE
A12: 2020-02-26 | B12: 500463 | C12: AGCNET | D12: RAJASTHAN GUM PRIVATE LIMITED | E12: BUY | F12: 250,000 | G12: 416.1 | H12: BSE
A13: 2020-02-26 | B13: 500463 | C13: AGCNET | D13: ALPHA LEON ENTERPRISES LLP | E13: BUY | F13: 161,559 | G13: 415.92 | H13: BSE
A14: 2020-02-26 | B14: 500463 | C14: AGCNET | D14: ALPHA LEON ENTERPRISES LLP | E14: SELL | F14: 132,117 | G14: 414.94 | H14: BSE
A15: 2020-02-26 | B15: 500463 | C15: AGCNET | D15: CITOC INVESTMENT SERVICES LLP | E15: BUY | F15: 296,661 | G15: 413.68 | H15: BSE
A16: 2020-02-26 | B16: 542934 | C16: CBPL | D16: SUFAL INVESTMENT | E16: SELL | F16: 74,000 | G16: 40.74 | H16: BSE
A17: 2020-02-26 | B17: 542934 | C17: CBPL | D17: JIYA PRASHANTBHAI UKANI | E17: BUY | F17: 40,000 | G17: 40.76 | H17: BSE
A18: 2020-02-26 | B18: 538787 | C18: GBFL | D18: NISHIL SURENDRABHAI MARFATIA | E18: BUY | F18: 100,000 | G18: 1.76 | H18: BSE
A19: 2020-02-26 | B19: 538787 | C19: GBFL | D19: MUKESH KUMAR | E19: SELL | F19: 137,450 | G19: 1.76 | H19: BSE
A20: 2020-02-26 | B20: 540134 | C20: IISL | D20: SHRI SANJAY J SHAH HUF | E20: SELL | F20: 70,000 | G20: 17.34 | H20: BSE
A21: 2020-02-26 | B21: 530005 | C21: INDIACEM | D21: GOPIKISHAN SHIVKISHAN DAMANI | E21: BUY | F21: 1,592,130 | G21: 98.59 | H21: BSE
A22: 2020-02-26 | B22: 532326 | C22: INTENTECH | D22: ASHOK KUMAR GOENKA | E22: BUY | F22: 220,000 | G22: 18.5 | H22: BSE
A23: 2020-02-26 | B23: 532326 | C23: INTENTECH | D23: NAKUL GOENKA | E23: BUY | F23: 220,000 | G23: 18.5 | H23: BSE
A24: 2020-02-26 | B24: 532326 | C24: INTENTECH | D24: KRISHNI DEVI GOENKA | E24: SELL | F24: 440,000 | G24: 18.5 | H24: BSE
A25: 2020-02-26 | B25: 540080 | C25: NARAYANI | D25: RIKHAV SECURITIES LIMITED | E25: BUY | F25: 72,000 | G25: 36.64 | H25: BSE
A26: 2020-02-26 | B26: 539469 | C26: PANORAMA | D26: INTELLECT STOCK BROKING LIMITED | E26: BUY | F26: 136,043 | G26: 34.3 | H26: BSE
A27: 2020-02-26 | B27: 539469 | C27: PANORAMA | D27: INTELLECT HEIGHTS PRIVATE LIMITED | E27: SELL | F27: 100,000 | G27: 34.3 | H27: BSE
A28: 2020-02-26 | B28: 539469 | C28: PANORAMA | D28: HORA VANIJYA PRIVATE LIMITED | E28: SELL | F28: 35,000 | G28: 34.3 | H28: BSE
A29: 2020-02-26 | B29: 532710 | C29: SADBHAV | D29: BLUE DAIMOND PROPERTIES PRIVATE LIMITED | E29: BUY | F29: 4,200,000 | G29: 74.99 | H29: BSE
A30: 2020-02-26 | B30: 532710 | C30: SADBHAV | D30: ADITYA BIRLA SUN LIFE MUTUAL FUND | E30: SELL | F30: 2,692,974 | G30: 75 | H30: BSE
A31: 2020-02-26 | B31: EMKAYTOOLS | C31: Emkay Tap & Cut. Tool Ltd | D31: SHILPA MALOO | E31: BUY | F31: 60,000 | G31: 157 | H31: NSE
A32: 2020-02-26 | B32: EMKAYTOOLS | C32: Emkay Tap & Cut. Tool Ltd | D32: NAGPUR TOOLS PVT LTD | E32: BUY | F32: 100,200 | G32: 157 | H32: NSE
A33: 2020-02-26 | B33: GOLDIAM | C33: Goldiam International Lim | D33: GOLDIAM INTERNATIONAL LIMITED | E33: BUY | F33: 243,663 | G33: 154.86 | H33: NSE
A34: 2020-02-26 | B34: GOLDSTAR | C34: Goldstar Power Limited | D34: RIKHAV SECURITIES LIMITED | E34: BUY | F34: 102,000 | G34: 24.92 | H34: NSE
A35: 2020-02-26 | B35: INDIACEM | C35: The India Cements Limited | D35: RADHAKISHAN SHIVKISHAN DAMANI | E35: BUY | F35: 2,725,468 | G35: 104.16 | H35: NSE
A36: 2020-02-26 | B36: INDIACEM | C36: The India Cements Limited | D36: DAMANI GOPIKISHAN S | E36: BUY | F36: 8,371,516 | G36: 98.42 | H36: NSE
A37: 2020-02-26 | B37: SADBHAV | C37: Sadbhav Engineering Limit | D37: ACCOUNT YES SECURITIES INDIA LIMITED - ERROR | E37: BUY | F37: 888,046 | G37: 79.46 | H37: NSE
A38: 2020-02-26 | B38: SPENCERS | C38: Spencer's Retail Limited | D38: N.K.SECURITIES | E38: BUY | F38: 481,932 | G38: 102.55 | H38: NSE
A39: 2020-02-26 | B39: TATACHEM | C39: Tata Chemicals Ltd. | D39: TATA SONS PRIVATE LIMITED | E39: BUY | F39: 1,496,738 | G39: 742.44 | H39: NSE
A40: 2020-02-26 | B40: EMKAYTOOLS | C40: Emkay Tap & Cut. Tool Ltd | D40: ANMESH TRADE AND INVESTMENT | E40: SELL | F40: 60,000 | G40: 157 | H40: NSE
A41: 2020-02-26 | B41: EMKAYTOOLS | C41: Emkay Tap & Cut. Tool Ltd | D41: AJAYPRAKASH MURLIDHAR KANORIA HUF | E41: SELL | F41: 99,000 | G41: 157 | H41: NSE
A42: 2020-02-26 | B42: SADBHAV | C42: Sadbhav Engineering Limit | D42: ACCOUNT YES SECURITIES INDIA LIMITED - ERROR | E42: SELL | F42: 888,046 | G42: 74.5 | H42: NSE
A43: 2020-02-26 | B43: SADBHAV | C43: Sadbhav Engineering Limit | D43: HDFC STANDARD LIFE INSURANCE CO LTD | E43: SELL | F43: 890,100 | G43: 80.13 | H43: NSE
A44: 2020-02-26 | B44: SPENCERS | C44: Spencer's Retail Limited | D44: N.K.SECURITIES | E44: SELL | F44: 481,932 | G44: 102.63 | H44: NSE

Sheet Call Tracker (Equity & F&O)
M5: Back To Main Page
A6: Retail Research Technical Calls & Fundamental Performance Report for the month of February-2020
M7: =Main!B10 -> 2020-02-27
B8: Positional Call
A9: Sr.no | B9: Date | D9: Company | E9: Rec | F9: Rec Price | G9: Stop Loss*** | H9: Call Closed At | I9: Target | J9: Remark | K9: Profit / Loss per Share | L9: Gain / Loss % | M9: Status | N9: Closed Date | O9: NSE Closed Price
A10: 1 | B10: 2020-01-07 | D10: ITC | E10: Buy | F10: 237 | G10: 222.2 | H10: 220 | I10: 255-260 | J10: Loss of Rs.17/- | K10: =H10-F10 -> -17 | L10: =K10/F10 -> -7.17% | M10: Unsuccessful | N10: 2020-02-01 | R10: R
A11: 2 | B11: 2020-01-20 | D11: IOC | E11: Buy{} | F11: 117.5 | G11: 114 | H11: 117.25 | I11: 130 | J11: Loss of Rs.0.25/- | K11: =H11-F11 -> -0.25 | L11: =K11/F11 -> -0.21% | M11: Neutral | N11: 2020-02-01 | R11: H
A12: 3 | B12: 2020-02-03 | D12: FINPIPE | E12: Buy | F12: 552.5 | G12: 518 | H12: 567.5 | I12: 600-630 | J12: Profit of Rs.15/- | K12: =H12-F12 -> 15 | L12: =K12/F12 -> 2.71% | M12: Successful | N12: 2020-02-03 | R12: H
A13: 4 | B13: 2020-02-03 | D13: POWERGRID | E13: Buy | F13: 183 | G13: 169 | H13: 190 | I13: 200-210 | J13: Profit of Rs.7/- | K13: =H13-F13 -> 7 | L13: =K13/F13 -> 3.83% | M13: Successful | N13: 2020-02-03 | R13: H
A14: 5 | B14: 2020-02-04 | D14: MARICO | E14: Buy | F14: 306-308 | G14: 287.8 | I14: 335-345 | J14: Open | O14: =VLOOKUP(D14,Sheet2!A2:H1667,6,0) -> 306.15 | R14: R
A15: 6 | B15: 2020-02-04 | D15: BAJAJFINSV | E15: Sell | F15: 9500-9550 | G15: 10100 | I15: 8500-8300 | J15: Open | O15: =VLOOKUP(D15,Sheet2!A3:H1668,6,0) -> 9387 | R15: H
A16: 7 | B16: 2020-02-05 | D16: INDHOTEL | E16: Buy | F16: 140.5 | G16: 132 | H16: 130 | I16: 152-158 | J16: Loss of Rs.10.5/- | K16: =H16-F16 -> -10.5 | L16: =K16/F16 -> -7.47% | M16: Unsuccessful | N16: 2020-02-18 | R16: H
A17: 8 | B17: 2020-02-05 | D17: FINPIPE | E17: Buy | F17: 552 | G17: 518 | H17: 568.5 | I17: 600-630 | J17: Part Profit of Rs.16.5/- | K17: 16.5 | L17: 2.99% | M17: Successful | N17: 2020-02-24 | O17: =VLOOKUP(D17,Sheet2!A5:H1670,6,0) -> 553.4 | R17: H
A18: 9 | B18: 2020-02-05 | D18: IOC | E18: Buy | F18: 114 | G18: 107 | H18: 118 | I18: 124-128 | J18: Part Profit of Rs.4/- | K18: =H18-F18 -> 4 | L18: =K18/F18 -> 3.51% | M18: Successful | N18: 2020-02-10 | O18: =VLOOKUP(D18,Sheet2!A6:H1671,6,0) -> 108.35 | R18: H
A19: 10 | B19: 2020-02-07 | D19: LUPIN | E19: Buy{} | F19: 700 | G19: 668 | H19: 701.25 | I19: 770-800 | J19: Profit of Rs.1.25/- | K19: =H19-F19 -> 1.25 | L19: =K19/F19 -> 0.18% | M19: Neutral | N19: 2020-02-24 | O19: =VLOOKUP(D19,Sheet2!A7:H1672,6,0) -> 669.8 | R19: H
A20: 11 | B20: 2020-02-10 | D20: PRAJIND | E20: Buy | F20: 105 | G20: 98.7 | H20: 108.5 | I20: 115-118 | J20: Part Profit of Rs.3.50/- | K20: =H20-F20 -> 3.5 | L20: =K20/F20 -> 3.33% | M20: Successful | N20: 2020-02-12 | O20: =VLOOKUP(D20,Sheet2!A8:H1673,6,0) -> 99.95 | R20: R
A21: 12 | B21: 2020-02-11 | D21: IGL | E21: Sell | F21: 509.5 | G21: 535.6 | H21: 480.5 | I21: 460-455 | J21: Profit of Rs.29/- | K21: =F21-H21 -> 29 | L21: =K21/F21 -> 5.69% | M21: Successful | N21: 2020-02-18 | R21: R
A22: 13 | B22: 2020-02-11 | D22: ENGINERSIN | E22: Buy<> | F22: 86.3 | G22: 81 | H22: 80 | I22: 97 | J22: Loss of Rs.6.3/- | K22: =H22-F22 -> -6.3 | L22: -7.30% | M22: Unsuccessful | N22: 2020-02-18 | R22: R
A23: 14 | B23: 2020-02-12 | D23: ITC | E23: Buy | F23: 213 | G23: 199 | H23: 198 | I23: 230-240 | J23: Loss of Rs.15/- | K23: =H23-F23 -> -15 | L23: =K23/F23 -> -7.04% | M23: Unsuccessful | N23: 2020-02-26 | R23: H
A24: 15 | B24: 2020-02-14 | D24: VENKEYS | E24: Buy | F24: 1447.5 | G24: 1364.3 | H24: 1530 | I24: 1610-1630 | J24: Profit of Rs.82.50/- | K24: =H24-F24 -> 82.5 | L24: =K24/F24 -> 5.70% | M24: Successful | N24: 2020-02-20 | R24: R
A25: 16 | B25: 2020-02-18 | D25: COALINDIA | E25: Buy | F25: 170 | G25: 161.3 | H25: 179.5 | I25: 185-190 | J25: Profit of Rs.9.50/- | K25: =H25-F25 -> 9.5 | L25: =K25/F25 -> 5.59% | M25: Successful | N25: 2020-02-20 | O25: =VLOOKUP(D25,Sheet2!A13:H1678,6,0) -> 173.8 | R25: R
A26: 17 | B26: 2020-02-20 | D26: MOTHERSUMI | E26: Buy | F26: 122.5 | G26: 116.4 | H26: 116 | I26: 132-135 | J26: Loss of Rs.6.5/- | K26: -6.5 | L26: -5.31% | M26: Unsuccessful | N26: 2020-02-24 | R26: R
A27: 18 | B27: 2020-02-26 | D27: TITAN | E27: Buy | F27: 1255-1265 | G27: 1189 | I27: 1350-1400 | J27: Open
A28: 19 | B28: 2020-02-26 | D28: VENKEYS | E28: Buy | F28: 1390-1400 | G28: 1327.7 | I28: 1530-1550 | J28: Open
A29: 20 | B29: 2020-02-26 | D29: NILKAMAL | E29: Buy | F29: 1400-1410 | G29: 1335 | I29: 1540-1560 | J29: Open
A30: 21 | B30: 2020-02-26 | D30: PARAGMILK | E30: Buy | F30: 95-96 | G30: 89.3 | I30: 103-105 | J30: Open
A31: 22 | B31: 2020-02-26 | D31: WHIRLPOOL | E31: Buy | F31: 2240-2250 | G31: 2145 | I31: 2430-2450 | J31: Open
A32: 23
A33: 24
A34: 25
A35: 26
A36: 27
A37: CLBS = Closing Basis ***
A38: Dividend adjusted <> | F38: Reinitiated $
A39: Part book {} | F39: Revised stoploss #
B41: Momentum Call
A42: Sr.no | B42: Date | D42: Company | E42: Rec | F42: Rec Price | G42: Stop Loss | H42: Call Closed At | I42: Target | J42: Remark | K42: Profit / Loss per Share/Lot | L42: Gain / Loss % | M42: Gain / Loss per Lot | N42: Lot | O42: Status | P42: Closed Date
A43: 1 | B43: 2020-01-31 | D43: GRASIM FEB FUT | E43: Buy | F43: 793 | G43: 777.7 | H43: 778.5 | I43: 820 | J43: Loss of Rs.14.5/- | K43: =H43-F43 -> -14.5 | M43: =N43*K43 -> -10875 | N43: 750 | O43: Unsuccessful | P43: 2020-02-01 | R43: R
A44: 2 | B44: 2020-01-31 | D44: TATASTEEL | E44: Buy | F44: 445 | G44: 431.7 | H44: 427.5 | I44: 465-470 | J44: Loss of Rs.17.5/- | K44: =H44-F44 -> -17.5 | L44: =K44/F44 -> -3.93% | O44: Unsuccessful | P44: 2020-02-01 | R44: R
A45: 3 | B45: 2020-02-01 | D45: SBIN | E45: Buy | F45: 313.5 | G45: 304 | H45: 304 | I45: 330-335 | J45: Loss of Rs.9.5/- | K45: =H45-F45 -> -9.5 | L45: =K45/F45 -> -3.03% | O45: Unsuccessful | P45: 2020-02-01 | R45: H
A46: 4 | B46: 2020-02-03 | D46: SBIN | E46: Buy | F46: 301 | G46: 292 | H46: 306 | I46: 315-320 | J46: Profit of Rs.5/- | K46: =H46-F46 -> 5 | L46: =K46/F46 -> 1.66% | O46: Successful | P46: 2020-02-03 | R46: H
A47: 5 | B47: 2020-02-03 | D47: SBIN | E47: Buy | F47: 300 | G47: 289 | H47: 306.5 | I47: 315-320 | J47: Profit of Rs.6.5/- | K47: =H47-F47 -> 6.5 | L47: =K47/F47 -> 2.17% | O47: Successful | P47: 2020-02-04 | R47: H
A48: 6 | B48: 2020-02-03 | D48: BAJAJAUTO | E48: Sell | F48: 3265 | G48: 3355 | H48: 3195 | I48: 3100-3050 | J48: Profit of Rs.70/- | K48: =F48-H48 -> 70 | L48: 2.14% | O48: Successful | P48: 2020-02-04 | R48: H
A49: 7 | B49: 2020-02-04 | D49: RELIANCE | E49: Buy | F49: 1414 | G49: 1367.7 | H49: 1442.5 | I49: 1480-1500 | J49: Profit of Rs.28.5/- | K49: =H49-F49 -> 28.5 | L49: =K49/F49 -> 2.02% | O49: Successful | P49: 2020-02-05 | R49: R
A50: 8 | B50: 2020-02-04 | D50: SUNPHARMA | E50: Buy | F50: 417 | G50: 404 | H50: 423.5 | I50: 435-445 | J50: Profit of Rs.6.5/- | K50: =H50-F50 -> 6.5 | L50: =K50/F50 -> 1.56% | O50: Successful | P50: 2020-02-04 | R50: R
A51: 9 | B51: 2020-02-05 | D51: ESCORTS | E51: Sell | F51: 842.5 | G51: 866 | H51: 866 | I51: 815-805 | J51: Loss of Rs.23.5/- | K51: =F51-H51 -> -23.5 | L51: -2.79% | O51: Unsuccessful | P51: 2020-02-07 | R51: H
A52: 10 | B52: 2020-02-05 | D52: APOLLOHOSP | E52: Buy | F52: 1659 | G52: 1595 | H52: 1692.5 | I52: 1720-1750 | J52: Profit of Rs.33.50/- | K52: =H52-F52 -> 33.5 | L52: 2.02% | O52: Successful | P52: 2020-02-10 | R52: H
A53: 11 | B53: 2020-02-05 | D53: UPL | E53: Sell | F53: 538 | G53: 555.5 | H53: 554 | I53: 510-505 | J53: Loss of Rs.16/- | K53: =F53-H53 -> -16 | L53: -2.97% | O53: Unsuccessful | P53: 2020-02-07 | R53: R
A54: 12 | B54: 2020-02-05 | D54: COLPAL FEB FUT | E54: Buy | F54: 1368 | G54: 1351 | H54: 1378 | I54: 1400 | J54: Profit of Rs.10/- | K54: =H54-F54 -> 10 | M54: =N54*K54 -> 7000 | N54: 700 | O54: Successful | P54: 2020-02-05 | R54: N
A55: 13 | B55: 2020-02-05 | D55: ITC | E55: Buy | F55: 214 | G55: 204.4 | H55: 218.5 | I55: 226-230 | J55: Profit of Rs.4.50/- | K55: 4.5 | L55: =K55/F55 -> 2.10% | O55: Successful | P55: 2020-02-06 | R55: R
A56: 14 | B56: 2020-02-05 | D56: HINDUNILVR FEB FUT | E56: Sell | F56: 2162.5 | G56: 2205 | H56: 2210 | I56: 2100-2080 | J56: Loss of Rs.47.50/- | K56: =F56-H56 -> -47.5 | M56: =N56*K56 -> -14250 | N56: 300 | O56: Unsuccessful | P56: 2020-02-12 | R56: R
A57: 15 | B57: 2020-02-05 | D57: DABUR FEB FUT | E57: Sell | F57: 513 | G57: 523.4 | H57: 522 | I57: 495 | J57: Loss of Rs.9/- | K57: =F57-H57 -> -9 | M57: -11250 | N57: 1250 | O57: Unsuccessful | P57: 2020-02-12 | R57: R
A58: 16 | B58: 2020-02-05 | D58: NIFTY FEB FUT | E58: Sell | F58: 12045 | G58: 12155 | H58: 12155 | I58: 11850 | J58: Loss of Rs.110/- | K58: =F58-H58 -> -110 | M58: -8250 | N58: 75 | O58: Unsuccessful | P58: 2020-02-06 | R58: R
A59: 17 | B59: 2020-02-05 | D59: ACC FEB FUT | E59: Buy | F59: 1476 | G59: 1445 | H59: 1496.5 | I59: 1510-1525 | J59: Profit of Rs.20.50/- | K59: =H59-F59 -> 20.5 | M59: 8200 | N59: 400 | O59: Successful | P59: 2020-02-06 | R59: N
A60: 18 | B60: 2020-02-06 | D60: JUBLFOOD | E60: Sell | F60: 1927.5 | G60: 1986.7 | H60: 1887.5 | I60: 1830-1810 | J60: Profit of Rs.40/- | K60: =F60-H60 -> 40 | L60: =K60/F60 -> 2.08% | O60: Successful | P60: 2020-02-06 | R60: R
A61: 19 | B61: 2020-02-06 | D61: ICICIBANK | E61: Sell | F61: 538.5 | G61: 555.55 | H61: 528.5 | I61: 515-505 | J61: Profit of Rs.10/- | K61: =F61-H61 -> 10 | L61: =K61/F61 -> 1.86% | O61: Successful | P61: 2020-02-24 | R61: R
A62: 20 | B62: 2020-02-06 | D62: AXISBANK | E62: Sell | F62: 734 | G62: 755 | H62: 757 | I62: 700-690 | J62: Loss of Rs.23/- | K62: =F62-H62 -> -23 | L62: =K62/F62 -> -3.13% | O62: Unsuccessful | P62: 2020-02-12 | R62: H
A63: 21 | B63: 2020-02-06 | D63: HDFCBANK FEB FUT | E63: Buy | F63: 1242 | G63: 1220 | H63: 1256.5 | I63: 1270-1280 | J63: Profit of Rs.14.50/- | K63: =H63-F63 -> 14.5 | M63: =N63*K63 -> 7250 | N63: 500 | O63: Successful | P63: 2020-02-13 | R63: N
A64: 22 | B64: 2020-02-10 | D64: APOLLOHOSP FEB FUT | E64: Buy | F64: 1646.5 | G64: 1622 | H64: 1662.5 | I64: 1700 | J64: Profit of Rs.16/- | K64: 16 | M64: 8000 | N64: 500 | O64: Successful | P64: 2020-02-10 | R64: N
A65: 23 | B65: 2020-02-10 | D65: HDFC | E65: Buy | F65: 2395 | G65: 2340 | H65: 2440 | I65: 2470-2490 | J65: Profit of Rs.45/- | K65: 45 | L65: =K65/F65 -> 1.88% | O65: Successful | P65: 2020-02-11 | R65: H
A66: 24 | B66: 2020-02-10 | D66: COLPAL FEB FUT | E66: Buy | F66: 1360.5 | G66: 1343 | H66: 1371 | I66: 1395 | J66: Profit of Rs.10.50/- | K66: 10.5 | M66: =N66*K66 -> 7350 | N66: 700 | O66: Successful | P66: 2020-02-10 | R66: N
A67: 25 | B67: 2020-02-10 | D67: ASIANPAINT FEB FUT | E67: Buy | F67: 1861.5 | G67: 1841 | H67: 1878.5 | I67: 1900 | J67: Profit of Rs.17/- | K67: 17 | M67: 10200 | N67: 600 | O67: Successful | P67: 2020-02-11 | R67: N
A68: 26 | B68: 2020-02-11 | D68: COLPAL FEB FUT | E68: Buy | F68: 1365 | G68: 1348 | H68: 1348 | I68: 1400 | J68: Loss of Rs.17/- | K68: -17 | M68: -11900 | N68: 700 | O68: Unsuccessful | P68: 2020-02-13 | R68: N
A69: 27 | B69: 2020-02-11 | D69: ESCORTS FEB FUT | E69: Sell | F69: 877 | G69: 891.7 | H69: 870.5 | I69: 860-855 | J69: Profit of Rs.6.5/- | K69: =F69-H69 -> 6.5 | M69: 7150 | N69: 1100 | O69: Successful | P69: 2020-02-11 | R69: R
A70: 28 | B70: 2020-02-11 | D70: PIDILITIND | E70: Sell | F70: 1587 | G70: 1630 | H70: 1555 | I70: 1540-1520 | J70: Profit of Rs.32/- | K70: =F70-H70 -> 32 | L70: =K70/F70 -> 2.02% | O70: Successful | P70: 2020-02-24 | R70: H
A71: 29 | B71: 2020-02-11 | D71: THERMAX | E71: Buy | F71: 992.5 | G71: 960 | H71: 1008.5 | I71: 1040-1050 | J71: Profit of Rs.16/- | K71: =H71-F71 -> 16 | L71: =K71/F71 -> 1.61% | O71: Successful | P71: 2020-02-11 | R71: H
A72: 30 | B72: 2020-02-12 | D72: TATACHEM FEB FUT | E72: Buy | F72: 762.5 | G72: 749 | H72: 771 | I72: 780 | J72: Profit of Rs.8.50/- | K72: 8.5 | M72: =N72*K72 -> 7650 | N72: 900 | O72: Successful | P72: 2020-02-14 | R72: N
A73: 31 | B73: 2020-02-12 | D73: JUBLFOOD FEB FUT | E73: Buy | F73: 1855.5 | G73: 1833 | H73: 1833 | I73: 1900 | J73: Loss of Rs.22.5/- | K73: -22.5 | M73: -11250 | N73: 500 | O73: Unsuccessful | P73: 2020-02-12 | R73: R
A74: 32 | B74: 2020-02-12 | D74: APOLLOHOSP FEB FUT | E74: Buy | F74: 1683.5 | G74: 1659 | H74: 1686 | I74: 1720 | J74: Profit of Rs.2.5/- | K74: 2.5 | M74: 1250 | N74: 500 | O74: Neutral | P74: 2020-02-13 | R74: N
A75: 33 | B75: 2020-02-12 | D75: ESCORTS FEB FUT | E75: Sell | F75: 881 | G75: 894.7 | H75: 879 | I75: 860-855 | J75: Profit of Rs.2/- | K75: =F75-H75 -> 2 | M75: 2200 | N75: 1100 | O75: Neutral | P75: 2020-02-13 | R75: R
A76: 34 | B76: 2020-02-13 | D76: THERMAX | E76: Buy | F76: 997.5 | G76: 965 | H76: 962 | I76: 1040-1050 | J76: Loss of Rs.35.5/- | K76: =H76-F76 -> -35.5 | L76: =K76/F76 -> -3.56% | O76: Unsuccessful | P76: 2020-02-18 | R76: H
A77: 35 | B77: 2020-02-13 | D77: ASIANPAINT FEB FUT | E77: Sell | F77: 1878 | G77: 1899 | H77: 1897.5 | I77: 1840 | J77: Loss of Rs.19.50/- | K77: =F77-H77 -> -19.5 | M77: =N77*K77 -> -11700 | N77: 600 | O77: Unsuccessful | P77: 2020-02-14 | R77: R
A78: 36 | B78: 2020-02-14 | D78: CESC FEB FUT | E78: Buy | F78: 711 | G78: 696 | H78: 696 | I78: 735 | J78: Loss of Rs.15/- | K78: =H78-F78 -> -15 | M78: -12000 | N78: 800 | O78: Unsuccessful | P78: 2020-02-14 | R78: N
A79: 37 | B79: 2020-02-14 | D79: AXISBANK | E79: Sell | F79: 740 | G79: 762 | H79: 725.5 | I79: 700-690 | J79: Profit of Rs.14.5/- | K79: =F79-H79 -> 14.5 | L79: =K79/F79 -> 1.96% | O79: Successful | P79: 2020-02-18 | R79: H
A80: 38 | B80: 2020-02-14 | D80: UPL | E80: Sell | F80: 591 | G80: 610 | H80: 578.5 | I80: 560-550 | J80: Profit of Rs.12.5/- | K80: =F80-H80 -> 12.5 | L80: =K80/F80 -> 2.12% | O80: Successful | P80: 2020-02-18 | R80: H
A81: 39 | B81: 2020-02-14 | D81: ACC FEB FUT | E81: Buy | F81: 1444 | G81: 1410 | H81: 1412.5 | I81: 1500 | J81: Loss of Rs.31.5/- | K81: =H81-F81 -> -31.5 | M81: =N81*K81 -> -12600 | N81: 400 | O81: Unsuccessful | P81: 2020-02-18 | R81: N
A82: 40 | B82: 2020-02-17 | D82: CIPLA FEB FUT | E82: Buy | F82: 441 | G82: 429 | H82: 448 | I82: 460 | J82: Profit of Rs.7/- | K82: 7 | M82: 8050 | N82: 1150 | O82: Successful | P82: 2020-02-19 | R82: N
A83: 41 | B83: 2020-02-17 | D83: ACC | E83: Buy | F83: 1428.5 | G83: 1385 | I83: 1490-1500 | J83: Open | R83: H
A84: 42 | B84: 2020-02-17 | D84: RECLTD | E84: Buy | F84: 140.5 | G84: 136.3 | H84: 136.5 | I84: 148-150 | J84: Loss of Rs.4/- | K84: =F84-H84 -> 4 | L84: =K84/F84 -> 2.85% | O84: Unsuccessful | P84: 2020-02-25 | R84: R
A85: 43 | B85: 2020-02-17 | D85: LICHSGFIN | E85: Buy | F85: 366 | G85: 355 | H85: 378.5 | I85: 385-390 | J85: Profit of Rs.12.5/- | K85: =H85-F85 -> 12.5 | L85: =K85/F85 -> 3.42% | O85: Successful | P85: 2020-02-17 | R85: H
A86: 44 | B86: 2020-02-05 | D86: LT FEB FUT | E86: Buy | F86: 1310 | G86: 1275 | H86: 1275 | I86: 1350-1360 | J86: Loss of Rs.35/- | K86: -35 | M86: =N86*K86 -> -13125 | N86: 375 | O86: Unsuccessful | P86: 2020-02-18 | R86: N
A87: 45 | B87: 2020-02-18 | D87: DABUR | E87: Buy | F87: 500 | G87: 484.7 | H87: 510 | I87: 525-530 | J87: Profit of Rs.10/- | K87: 10 | L87: =K87/F87 -> 2.00% | O87: Successful | P87: 2020-02-19 | R87: R
A88: 46 | B88: 2020-02-18 | D88: FEDERALBNK | E88: Buy | F88: 82.95 | G88: 79.7 | H88: 85.15 | I88: 87-89 | J88: Profit of Rs.2.20/- | K88: 2.2 | L88: 2.65% | O88: Successful | P88: 2020-02-19 | R88: H
A89: 47 | B89: 2020-02-18 | D89: ASIANPAINT FEB FUT | E89: Buy | F89: 1869 | G89: 1849 | H89: 1881 | I89: 1900-1910 | J89: Profit of Rs.12/- | K89: 12 | M89: =N89*K89 -> 7200 | N89: 600 | O89: Successful | P89: 2020-02-19 | R89: R
A90: 48 | B90: 2020-02-18 | D90: SBIN | E90: Buy | F90: 310.5 | G90: 299 | H90: 316 | I90: 325-330 | J90: Profit of Rs.5.5/- | K90: =H90-F90 -> 5.5 | L90: =K90/F90 -> 1.77% | O90: Successful | P90: 2020-02-18 | R90: H
A91: 49 | B91: 2020-02-18 | D91: ESCORTS FEB FUT | E91: Sell | F91: 887 | G91: 898.7 | H91: 881 | I91: 860-855 | J91: Profit of Rs.6/- | K91: =F91-H91 -> 6 | M91: =N91*K91 -> 6600 | N91: 1100 | O91: Successful | P91: 2020-02-18 | R91: R
A92: 50 | B92: 2020-02-18 | D92: JKPAPER | E92: Buy | F92: 122 | G92: 119.3 | H92: 125 | I92: 128-132 | J92: Profit of Rs.3/- | K92: =H92-F92 -> 3 | L92: =K92/F92 -> 2.46% | O92: Successful | P92: 2020-02-19 | R92: R
A93: 51 | B93: 2020-02-19 | D93: ESCORTS FEB FUT | E93: Sell | F93: 900 | G93: 911.3 | H93: 893 | I93: 880 | J93: Profit of Rs.7/- | K93: =F93-H93 -> 7 | M93: =N93*K93 -> 7700 | N93: 1100 | O93: Successful | P93: 2020-02-19 | R93: R
A94: 52 | B94: 2020-02-19 | D94: TATACHEM FEB FUT | E94: Buy | F94: 752 | G94: 739 | H94: 760 | I94: 772 | J94: Profit of Rs.8/- | K94: =H94-F94 -> 8 | M94: =N94*K94 -> 7200 | N94: 900 | O94: Successful | P94: 2020-02-19 | R94: N
A95: 53 | B95: 2020-02-19 | D95: RELIANCE FEB FUT | E95: Sell | F95: 1497.5 | G95: 1522.3 | H95: 1487.5 | I95: 1460 | J95: Profit of Rs.10/- | K95: =F95-H95 -> 10 | M95: 5000 | N95: 500 | O95: Successful | P95: 2020-02-20 | R95: R
A96: 54 | B96: 2020-02-19 | D96: BATAINDIA FEB FUT | E96: Buy | F96: 1795 | G96: 1770 | H96: 1809 | I96: 18030-1835 | J96: Profit of Rs.14/- | K96: =H96-F96 -> 14 | M96: =N96*K96 -> 7700 | N96: 550 | O96: Successful | P96: 2020-02-19 | R96: N
A97: 55 | B97: 2020-02-19 | D97: NIFTY FEB FUT | E97: Sell | F97: 12130 | G97: 12187.5 | H97: 12072.5 | I97: 12050-12020 | J97: Profit of Rs.57.50/- | K97: =F97-H97 -> 57.5 | M97: 4312.5 | N97: 75 | O97: Successful | P97: 2020-02-20 | R97: R
A98: 56 | B98: 2020-02-19 | D98: HCLTECH FEB FUT | E98: Buy | F98: 608.5 | G98: 598 | H98: 600 | I98: 630 | J98: Loss of Rs.8.5/- | K98: =H98-F98 -> -8.5 | M98: =N98*K98 -> -11900 | N98: 1400 | O98: Unsuccessful | P98: 2020-02-24 | R98: N
A99: 57 | B99: 2020-02-20 | D99: MCDOWELL-N FEB FUT | E99: Sell | F99: 729 | G99: 740 | H99: 740 | I99: 710 | J99: Loss of Rs.11/- | K99: =F99-H99 -> -11 | M99: =N99*K99 -> -13750 | N99: 1250 | O99: Unsuccessful | P99: 2020-02-20 | R99: R
A100: 58 | B100: 2020-02-20 | D100: CIPLA FEB FUT | E100: Buy | F100: 442 | G100: 430 | H100: 430 | I100: 460 | J100: Loss of Rs.12/- | K100: =H100-F100 -> -12 | M100: =N100*K100 -> -13800 | N100: 1150 | O100: Unsuccessful | P100: 2020-02-24 | R100: N
A101: 59 | B101: 2020-02-20 | D101: AXISBANK | E101: Sell | F101: 750 | G101: 768 | H101: 728.5 | I101: 720-710 | J101: Profit of Rs.21.5/- | K101: =F101-H101 -> 21.5 | L101: =K101/F101 -> 2.87% | O101: Successful | P101: 2020-02-24 | R101: H
A102: 60 | B102: 2020-02-20 | D102: ASIANPAINT FEB FUT | E102: Buy | F102: 1863 | G102: 1840 | H102: 1843 | I102: 1900 | J102: Loss of Rs.20/- | K102: =H102-F102 -> -20 | M102: =N102*K102 -> -12000 | N102: 600 | O102: Unsuccessful | P102: 2020-02-20 | R102: N
A103: 61 | B103: 2020-02-20 | D103: MINDAIND | E103: Buy | F103: 380-383 | G103: 369.3 | I103: 400-405 | J103: Open | R103: R
A104: 62 | B104: 2020-02-24 | D104: ULTRACEMCO FEB FUT | E104: Buy | F104: 4425 | G104: 4365 | H104: 4375 | I104: 4520-4550 | J104: Loss of Rs.50/- | K104: =H104-F104 -> -50 | M104: =N104*K104 -> -10000 | N104: 200 | O104: Unsuccessful | P104: 2020-02-25 | R104: R
A105: 63 | B105: 2020-02-24 | D105: BRITANNIA | E105: Buy | F105: 3045-3065 | G105: 2970 | I105: 3180-3220 | J105: Open | R105: H
A106: 64 | B106: 2020-02-24 | D106: BAJAJ-AUTO | E106: Buy | F106: 2985-3000 | G106: 2890 | I106: 3180-3240 | J106: Open | R106: H
A107: 65 | B107: 2020-02-26 | D107: M&M | E107: Buy | F107: 505-510 | G107: 494 | I107: 530-540 | J107: Open
A108: 66 | B108: 2020-02-26 | D108: INDUSINDBK | E108: Buy | F108: 1145-1150 | G108: 1115 | I108: 1200-1220 | J108: Open
A109: 67 | B109: 2020-02-26 | D109: TATACHEM MAR FUT | E109: Buy | F109: 741 | G109: 727 | H109: 749.5 | I109: 770 | J109: Profit of Rs.8.50/- | K109: =H109-F109 -> 8.5 | M109: =N109*K109 -> 7650 | N109: 900 | O109: Successful | P109: 2020-02-26
A110: 68 | B110: 2020-02-26 | D110: SIEMENS | E110: Buy | F110: 1387.5 | G110: 1347.7 | H110: 1345 | I110: 1460-1480 | J110: Loss of Rs.42.50/- | K110: -42.5 | L110: =K110/F110 -> -3.06% | O110: Unsuccessful | P110: 2020-02-26
A111: 69 | B111: 2020-02-26 | D111: TCS | E111: Buy | F111: 2155-2160 | G111: 2097.6 | I111: 2280-2300 | J111: Open
A112: 70 | B112: 2020-02-26 | D112: ASIANPAINT MAR FUT | E112: Buy | F112: 1831-1833 | G112: 1810 | I112: 1870 | J112: Open
A113: 71 | B113: 2020-02-26 | D113: HAVELLS MAR FUT | E113: Buy | F113: 643-644 | G113: 631 | I113: 670 | J113: Open
A114: 72 | B114: 2020-02-26 | D114: HDFC | E114: Buy | F114: 2280-2290 | G114: 2220 | I114: 2370-2400 | J114: Open
A115: 73
A116: 74
A117: 75
A118: 76
A119: 77
A120: 78
A121: CLBS = Closing Basis ***
A122: Dividend adjusted <> | F122: Reinitiated $
F123: Revised stoploss #
A125: Master Trade High Risk
A126: Sr.no | B126: Date | D126: Company | E126: Rec | F126: Rec Price | G126: Stop Loss | H126: Call Closed At | I126: Target | J126: Remark | K126: Profit / Loss per share | L126: Gain / Loss per Lot | M126: Lot | N126: Status | O126: Closed Date
A127: 1 | B127: 2020-02-04 | D127: ESCORTS FEB FUT | E127: Sell | F127: 836 | G127: 864 | H127: 855 | I127: 800-790 | J127: Loss of Rs.13/- | K127: =F127-H127 -> -19 | L127: =-13*M127 -> -14300 | M127: 1100 | N127: Unsuccessful | O127: 2020-02-04 | R127: H
D128: ESCORTS FEB 800 PE | E128: Sell | F128: 17 | H128: 11 | K128: =F128-H128 -> 6 | R128: H
A129: 2 | B129: 2020-02-11 | D129: NIFTY FEB FUT | E129: Sell | F129: 12165 | G129: 12310 | H129: 12065 | I129: 11900 | J129: Profit of Rs.100/- | K129: =F129-H129 -> 100 | L129: =K129*M129 -> 7500 | M129: 75 | N129: Successful | O129: 2020-02-17 | R129: R
A130: 3 | B130: 2020-02-14 | D130: BANKNIFTY FEB FUT | E130: Sell | F130: 31340 | G130: 31690 | H130: 31110 | I130: 30500 | J130: Profit of Rs.230/- | K130: =F130-H130 -> 230 | L130: =K130*M130 -> 4600 | M130: 20 | N130: Successful | O130: 2020-02-14 | R130: H
A136: Master Trade Medium Risk
A137: Sr.no | B137: Date | D137: Company | E137: Rec | F137: Rec Price | G137: Stop Loss | H137: Call Closed At | I137: Target | J137: Remark | K137: Profit/ Loss per lot | L137: Gain / Loss per Lot | M137: Lot | N137: Status | O137: Closed Date
A138: 1 | B138: 2020-01-31 | D138: DLF 250 FEB PE | E138: Buy | F138: 8.8 | H138: 13.5 | J138: Profit of Rs.1.2/- | K138: =H138-F138 -> 4.7 | L138: =1.2*M138 -> 3960 | M138: 3300 | N138: Successful | O138: 2020-02-01 | R138: H
D139: DLF FEB 245 PE | E139: Sell | F139: 7 | H139: 10.5 | K139: =F139-H139 -> -3.5 | R139: H
A140: 2 | B140: 2020-02-01 | D140: DABUR 490 FEB PE | E140: Buy | F140: 9 | G140: 4.5 | H140: 11 | I140: 14-16 | J140: Profit of Rs.2/- | K140: =H140-F140 -> 2 | L140: =K140*M140 -> 2500 | M140: 1250 | N140: Successful | O140: 2020-02-01 | R140: H
A141: 3 | B141: 2020-02-03 | D141: MARUTI 7200 FEB CE | E141: Buy | F141: 111.5 | H141: 155.5 | J141: Prpfit of Rs.23.5 | K141: 44 | L141: =23.5*M141 -> 1762.5 | M141: 75 | N141: Successful | O141: 2020-02-04 | R141: H
D142: MARUTI 7400 FEB CE | E142: Sell | F142: 61.5 | H142: 82 | K142: -20.5 | R142: H
A143: 4 | B143: 2020-02-04 | D143: NIFTY 27 FEB 11700 PE | E143: Buy | F143: 120 | H143: 82.5 | J143: Prpfit of Rs.16 | K143: =H143-F143 -> -37.5 | L143: =16*M143 -> 1200 | M143: 75 | N143: Successful | O143: 2020-02-26 | R143: H
D144: NIFTY 27 FEB 11500 PE | E144: Sell | F144: 66 | H144: 12.5 | K144: =F144-H144 -> 53.5 | R144: H
A145: 5 | B145: 2020-02-05 | D145: NIFTY 11800 27-FEB PE | E145: Buy | F145: 73 | G145: 35 | H145: 84 | I145: 120-140 | J145: Profit of Rs.11/- | K145: =H145-F145 -> 11 | L145: =K145*M145 -> 825 | M145: 75 | N145: Successful | O145: 2020-02-05 | R145: H
A146: 6 | B146: 2020-02-05 | D146: DABUR 490 FEB PE | E146: Buy | F146: 4.75 | G146: 1.5 | H146: 3.4 | I146: 8.00-10.00 | J146: Loss of Rs.1.35/- | K146: -1.35 | L146: -1687.5 | M146: 1250 | N146: Unsuccessful | O146: 2020-02-17 | R146: H
A147: 7 | B147: 2020-02-05 | D147: NIFTY 11800 27-FEB PE | E147: Buy | F147: 66.5 | G147: 33 | H147: 32.5 | I147: 110-120 | J147: Loss of Rs.34/- | K147: =H147-F147 -> -34 | L147: =K147*M147 -> -2550 | M147: 75 | N147: Unsuccessful | O147: 2020-02-11 | R147: H
A148: 8 | B148: 2020-02-12 | D148: NIFTY 12150 PE 20-FEB | E148: Buy | F148: 56 | G148: 30 | H148: 66 | I148: 100-110 | J148: Profit of Rs.10/- | K148: 10 | L148: 750 | M148: 75 | N148: Successful | O148: 2020-02-13 | R148: H
A149: 9 | B149: 2020-02-12 | D149: ESCORTS 840 PE FEB | E149: Buy | F149: 12.25 | G149: 8 | H149: 13.75 | I149: 18-20 | J149: Profit of Rs.1.50/- | K149: 1.5 | L149: 1650 | M149: 1100 | N149: Successful | O149: 2020-02-13 | R149: N
A150: 10 | B150: 2020-02-13 | D150: NIFTY 12150 PE 20-FEB | E150: Buy | F150: 69 | G150: 39 | H150: 39 | I150: 110-120 | J150: Loss of Rs.30/- | K150: =H150-F150 -> -30 | L150: =K150*M150 -> -2250 | M150: 75 | N150: Unsuccessful | O150: 2020-02-14 | R150: N
A151: 11 | B151: 2020-02-14 | D151: BAJAJ-AUTO 3150 PE FEB | E151: Buy | F151: 43.50 | G151: 30 | H151: 53.5 | I151: 60-70 | J151: Profit of Rs.10/- | K151: 10 | L151: 2500 | M151: 250 | N151: Successful | O151: 2020-02-14 | R151: N
A152: 12 | B152: 2020-02-17 | D152: TVSMOTOR 440 CE FEB | E152: Buy | F152: 7.5 | G152: 3.5 | H152: 9 | I152: 14-16 | J152: Profit of Rs.1.5/- | K152: 1.5 | L152: 2025 | M152: 1350 | N152: Successful | O152: 2020-02-18 | R152: N
A153: 13 | B153: 2020-02-18 | D153: LT 1300 FEB CE | E153: Buy | F153: 12 | G153: 4 | H153: 17 | I153: 25-30 | J153: Profit of Rs.5/- | K153: =H153-F153 -> 5 | L153: =K153*M153 -> 1875 | M153: 375 | N153: Successful | O153: 2020-02-19 | R153: H
A154: 14 | B154: 2020-02-18 | D154: BANKBARODA 85 FEB CE | E154: Buy | F154: 0.75 | H154: 1 | I154: 43876 | J154: Profit of Rs.0.25/- | K154: =H154-F154 -> 0.25 | L154: =K154*M154 -> 1350 | M154: 5400 | N154: Successful | O154: 2020-02-18 | R154: H
A155: 15 | B155: 2020-02-19 | D155: NIFTY 12100 PE 27-FEB | E155: Buy | F155: 76 | G155: 40 | H155: 94 | I155: 120-130 | J155: Profit of Rs.18/- | K155: 18 | L155: 1350 | M155: 75 | N155: Successful | O155: 2020-02-19 | R155: N
A156: 16 | B156: 2020-02-19 | D156: NIFTY 12100 PE 27-FEB | E156: Buy | F156: 73.50 | G156: 40 | H156: 82.5 | I156: 120-130 | J156: Profit of Rs.9/- | K156: =H156-F156 -> 9 | L156: =K156*M156 -> 675 | M156: 75 | N156: Successful | O156: 2020-02-20 | R156: N
A157: 17 | B157: 2020-02-19 | D157: LT 1300 FEB CE | E157: Buy | F157: 11.50 | G157: 3 | H157: 3 | I157: 25 | J157: Loss of Rs.8.50/- | K157: -8.5 | L157: -3187.5 | M157: 375 | N157: Unsuccessful | O157: 2020-02-24 | R157: N
A158: 18 | B158: 2020-02-24 | D158: TVSMOTOR 450 FEB CE | E158: Buy | F158: 2.50 | H158: 1 | I158: 7 | J158: Loss of Rs.1.50/- | K158: =H158-F158 -> -1.5 | L158: =K158*M158 -> -2025 | M158: 1350 | N158: Unsuccessful | O158: 2020-02-25 | R158: N
A159: 19 | B159: 2020-02-24 | D159: ITC 210 MAR CE | E159: Buy | F159: 4.10 | G159: 2.75 | H159: 2.75 | I159: 8.00-10.00 | J159: Loss of Rs.1.35/- | K159: =H159-F159 -> -1.35 | L159: =K159*M159 -> -3240 | M159: 2400 | N159: Unsuccessful | O159: 2020-02-26 | R159: H
A160: 20 | B160: 2020-02-24 | D160: BANKBARODA 82.50 FEB CE | E160: Buy | F160: 0.7 | H160: 1 | I160: 2-2.50 | J160: Profit of Rs.0.30/- | K160: =H160-F160 -> 0.3 | L160: =K160*M160 -> 1620 | M160: 5400 | N160: Successful | O160: 2020-02-24 | R160: H
A161: 21 | B161: 2020-02-24 | D161: LICHSGFIN 360 FEB CE | E161: Buy | F161: 5.5 | G161: 1.5 | H161: 3 | I161: 44175 | J161: Loss of Rs.2.50/- | K161: -2.5 | L161: -3250 | M161: 1300 | N161: Unsuccessful | O161: 2020-02-24 | R161: H
A162: 22 | B162: 2020-02-25 | D162: HDFCBANK 1220 FEB CE | E162: Buy | F162: 4-4.50 | I162: 10 | J162: Open | R162: H
A163: 23 | B163: 2020-02-25 | D163: BANKNIFTY 30500 FEB 27 CE | E163: Buy | F163: 185 | H163: 240 | I163: 400-450 | J163: Profit of Rs.55/- | K163: =H163-F163 -> 55 | L163: =K163*M163 -> 1100 | M163: 20 | N163: Successful | O163: 2020-02-25 | R163: H
A164: 24 | B164: 2020-02-25 | D164: BANKNIFTY 30400 FEB 27 CE | E164: Buy | F164: 190 | H164: 242.5 | I164: 400-450 | J164: Profit of Rs.52.50/- | K164: =H164-F164 -> 52.5 | L164: =K164*M164 -> 1050 | M164: 20 | N164: Successful | O164: 2020-02-25 | R164: H
A165: 25 | B165: 2020-02-26 | D165: BANKNIFTY 30200 27-FEB CE | E165: Buy | F165: 235 | H165: 355 | I165: 400-450 | J165: Profit of Rs.120/- | K165: =H165-F165 -> 120 | L165: =K165*M165 -> 2400 | M165: 20 | N165: Successful | O165: 2020-02-26
A168: Techno -Funda (positional)
A169: Sr.no | B169: Date | D169: Company | E169: Rec | F169: Rec Price | G169: Stop Loss*** | H169: Call Closed At | I169: Target | J169: Remark | K169: Profit / Loss per Share | L169: Gain / Loss % | M169: Status | N169: Closed Date | O169: NSE Closed Price
A170: 1 | B170: 2020-01-07 | D170: FINPIPE | E170: Buy | F170: 543 | G170: 495 | H170: 584.5 | I170: 630-650 | J170: Profit of Rs.41.5/- | K170: =H170-F170 -> 41.5 | L170: =K170/F170 -> 7.64% | M170: Successful | N170: 2020-02-01 | R170: H
A172: CLBS = Closing Basis *** | F172: Reinitiated $
A173: Dividend adjusted <> | F173: Revised stoploss #
B178: Investment Idea
A179: Sr.no | B179: Date | D179: Company | E179: Rec | F179: Rec Price | G179: Point of Review | H179: Close Rate | I179: Target | J179: Remark | K179: Profit / Loss per Share | L179: Gain / Loss % | M179: Status | N179: Closed Date
A180: 1 | B180: 2013-11-01 | D180: L&T Finance Holding | E180: Accu | F180: 82.00 | G180: - | H180: 100 | I180: 100.00 | J180: Target Achieved | K180: =H180-F180 -> 18.00 | L180: =K180/F180 -> 21.95% | M180: Successful | N180: 2016-10-14
A181: 2 | B181: 2014-06-04 | D181: Finolex Inds | E181: Buy | F181: 257.00 | G181: - | H181: 300 | I181: 300.00 | J181: Target Achieved | K181: 43.00 | L181: 16.73% | M181: Successful | N181: 2014-07-02
A182: 3 | B182: 2014-07-08 | D182: JK Cement | E182: Buy | F182: 393.00 | G182: - | H182: 468 | I182: 468.00 | J182: Target Achieved | K182: 75.00 | L182: 19.08% | M182: Successful | N182: 2014-08-12
A183: 4 | B183: 2014-08-06 | D183: Finolex Cables | E183: Buy | F183: 205.00 | G183: - | H183: 275 | I183: 250.00 | J183: Target Achieved | K183: 70.00 | L183: 34.15% | M183: Successful | N183: 2014-11-19
A184: 5 | B184: 2014-09-04 | D184: Exide Inds | E184: Buy | F184: 162.00 | G184: - | H184: 190 | I184: 190.00 | J184: Target Achieved | K184: 28.00 | L184: 17.28% | M184: Successful | N184: 2015-01-02
A185: 6 | B185: 2014-09-04 | D185: Deepak Nitrite | E185: Buy | F185: 75.00 | G185: - | H185: 91.5 | I185: 95-100 | J185: Profit of Rs.16.50/- | K185: 16.50 | L185: 22.00% | M185: Successful | N185: 2014-11-11
A186: 7 | B186: 2014-10-01 | D186: Mercks | E186: Buy | F186: 850.00 | G186: - | H186: 982.5 | I186: 1050.00 | J186: Profit of Rs.132.50/- | K186: 132.50 | L186: 15.59% | M186: Successful | N186: 2015-02-04
A187: 8 | B187: 2014-10-01 | D187: Grindwell Norton | E187: Buy | F187: 475.00 | G187: - | H187: 515 | I187: 600.00 | J187: Profit of Rs.40/- | K187: 40.00 | L187: 8.42% | M187: Successful | N187: 2014-10-27
A188: 9 | B188: 2014-10-01 | D188: Snowman Logistics | E188: Buy | F188: 86.00 | G188: - | H188: 99 | I188: 140.00 | J188: Profit of Rs.13.00/- | K188: 13.00 | L188: 15.12% | M188: Successful | N188: 2014-10-27
A189: 10 | B189: 2014-10-14 | D189: Birla Corp | E189: Buy | F189: 496.60 | G189: - | H189: 621 | I189: 580.00 | J189: Target Achieved | K189: 124.40 | L189: 25.05% | M189: Successful | N189: 2016-08-23
A190: 11 | B190: 2014-10-14 | D190: Ultratech Cem | E190: Buy | F190: 2481.90 | G190: - | H190: 2840 | I190: 2870.00 | J190: Profit of Rs.358.10/- | K190: 358.10 | L190: 14.43% | M190: Successful | N190: 2015-01-13
A191: 12 | B191: 2014-10-16 | D191: Sintex Inds | E191: Buy | F191: 84.50 | G191: - | H191: 93 | I191: 110.00 | J191: Profit of Rs.8.50/- | K191: 8.50 | L191: 10.06% | M191: Successful | N191: 2014-10-27
A192: 13 | B192: 2014-10-16 | D192: HSIL | E192: Buy | F192: 401.00 | G192: - | H192: 428 | I192: 450.00 | J192: Profit of Rs.27.00/- | K192: 27.00 | L192: 6.73% | M192: Successful | N192: 2015-01-16
A193: 14 | B193: 2014-10-16 | D193: Eveready Inds | E193: Buy | F193: 101.00 | G193: - | H193: 112 | I193: 120.00 | J193: Profit of Rs.11.00/- | K193: 11.00 | L193: 10.89% | M193: Successful | N193: 2014-10-27
A194: 15 | B194: 2014-11-11 | D194: Pennar Inds | E194: Buy | F194: 59.00 | G194: - | H194: 76 | I194: 76.00 | J194: Target Achieved | K194: 17.00 | L194: 28.81% | M194: Successful | N194: 2017-10-24
A195: 16 | B195: 2014-11-11 | D195: Snowman Logistics | E195: Buy | F195: 99.00 | G195: - | H195: 120 | I195: 120.00 | J195: Profit of Rs.21/- | K195: 21.00 | L195: 21.21% | M195: Successful | N195: 2014-11-17
A196: 17 | B196: 2014-11-13 | D196: Dharamsi Morarji Chem | E196: Buy | F196: 22.00 | G196: - | H196: 33.55 | I196: 32.00 | J196: Profit of Rs 11.55/- | K196: 11.55 | L196: 52.50% | M196: Successful | N196: 2015-07-03
A197: 18 | B197: 2014-12-03 | D197: Tatachem | E197: Buy | F197: 440.00 | G197: - | H197: 520 | I197: 520.00 | J197: Profit of Rs 80.00/- | K197: 80.00 | L197: 18.18% | M197: Successful | N197: 2015-07-23
A198: 19 | B198: 2014-12-03 | D198: Advanta | E198: Buy | F198: 360.00 | G198: - | H198: 427 | I198: 425.00 | J198: Profit of Rs.67.00/- | K198: 67.00 | L198: 18.61% | M198: Successful | N198: 2015-02-23
A199: 20 | B199: 2015-01-08 | D199: GDL | E199: Buy | F199: 360.00 | G199: - | H199: 455 | I199: 420.00 | J199: Profit of Rs.95.00/- | K199: 95.00 | L199: 26.39% | M199: Successful | N199: 2015-01-20
A200: 21 | B200: 2015-01-08 | D200: NRB Bearing | E200: Buy | F200: 130.00 | H200: 175.5 | I200: 165.00 | J200: Profit of Rs 45.50/- | K200: 45.50 | L200: 35.00% | M200: Successful | N200: 2017-12-19
A201: 22 | B201: 2015-02-05 | D201: GSFC | E201: Accu | F201: 98.00 | H201: 120 | I201: 120.00 | J201: Target Achieved | K201: 22.00 | L201: 22.45% | M201: Successful | N201: 2017-01-18
A202: 23 | B202: 2015-02-05 | D202: Sundrmfast | E202: Accu | F202: 196.00 | H202: 262 | I202: 255.00 | J202: Target Achieved | K202: 66.00 | L202: 33.67% | M202: Successful | N202: 2016-08-17
A203: 24 | B203: 2015-03-04 | D203: GPPL | E203: Accu | F203: 235 | H203: 77.00 | I203: 280-285 | J203: Loss of Rs.158/- | K203: -158.00 | L203: -67.23% | M203: Unsuccessful | N203: 2019-02-26
A204: 25 | B204: 2015-03-04 | D204: ORIENTCEM | E204: Accu | F204: 185.00 | H204: 224 | I204: 220-225 | J204: Target Achieved | K204: 39.00 | L204: 21.08% | M204: Successful | N204: 2016-10-04
A205: 26 | B205: 2015-03-27 | D205: PFS | E205: Accu | F205: 49.5 | H205: 15.85 | I205: 67.00 | J205: Loss of Rs.33.65/- | K205: -33.65 | L205: -68% | M205: Unsuccessful | N205: 2019-06-11
A206: 27 | B206: 2015-03-30 | D206: Walchandnagar Ind Ltd | E206: Accu | F206: 183.50 | H206: 219 | I206: 218.00 | J206: Profit of Rs.35.50/- | K206: 35.50 | L206: 19.35% | M206: Successful | N206: 2015-04-09
A207: 28 | B207: 2015-04-20 | D207: Kalpataru Power Transmission Ltd | E207: Accu | F207: =(227+237)/2 -> 232.00 | H207: 298 | I207: 298.00 | J207: Target Achieved | K207: 66.00 | L207: 28.45% | M207: Successful | N207: 2017-03-29
A208: 29 | B208: 2015-05-04 | D208: Mastek Ltd | E208: Buy | F208: 385.00 | H208: =212.5+331 -> 543.5 | I208: 510.00 | J208: Profit of Rs 158.50/- | K208: 158.50 | L208: 41.17% | M208: Successful | N208: 2015-08-19
A209: 30 | B209: 2015-05-04 | D209: Suprajit Eng | E209: Buy | F209: 115.50 | H209: 146 | I209: 142.00 | J209: Profit of Rs 30.50/- | K209: 30.50 | L209: 26.41% | M209: Successful | N209: 2015-07-17
A210: 31 | B210: 2015-05-27 | D210: TCI | E210: Buy | F210: 237.50 | H210: 279.5 | I210: 278.00 | J210: Target Achieved | K210: 42.00 | L210: 17.68% | M210: Successful | N210: 2015-08-06
A211: 32 | B211: 2015-06-19 | D211: HSIL | E211: Accu | F211: 340.00 | H211: 448 | I211: 448.00 | J211: Target Achieved | K211: 108.00 | L211: 31.76% | M211: Successful | N211: 2017-10-10
A212: 33 | B212: 2015-07-06 | D212: Capital First | E212: Accu | F212: 390.00 | H212: 460 | I212: 460.00 | J212: Target Achieved | K212: =H212-F212 -> 70.00 | L212: =K212/F212 -> 17.95% | M212: Successful | N212: 2016-04-18
A213: 34 | B213: 2015-07-10 | D213: Dolphin OffShore | E213: Accu | F213: 122.5 | H213: 61.00 | I213: 172.00 | J213: Loss of Rs.61.50/- | K213: -61.50 | L213: -50.20% | M213: Unsuccessful | N213: 2018-08-21
A214: 35 | B214: 2015-08-03 | D214: Allcargo logistics | E214: Accu | F214: 297.50 | H214: 350 | I214: 360.00 | J214: Profit of Rs 52.50/- | K214: 52.50 | L214: 17.65% | M214: Successful | N214: 2015-08-16
A215: 36 | B215: 2015-08-03 | D215: Camline Fine | E215: Accu | F215: 115.50 | H215: 149 | I215: 140.00 | J215: Profit of Rs 33.50/- | K215: 33.50 | L215: 29.00% | M215: Successful | N215: 2017-01-05
A216: 37 | B216: 2015-09-04 | D216: TCI | E216: Accu | F216: 226.00 | H216: 292 | I216: 292.00 | J216: Target Achieved | K216: 66.00 | L216: 29.20% | M216: Successful | N216: 2015-10-09
A217: 38 | B217: 2015-09-07 | D217: Kalpataru Power Transmission Ltd | E217: Accu | F217: 232.50 | H217: 312.5 | I217: 310.00 | J217: Target Achieved | K217: 80.00 | L217: 34.41% | M217: Successful | N217: 2017-03-29
A218: 39 | B218: 2015-09-21 | D218: LLOYD ELECTRIC & ENG LTD | E218: Accu | F218: 196.50 | H218: 238 | I218: 238.00 | J218: Target Achieved | K218: 41.50 | L218: 21.12% | M218: Successful | N218: 2015-10-14
... 114 more rows

Sheet Sheet2 (hidden)
A1: SYMBOL | B1: SERIES | C1: OPEN | D1: HIGH | E1: LOW | F1: CLOSE | G1: LAST | H1: PREVCLOSE | I1: TOTTRDQTY | J1: TOTTRDVAL | K1: TIMESTAMP | L1: TOTALTRADES | M1: ISIN | N1: ISIN
A2: 20MICRONS | B2: EQ | C2: 33.9 | D2: 33.9 | E2: 33 | F2: 33.5 | G2: 33.65 | H2: 33.5 | I2: 11548 | J2: 386386.3 | K2: 2020-02-26 | L2: 266 | M2: INE144J01027
A3: 21STCENMGM | B3: EQ | C3: 12.6 | D3: 12.6 | E3: 12.35 | F3: 12.35 | G3: 12.35 | H3: 12.6 | I3: 780 | J3: 9633.6 | K3: 2020-02-26 | L3: 17 | M3: INE253B01015
A4: 3IINFOTECH | B4: EQ | C4: 2.1 | D4: 2.15 | E4: 2 | F4: 2.05 | G4: 2.05 | H4: 2.15 | I4: 1565461 | J4: 3246949.25 | K4: 2020-02-26 | L4: 582 | M4: INE748C01020
A5: 3MINDIA | B5: EQ | C5: 20815 | D5: 21100 | E5: 20700 | F5: 20771.6 | G5: 20868 | H5: 20881.25 | I5: 3205 | J5: 67065886.3 | K5: 2020-02-26 | L5: 1112 | M5: INE470A01017
A6: 3PLAND | B6: EQ | C6: 4.95 | D6: 4.95 | E6: 4.6 | F6: 4.65 | G6: 4.6 | H6: 4.75 | I6: 3502 | J6: 16645.7 | K6: 2020-02-26 | L6: 18 | M6: INE105C01023
A7: 5PAISA | B7: EQ | C7: 165.05 | D7: 177.9 | E7: 161 | F7: 165.75 | G7: 166.7 | H7: 173.45 | I7: 14956 | J7: 2490531.25 | K7: 2020-02-26 | L7: 439 | M7: INE618L01018
A8: 63MOONS | B8: EQ | C8: 93.5 | D8: 98.1 | E8: 93.15 | F8: 94.25 | G8: 94.1 | H8: 94.85 | I8: 95532 | J8: 9097608.4 | K8: 2020-02-26 | L8: 1839 | M8: INE111B01023
A9: A2ZINFRA | B9: EQ | C9: 4.45 | D9: 4.85 | E9: 4.4 | F9: 4.6 | G9: 4.5 | H9: 4.7 | I9: 370494 | J9: 1751573.15 | K9: 2020-02-26 | L9: 446 | M9: INE619I01012
A10: AARTIDRUGS | B10: EQ | C10: 679.95 | D10: 764.8 | E10: 665.55 | F10: 747 | G10: 749 | H10: 677.75 | I10: 328446 | J10: 240346129.2 | K10: 2020-02-26 | L10: 17916 | M10: INE767A01016
A11: AARTIIND | B11: EQ | C11: 1019.95 | D11: 1027 | E11: 995.95 | F11: 999.7 | G11: 998 | H11: 1019.95 | I11: 342707 | J11: 347885653.2 | K11: 2020-02-26 | L11: 12168 | M11: INE769A01020
A12: AARVEEDEN | B12: EQ | C12: 13.05 | D12: 13.05 | E12: 12.5 | F12: 12.65 | G12: 12.6 | H12: 13.25 | I12: 4729 | J12: 60377.2 | K12: 2020-02-26 | L12: 56 | M12: INE273D01019
A13: AAVAS | B13: EQ | C13: 1903 | D13: 1944.85 | E13: 1875 | F13: 1903.75 | G13: 1900 | H13: 1913.8 | I13: 32924 | J13: 62830994.3 | K13: 2020-02-26 | L13: 3990 | M13: INE216P01012
A14: ABAN | B14: EQ | C14: 22.8 | D14: 22.8 | E14: 21.55 | F14: 22.2 | G14: 22 | H14: 22.5 | I14: 45187 | J14: 1003878.35 | K14: 2020-02-26 | L14: 447 | M14: INE421A01028
A15: ABB | B15: EQ | C15: 1195 | D15: 1212.35 | E15: 1190 | F15: 1201.4 | G15: 1200 | H15: 1200.2 | I15: 25367 | J15: 30498588.55 | K15: 2020-02-26 | L15: 2002 | M15: INE117A01022
A16: ABBOTINDIA | B16: EQ | C16: 16201 | D16: 16499 | E16: 15950 | F16: 16237.1 | G16: 16336 | H16: 16202.65 | I16: 14286 | J16: 231418845.3 | K16: 2020-02-26 | L16: 4981 | M16: INE358A01014
A17: ABCAPITAL | B17: EQ | C17: 84 | D17: 85.4 | E17: 82.95 | F17: 83.2 | G17: 83.05 | H17: 84.4 | I17: 1274174 | J17: 106917089.7 | K17: 2020-02-26 | L17: 14034 | M17: INE674K01013
A18: ABFRL | B18: EQ | C18: 266.5 | D18: 266.5 | E18: 260 | F18: 262.4 | G18: 263 | H18: 267.3 | I18: 605177 | J18: 158973096.8 | K18: 2020-02-26 | L18: 25776 | M18: INE647O01011
A19: ABSLBANETF | B19: EQ | C19: 302.85 | D19: 302.85 | E19: 302.85 | F19: 302.85 | G19: 302.85 | H19: 305.57 | I19: 1 | J19: 302.85 | K19: 2020-02-26 | L19: 1 | M19: INF209KB1O58
A20: ABSLNN50ET | B20: EQ | C20: 281.07 | D20: 281.07 | E20: 276.34 | F20: 277.37 | G20: 276.34 | H20: 283.85 | I20: 45 | J20: 12591.58 | K20: 2020-02-26 | L20: 7 | M20: INF209KB1B87
A21: ACC | B21: EQ | C21: 1399 | D21: 1418.7 | E21: 1387.35 | F21: 1399.5 | G21: 1404 | H21: 1401.1 | I21: 886570 | J21: 1245661028 | K21: 2020-02-26 | L21: 23267 | M21: INE012A01025
A22: ACCELYA | B22: EQ | C22: 1068.95 | D22: 1083 | E22: 1068 | F22: 1079.45 | G22: 1080 | H22: 1068.95 | I22: 13717 | J22: 14781802.8 | K22: 2020-02-26 | L22: 1119 | M22: INE793A01012
A23: ACE | B23: EQ | C23: 71.5 | D23: 74.75 | E23: 70.1 | F23: 71.05 | G23: 72 | H23: 71.75 | I23: 264451 | J23: 19036891.8 | K23: 2020-02-26 | L23: 2628 | M23: INE731H01025
A24: ADANIENT | B24: EQ | C24: 244 | D24: 246.3 | E24: 241 | F24: 242.8 | G24: 241.4 | H24: 246.45 | I24: 2897390 | J24: 707098850.8 | K24: 2020-02-26 | L24: 17903 | M24: INE423A01024
A25: ADANIGAS | B25: EQ | C25: 152.9 | D25: 159.7 | E25: 148.1 | F25: 149 | G25: 148.7 | H25: 154.65 | I25: 4322437 | J25: 659393705.6 | K25: 2020-02-26 | L25: 24758 | M25: INE399L01023
A26: ADANIGREEN | B26: EQ | C26: 175.55 | D26: 177.85 | E26: 171.55 | F26: 171.55 | G26: 171.55 | H26: 180.55 | I26: 996786 | J26: 173182708.9 | K26: 2020-02-26 | L26: 23285 | M26: INE364U01010
A27: ADANIPORTS | B27: EQ | C27: 356.9 | D27: 362.5 | E27: 352.9 | F27: 358.4 | G27: 357.6 | H27: 358.4 | I27: 4164401 | J27: 1489700786 | K27: 2020-02-26 | L27: 40532 | M27: INE742F01042
A28: ADANIPOWER | B28: EQ | C28: 55.55 | D28: 56.15 | E28: 53.8 | F28: 54.45 | G28: 54.3 | H28: 56.05 | I28: 9107030 | J28: 500447265.6 | K28: 2020-02-26 | L28: 12907 | M28: INE814H01011
A29: ADANITRANS | B29: EQ | C29: 285 | D29: 286 | E29: 261.25 | F29: 263.95 | G29: 264.2 | H29: 288.9 | I29: 354124 | J29: 95701811.3 | K29: 2020-02-26 | L29: 15065 | M29: INE931S01010
A30: ADFFOODS | B30: EQ | C30: 292 | D30: 294.95 | E30: 286.1 | F30: 290 | G30: 291.4 | H30: 291.75 | I30: 12209 | J30: 3534642.7 | K30: 2020-02-26 | L30: 374 | M30: INE982B01019
A31: ADHUNIKIND | B31: EQ | C31: 34.85 | D31: 36.1 | E31: 34.75 | F31: 35.8 | G31: 35.8 | H31: 35.45 | I31: 31748 | J31: 1136149.1 | K31: 2020-02-26 | L31: 119 | M31: INE452L01012
A32: ADLABS | B32: BE | C32: 3.75 | D32: 3.85 | E32: 3.65 | F32: 3.8 | G32: 3.75 | H32: 3.75 | I32: 26501 | J32: 99344.6 | K32: 2020-02-26 | L32: 107 | M32: INE172N01012
A33: ADORWELD | B33: EQ | C33: 314.1 | D33: 316.05 | E33: 309.2 | F33: 312.35 | G33: 312.55 | H33: 314.85 | I33: 2954 | J33: 925182.3 | K33: 2020-02-26 | L33: 179 | M33: INE045A01017
A34: ADROITINFO | B34: BE | C34: 5.75 | D34: 6 | E34: 5.7 | F34: 6 | G34: 6 | H34: 5.75 | I34: 800 | J34: 4605.05 | K34: 2020-02-26 | L34: 4 | M34: INE737B01033
A35: ADSL | B35: BE | C35: 20.05 | D35: 20.45 | E35: 19.5 | F35: 19.55 | G35: 20.45 | H35: 20.15 | I35: 21315 | J35: 420719.3 | K35: 2020-02-26 | L35: 80 | M35: INE102I01027
A36: ADVANIHOTR | B36: EQ | C36: 53.15 | D36: 55.45 | E36: 53.1 | F36: 53.75 | G36: 53.55 | H36: 54.1 | I36: 9271 | J36: 499648.45 | K36: 2020-02-26 | L36: 138 | M36: INE199C01026
A37: ADVENZYMES | B37: EQ | C37: 161.3 | D37: 164.8 | E37: 158.15 | F37: 160.65 | G37: 160.65 | H37: 160.6 | I37: 62338 | J37: 10129938.15 | K37: 2020-02-26 | L37: 1675 | M37: INE837H01020
A38: AEGISCHEM | B38: EQ | C38: 239.95 | D38: 248 | E38: 237.2 | F38: 239.85 | G38: 243.3 | H38: 239.75 | I38: 216287 | J38: 52490941.1 | K38: 2020-02-26 | L38: 4217 | M38: INE208C01025
A39: AFFLE | B39: EQ | C39: 2088.7 | D39: 2169 | E39: 2070.15 | F39: 2128.8 | G39: 2129.95 | H39: 2115.65 | I39: 169645 | J39: 360567188.1 | K39: 2020-02-26 | L39: 15372 | M39: INE00WC01019
A40: AGARIND | B40: EQ | C40: 77.05 | D40: 79.05 | E40: 76 | F40: 77.1 | G40: 77.1 | H40: 78.85 | I40: 2084 | J40: 160594.05 | K40: 2020-02-26 | L40: 53 | M40: INE204E01012
A41: AGCNET | B41: EQ | C41: 456.5 | D41: 456.5 | E41: 413.1 | F41: 420.15 | G41: 418.8 | H41: 434.8 | I41: 141897 | J41: 60917504.3 | K41: 2020-02-26 | L41: 3106 | M41: INE676A01019
A42: AGRITECH | B42: EQ | C42: 41.15 | D42: 41.5 | E42: 38.65 | F42: 39.65 | G42: 40 | H42: 41.1 | I42: 15993 | J42: 639572.2 | K42: 2020-02-26 | L42: 281 | M42: INE449G01018
A43: AGROPHOS | B43: EQ | C43: 12.85 | D43: 14.15 | E43: 12.85 | F43: 14.15 | G43: 14.15 | H43: 13.5 | I43: 554440 | J43: 7374069.15 | K43: 2020-02-26 | L43: 1379 | M43: INE740V01019
A44: AHLEAST | B44: EQ | C44: 188.25 | D44: 191.95 | E44: 188.1 | F44: 189.9 | G44: 188.55 | H44: 192.05 | I44: 2888 | J44: 551958.15 | K44: 2020-02-26 | L44: 67 | M44: INE926K01017
A45: AHLUCONT | B45: EQ | C45: 340 | D45: 348.7 | E45: 326.25 | F45: 338.75 | G45: 337.5 | H45: 334.2 | I45: 4991 | J45: 1687050.95 | K45: 2020-02-26 | L45: 479 | M45: INE758C01029
A46: AHLWEST | B46: EQ | C46: 355.8 | D46: 367.9 | E46: 341.25 | F46: 344.6 | G46: 341.25 | H46: 367.6 | I46: 4133 | J46: 1475941 | K46: 2020-02-26 | L46: 470 | M46: INE915K01010
A47: AIAENG | B47: EQ | C47: 1760.2 | D47: 1772.9 | E47: 1732 | F47: 1744.65 | G47: 1755 | H47: 1762.45 | I47: 58662 | J47: 102705558.5 | K47: 2020-02-26 | L47: 3073 | M47: INE212H01026
A48: AIONJSW | B48: EQ | C48: 14 | D48: 14.4 | E48: 13.5 | F48: 13.65 | G48: 13.6 | H48: 14.1 | I48: 86275 | J48: 1191568.3 | K48: 2020-02-26 | L48: 257 | M48: INE743C01021
A49: AIRAN | B49: EQ | C49: 11.9 | D49: 12.7 | E49: 11.8 | F49: 12.5 | G49: 12.5 | H49: 11.85 | I49: 5086 | J49: 62436.75 | K49: 2020-02-26 | L49: 28 | M49: INE645W01026
A50: AJANTPHARM | B50: EQ | C50: 1420 | D50: 1434 | E50: 1360.85 | F50: 1414 | G50: 1429.9 | H50: 1419.75 | I50: 254445 | J50: 356226926.9 | K50: 2020-02-26 | L50: 18957 | M50: INE031B01049
A51: AJMERA | B51: EQ | C51: 109.5 | D51: 109.5 | E51: 104.2 | F51: 104.6 | G51: 106 | H51: 109.7 | I51: 50495 | J51: 5333790.7 | K51: 2020-02-26 | L51: 1157 | M51: INE298G01027
A52: AKSHARCHEM | B52: EQ | C52: 293 | D52: 317.05 | E52: 293 | F52: 298.8 | G52: 300 | H52: 292.95 | I52: 15205 | J52: 4651066.45 | K52: 2020-02-26 | L52: 682 | M52: INE542B01011
A53: AKSHOPTFBR | B53: EQ | C53: 6.1 | D53: 6.2 | E53: 6 | F53: 6.05 | G53: 6.1 | H53: 6.3 | I53: 151773 | J53: 923468.5 | K53: 2020-02-26 | L53: 298 | M53: INE523B01011
A54: AKZOINDIA | B54: EQ | C54: 2318.9 | D54: 2320.05 | E54: 2265 | F54: 2304.15 | G54: 2306.2 | H54: 2307.4 | I54: 13439 | J54: 30886516.25 | K54: 2020-02-26 | L54: 2338 | M54: INE133A01011
A55: ALANKIT | B55: EQ | C55: 15.45 | D55: 16.1 | E55: 14.8 | F55: 15.95 | G55: 16 | H55: 15.05 | I55: 536215 | J55: 8381615.1 | K55: 2020-02-26 | L55: 1160 | M55: INE914E01040
A56: ALBERTDAVD | B56: EQ | C56: 422.35 | D56: 429.8 | E56: 394.1 | F56: 417.5 | G56: 421.9 | H56: 433.05 | I56: 7513 | J56: 3138324.2 | K56: 2020-02-26 | L56: 782 | M56: INE155C01010
A57: ALBK | B57: EQ | C57: 13.65 | D57: 13.75 | E57: 13.25 | F57: 13.55 | G57: 13.6 | H57: 13.75 | I57: 543694 | J57: 7401557 | K57: 2020-02-26 | L57: 1692 | M57: INE428A01015
A58: ALCHEM | B58: BE | C58: 0.85 | D58: 0.95 | E58: 0.85 | F58: 0.9 | G58: 0.9 | H58: 0.9 | I58: 87940 | J58: 75195.25 | K58: 2020-02-26 | L58: 34 | M58: INE964B01033
A59: ALEMBICLTD | B59: EQ | C59: 50 | D59: 51.7 | E59: 48.2 | F59: 48.85 | G59: 48.75 | H59: 50.2 | I59: 115875 | J59: 5768692.9 | K59: 2020-02-26 | L59: 2367 | M59: INE426A01027
A60: ALICON | B60: EQ | C60: 335.2 | D60: 347.45 | E60: 324 | F60: 338.15 | G60: 335.8 | H60: 335.2 | I60: 935 | J60: 316943.55 | K60: 2020-02-26 | L60: 128 | M60: INE062D01024
A61: ALKALI | B61: EQ | C61: 44.55 | D61: 48 | E61: 44.55 | F61: 46.55 | G61: 46.5 | H61: 45 | I61: 14992 | J61: 701814.15 | K61: 2020-02-26 | L61: 261 | M61: INE773I01017
A62: ALKEM | B62: EQ | C62: 2640 | D62: 2671.45 | E62: 2606.4 | F62: 2632.8 | G62: 2640.2 | H62: 2643.65 | I62: 35926 | J62: 94763375.25 | K62: 2020-02-26 | L62: 4727 | M62: INE540L01014
A63: ALKYLAMINE | B63: EQ | C63: 1645 | D63: 1774 | E63: 1635.05 | F63: 1747.3 | G63: 1758 | H63: 1650.75 | I63: 106871 | J63: 184910591.1 | K63: 2020-02-26 | L63: 9326 | M63: INE150B01021
A64: ALLCARGO | B64: EQ | C64: 109.15 | D64: 113.2 | E64: 108 | F64: 109.25 | G64: 109 | H64: 110.7 | I64: 157405 | J64: 17342037.6 | K64: 2020-02-26 | L64: 1986 | M64: INE418H01029
A65: ALLSEC | B65: EQ | C65: 269.3 | D65: 278.9 | E65: 261.05 | F65: 268.25 | G65: 268 | H65: 271.3 | I65: 3562 | J65: 952905.35 | K65: 2020-02-26 | L65: 108 | M65: INE835G01018
A66: ALMONDZ | B66: EQ | C66: 16.4 | D66: 17.5 | E66: 16.35 | F66: 17.45 | G66: 17.45 | H66: 17 | I66: 5561 | J66: 95389.35 | K66: 2020-02-26 | L66: 23 | M66: INE326B01027
A67: ALOKINDS | B67: BE | C67: 13.8 | D67: 13.8 | E67: 13.8 | F67: 13.8 | G67: 13.8 | H67: 14.5 | I67: 47194 | J67: 651277.2 | K67: 2020-02-26 | L67: 239 | M67: INE270A01029
A68: ALPA | B68: EQ | C68: 18.5 | D68: 19 | E68: 18.25 | F68: 18.5 | G68: 18.75 | H68: 18.65 | I68: 13949 | J68: 260464.9 | K68: 2020-02-26 | L68: 154 | M68: INE385I01010
A69: ALPHAGEO | B69: EQ | C69: 205 | D69: 205 | E69: 196.8 | F69: 197.85 | G69: 199.5 | H69: 201.3 | I69: 24263 | J69: 4875698.95 | K69: 2020-02-26 | L69: 789 | M69: INE137C01018
A70: ALPSINDUS | B70: BE | C70: 0.8 | D70: 0.85 | E70: 0.8 | F70: 0.85 | G70: 0.85 | H70: 0.85 | I70: 1200 | J70: 1019.7 | K70: 2020-02-26 | L70: 5 | M70: INE093B01015
A71: AMARAJABAT | B71: EQ | C71: 710 | D71: 712.8 | E71: 676 | F71: 695.3 | G71: 693.45 | H71: 712.8 | I71: 2136846 | J71: 1470401694 | K71: 2020-02-26 | L71: 35474 | M71: INE885A01032
A72: AMBER | B72: EQ | C72: 1531 | D72: 1534 | E72: 1465.1 | F72: 1482.85 | G72: 1470 | H72: 1543.8 | I72: 55889 | J72: 84032512.9 | K72: 2020-02-26 | L72: 5462 | M72: INE371P01015
A73: AMBIKCO | B73: EQ | C73: 811.6 | D73: 815.9 | E73: 800.1 | F73: 807.25 | G73: 800.1 | H73: 812.1 | I73: 2676 | J73: 2165773.7 | K73: 2020-02-26 | L73: 222 | M73: INE540G01014
A74: AMBUJACEM | B74: EQ | C74: 211.9 | D74: 216.05 | E74: 210.05 | F74: 213.6 | G74: 213.4 | H74: 211.6 | I74: 6034979 | J74: 1290597733 | K74: 2020-02-26 | L74: 54065 | M74: INE079A01024
A75: AMDIND | B75: EQ | C75: 15.8 | D75: 15.8 | E75: 15.35 | F75: 15.55 | G75: 15.5 | H75: 15.7 | I75: 798 | J75: 12338.15 | K75: 2020-02-26 | L75: 18 | M75: INE005I01014
A76: AMJLAND | B76: EQ | C76: 19.35 | D76: 19.95 | E76: 19.05 | F76: 19.15 | G76: 19.05 | H76: 19.35 | I76: 11562 | J76: 223509.8 | K76: 2020-02-26 | L76: 116 | M76: INE606A01024
A77: AMRUTANJAN | B77: EQ | C77: 509 | D77: 511.5 | E77: 487 | F77: 492.35 | G77: 495 | H77: 507.45 | I77: 43763 | J77: 21949471.1 | K77: 2020-02-26 | L77: 3611 | M77: INE098F01031
A78: ANANTRAJ | B78: EQ | C78: 30.5 | D78: 30.75 | E78: 30.05 | F78: 30.05 | G78: 30.1 | H78: 30.5 | I78: 112430 | J78: 3400403.95 | K78: 2020-02-26 | L78: 766 | M78: INE242C01024
A79: ANDHRABANK | B79: EQ | C79: 14.7 | D79: 14.9 | E79: 14.55 | F79: 14.75 | G79: 14.8 | H79: 14.7 | I79: 276510 | J79: 4078422.9 | K79: 2020-02-26 | L79: 1314 | M79: INE434A01013
A80: ANDHRACEMT | B80: EQ | C80: 2.05 | D80: 2.05 | E80: 1.95 | F80: 2 | G80: 2 | H80: 2.05 | I80: 56835 | J80: 114140.5 | K80: 2020-02-26 | L80: 78 | M80: INE666E01012
A81: ANDHRSUGAR | B81: EQ | C81: 265.35 | D81: 274.1 | E81: 262.8 | F81: 266.95 | G81: 266.5 | H81: 265.45 | I81: 28680 | J81: 7704007.35 | K81: 2020-02-26 | L81: 1071 | M81: INE715B01013
A82: ANDPAPER | B82: EQ | C82: 263 | D82: 265.5 | E82: 259 | F82: 260.8 | G82: 261.2 | H82: 263 | I82: 4011 | J82: 1046352.1 | K82: 2020-02-26 | L82: 226 | M82: INE435A01028
A83: ANIKINDS | B83: BE | C83: 8.3 | D83: 8.3 | E83: 7.6 | F83: 8.3 | G83: 8.3 | H83: 7.95 | I83: 6238 | J83: 49362.85 | K83: 2020-02-26 | L83: 26 | M83: INE087B01017
A84: ANKITMETAL | B84: BE | C84: 0.55 | D84: 0.55 | E84: 0.5 | F84: 0.5 | G84: 0.5 | H84: 0.55 | I84: 4894 | J84: 2459.45 | K84: 2020-02-26 | L84: 22 | M84: INE106I01010
A85: ANSALAPI | B85: EQ | C85: 6.6 | D85: 6.6 | E85: 6.4 | F85: 6.4 | G85: 6.4 | H85: 6.7 | I85: 8671 | J85: 55729.85 | K85: 2020-02-26 | L85: 36 | M85: INE436A01026
A86: ANSALHSG | B86: BE | C86: 5.25 | D86: 5.3 | E86: 4.95 | F86: 4.95 | G86: 4.95 | H86: 5.2 | I86: 28162 | J86: 140362.05 | K86: 2020-02-26 | L86: 53 | M86: INE880B01015
A87: ANTGRAPHIC | B87: BE | C87: 0.6 | D87: 0.65 | E87: 0.6 | F87: 0.65 | G87: 0.65 | H87: 0.65 | I87: 41020 | J87: 25896.85 | K87: 2020-02-26 | L87: 22 | M87: INE414B01021
A88: ANUP | B88: EQ | C88: 537.25 | D88: 548.05 | E88: 531 | F88: 542.75 | G88: 544 | H88: 537.25 | I88: 35515 | J88: 19216104.6 | K88: 2020-02-26 | L88: 1460 | M88: INE294Z01018
A89: APARINDS | B89: EQ | C89: 375.05 | D89: 378.9 | E89: 365.45 | F89: 367.9 | G89: 370 | H89: 378.7 | I89: 23040 | J89: 8520850.35 | K89: 2020-02-26 | L89: 1661 | M89: INE372A01015
A90: APCL | B90: EQ | C90: 151.8 | D90: 153 | E90: 142 | F90: 145.25 | G90: 145.2 | H90: 150.15 | I90: 4579 | J90: 676000.05 | K90: 2020-02-26 | L90: 184 | M90: INE071F01012
A91: APCOTEXIND | B91: EQ | C91: 126.9 | D91: 126.9 | E91: 118.4 | F91: 119.4 | G91: 120.5 | H91: 126.2 | I91: 93999 | J91: 11562640.1 | K91: 2020-02-26 | L91: 1537 | M91: INE116A01032
A92: APEX | B92: EQ | C92: 323.5 | D92: 328.25 | E92: 310.5 | F92: 312.35 | G92: 311.1 | H92: 331.95 | I92: 204586 | J92: 65428967.85 | K92: 2020-02-26 | L92: 6266 | M92: INE346W01013
A93: APLAPOLLO | B93: EQ | C93: 2021 | D93: 2029.9 | E93: 1990.1 | F93: 1995.6 | G93: 1995 | H93: 2034.5 | I93: 87010 | J93: 174493103.6 | K93: 2020-02-26 | L93: 4838 | M93: INE702C01019
A94: APLLTD | B94: EQ | C94: 647 | D94: 664 | E94: 645.05 | F94: 647.55 | G94: 647.15 | H94: 646.6 | I94: 150491 | J94: 98248790.55 | K94: 2020-02-26 | L94: 11350 | M94: INE901L01018
A95: APOLLO | B95: EQ | C95: 77 | D95: 79.8 | E95: 75.8 | F95: 77.2 | G95: 78 | H95: 77.25 | I95: 43983 | J95: 3414062.25 | K95: 2020-02-26 | L95: 800 | M95: INE713T01010
A96: APOLLOHOSP | B96: EQ | C96: 1785.95 | D96: 1796.95 | E96: 1763 | F96: 1767.2 | G96: 1767.05 | H96: 1790.45 | I96: 494854 | J96: 882473907.1 | K96: 2020-02-26 | L96: 28373 | M96: INE437A01024
A97: APOLLOPIPE | B97: EQ | C97: 432.05 | D97: 459.7 | E97: 426.1 | F97: 438.15 | G97: 443 | H97: 441.35 | I97: 11962 | J97: 5230634.45 | K97: 2020-02-26 | L97: 610 | M97: INE126J01016
A98: APOLLOTYRE | B98: EQ | C98: 153.7 | D98: 158 | E98: 146.4 | F98: 148.7 | G98: 149 | H98: 154.4 | I98: 8017307 | J98: 1220165530 | K98: 2020-02-26 | L98: 44817 | M98: INE438A01022
A99: APOLSINHOT | B99: EQ | C99: 600 | D99: 610 | E99: 563.6 | F99: 577.95 | G99: 572.15 | H99: 598.35 | I99: 1105 | J99: 646790.4 | K99: 2020-02-26 | L99: 160 | M99: INE451F01024
A100: APTECHT | B100: EQ | C100: 133.7 | D100: 135.75 | E100: 130.5 | F100: 131.35 | G100: 131.15 | H100: 134.1 | I100: 149450 | J100: 19911364.7 | K100: 2020-02-26 | L100: 4146 | M100: INE266F01018
A101: ARCHIDPLY | B101: BE | C101: 19.6 | D101: 20.3 | E101: 19.6 | F101: 19.85 | G101: 19.85 | H101: 20.5 | I101: 10894 | J101: 216370.45 | K101: 2020-02-26 | L101: 15 | M101: INE877I01016
A102: ARCHIES | B102: EQ | C102: 13.85 | D102: 14.25 | E102: 12.75 | F102: 13.3 | G102: 13.4 | H102: 14 | I102: 76467 | J102: 1012214.35 | K102: 2020-02-26 | L102: 272 | M102: INE731A01020
A103: ARCOTECH | B103: BE | C103: 1.3 | D103: 1.4 | E103: 1.3 | F103: 1.35 | G103: 1.3 | H103: 1.35 | I103: 47285 | J103: 64831.05 | K103: 2020-02-26 | L103: 55 | M103: INE574I01035
A104: ARENTERP | B104: EQ | C104: 15.55 | D104: 15.55 | E104: 15.5 | F104: 15.55 | G104: 15.55 | H104: 14.85 | I104: 380 | J104: 5908.25 | K104: 2020-02-26 | L104: 12 | M104: INE610C01014
A105: ARIES | B105: EQ | C105: 56 | D105: 58.45 | E105: 55.8 | F105: 56.6 | G105: 57 | H105: 56.95 | I105: 12553 | J105: 714303.9 | K105: 2020-02-26 | L105: 267 | M105: INE298I01015
A106: ARIHANT | B106: EQ | C106: 19.4 | D106: 19.4 | E106: 16.6 | F106: 18 | G106: 18 | H106: 18 | I106: 704 | J106: 12179.3 | K106: 2020-02-26 | L106: 18 | M106: INE413D01011
A107: ARIHANTSUP | B107: EQ | C107: 24.85 | D107: 25.9 | E107: 24.85 | F107: 25.9 | G107: 25.9 | H107: 25.8 | I107: 342 | J107: 8555.7 | K107: 2020-02-26 | L107: 9 | M107: INE643K01018
A108: ARMANFIN | B108: EQ | C108: 1019.9 | D108: 1100 | E108: 1001 | F108: 1092.4 | G108: 1094 | H108: 1012.85 | I108: 35003 | J108: 37312118.05 | K108: 2020-02-26 | L108: 2110 | M108: INE109C01017
A109: AROGRANITE | B109: EQ | C109: 32.85 | D109: 32.85 | E109: 31 | F109: 31.4 | G109: 31.4 | H109: 32.3 | I109: 2682 | J109: 84007.55 | K109: 2020-02-26 | L109: 71 | M109: INE210C01013
A110: ARROWGREEN | B110: BE | C110: 39.45 | D110: 40.2 | E110: 39.45 | F110: 39.45 | G110: 39.45 | H110: 41.5 | I110: 5305 | J110: 210007.95 | K110: 2020-02-26 | L110: 57 | M110: INE570D01018
A111: ARSHIYA | B111: EQ | C111: 14.85 | D111: 15.2 | E111: 14 | F111: 14.4 | G111: 14.35 | H111: 14.95 | I111: 34816 | J111: 501186.2 | K111: 2020-02-26 | L111: 136 | M111: INE968D01022
A112: ARSSINFRA | B112: EQ | C112: 15.35 | D112: 15.7 | E112: 14.85 | F112: 15.1 | G112: 14.9 | H112: 15.35 | I112: 10888 | J112: 163326 | K112: 2020-02-26 | L112: 119 | M112: INE267I01010
A113: ARTEMISMED | B113: EQ | C113: 216 | D113: 216 | E113: 196.55 | F113: 199.2 | G113: 199 | H113: 207.3 | I113: 984 | J113: 201236.8 | K113: 2020-02-26 | L113: 24 | M113: INE025R01013
A114: ARVIND | B114: EQ | C114: 38.65 | D114: 39.5 | E114: 38.3 | F114: 38.55 | G114: 38.45 | H114: 38.7 | I114: 822245 | J114: 31874068.25 | K114: 2020-02-26 | L114: 8717 | M114: INE034A01011
A115: ARVINDFASN | B115: EQ | C115: 350 | D115: 360.95 | E115: 345.05 | F115: 358.7 | G115: 360 | H115: 358.5 | I115: 54174 | J115: 19106836.4 | K115: 2020-02-26 | L115: 1014 | M115: INE955V01021
A116: ARVSMART | B116: EQ | C116: 82.1 | D116: 84.75 | E116: 82 | F116: 83.65 | G116: 84.5 | H116: 83.65 | I116: 22796 | J116: 1904164.05 | K116: 2020-02-26 | L116: 343 | M116: INE034S01021
A117: ASAHIINDIA | B117: EQ | C117: 258.05 | D117: 260.95 | E117: 249.45 | F117: 256.2 | G117: 260.5 | H117: 257.95 | I117: 71010 | J117: 18071970.75 | K117: 2020-02-26 | L117: 1272 | M117: INE439A01020
A118: ASAHISONG | B118: EQ | C118: 133.35 | D118: 141.4 | E118: 130.3 | F118: 133.9 | G118: 132.25 | H118: 133.35 | I118: 14012 | J118: 1905398.1 | K118: 2020-02-26 | L118: 897 | M118: INE228I01012
A119: ASAL | B119: EQ | C119: 21.4 | D119: 22.7 | E119: 21.15 | F119: 21.5 | G119: 21.5 | H119: 21.5 | I119: 33174 | J119: 732551.25 | K119: 2020-02-26 | L119: 290 | M119: INE900C01027
A120: ASALCBR | B120: EQ | C120: 244.95 | D120: 244.95 | E120: 227.15 | F120: 235.8 | G120: 235.1 | H120: 245.2 | I120: 34277 | J120: 8144769.85 | K120: 2020-02-26 | L120: 918 | M120: INE073G01016
A121: ASHAPURMIN | B121: EQ | C121: 36 | D121: 36.3 | E121: 34.25 | F121: 34.7 | G121: 34.5 | H121: 36.05 | I121: 33443 | J121: 1165387.55 | K121: 2020-02-26 | L121: 331 | M121: INE348A01023
A122: ASHIANA | B122: EQ | C122: 102.1 | D122: 103.65 | E122: 100.05 | F122: 102.05 | G122: 102.15 | H122: 103.1 | I122: 37163 | J122: 3792318.7 | K122: 2020-02-26 | L122: 527 | M122: INE365D01021
A123: ASHIMASYN | B123: EQ | C123: 6.5 | D123: 6.5 | E123: 6.05 | F123: 6.15 | G123: 6.2 | H123: 6.4 | I123: 29958 | J123: 185854.2 | K123: 2020-02-26 | L123: 118 | M123: INE440A01010
A124: ASHOKA | B124: EQ | C124: 92.9 | D124: 93.4 | E124: 90.55 | F124: 92.9 | G124: 93 | H124: 93.5 | I124: 183003 | J124: 16956451.2 | K124: 2020-02-26 | L124: 2287 | M124: INE442H01029
A125: ASHOKLEY | B125: EQ | C125: 80.65 | D125: 81.9 | E125: 77.6 | F125: 77.95 | G125: 77.9 | H125: 80.65 | I125: 32981809 | J125: 2603465625 | K125: 2020-02-26 | L125: 91202 | M125: INE208A01029
A126: ASIANHOTNR | B126: EQ | C126: 79.45 | D126: 79.45 | E126: 72.3 | F126: 76.4 | G126: 76.45 | H126: 77 | I126: 718 | J126: 54681.55 | K126: 2020-02-26 | L126: 24 | M126: INE363A01022
A127: ASIANPAINT | B127: EQ | C127: 1826 | D127: 1845 | E127: 1820 | F127: 1826.65 | G127: 1825 | H127: 1826.1 | I127: 1909619 | J127: 3499430672 | K127: 2020-02-26 | L127: 77766 | M127: INE021A01026
A128: ASIANTILES | B128: EQ | C128: 262 | D128: 262 | E128: 255 | F128: 259.75 | G128: 257.85 | H128: 258.55 | I128: 62932 | J128: 16272970.2 | K128: 2020-02-26 | L128: 2725 | M128: INE022I01019
A129: ASPINWALL | B129: EQ | C129: 135 | D129: 136.2 | E129: 133 | F129: 134.5 | G129: 134.5 | H129: 134.05 | I129: 1183 | J129: 159557.55 | K129: 2020-02-26 | L129: 17 | M129: INE991I01015
A130: ASTEC | B130: EQ | C130: 479.1 | D130: 491.55 | E130: 474.3 | F130: 475.7 | G130: 475.6 | H130: 477.9 | I130: 10971 | J130: 5279699.85 | K130: 2020-02-26 | L130: 497 | M130: INE563J01010
A131: ASTERDM | B131: EQ | C131: 165.95 | D131: 170 | E131: 165.35 | F131: 167.55 | G131: 168 | H131: 166.4 | I131: 73584 | J131: 12333005.45 | K131: 2020-02-26 | L131: 3146 | M131: INE914M01019
A132: ASTRAL | B132: EQ | C132: 1180 | D132: 1192.95 | E132: 1171.15 | F132: 1175.3 | G132: 1176.95 | H132: 1183.35 | I132: 71818 | J132: 84498444.55 | K132: 2020-02-26 | L132: 3826 | M132: INE006I01046
A133: ASTRAMICRO | B133: EQ | C133: 94.2 | D133: 95.75 | E133: 91.85 | F133: 92.65 | G133: 92.8 | H133: 95.9 | I133: 436574 | J133: 40922937.45 | K133: 2020-02-26 | L133: 3418 | M133: INE386C01029
A134: ASTRAZEN | B134: EQ | C134: 2749.9 | D134: 2760 | E134: 2650 | F134: 2662.15 | G134: 2669.9 | H134: 2728.65 | I134: 15886 | J134: 42830970.1 | K134: 2020-02-26 | L134: 2423 | M134: INE203A01020
A135: ASTRON | B135: EQ | C135: 38 | D135: 38.15 | E135: 37.6 | F135: 38 | G135: 38 | H135: 38.05 | I135: 29378 | J135: 1114541.65 | K135: 2020-02-26 | L135: 179 | M135: INE646X01014
A136: ATFL | B136: EQ | C136: 688.55 | D136: 694.95 | E136: 666.8 | F136: 672.1 | G136: 672 | H136: 684.6 | I136: 9653 | J136: 6544583.2 | K136: 2020-02-26 | L136: 612 | M136: INE209A01019
A137: ATLANTA | B137: EQ | C137: 5.3 | D137: 5.4 | E137: 5 | F137: 5.4 | G137: 5.4 | H137: 5.15 | I137: 20323 | J137: 107180.05 | K137: 2020-02-26 | L137: 59 | M137: INE285H01022
A138: ATLASCYCLE | B138: BE | C138: 46 | D138: 46.9 | E138: 44.7 | F138: 46.55 | G138: 46.65 | H138: 46.9 | I138: 289 | J138: 13045.15 | K138: 2020-02-26 | L138: 13 | M138: INE446A01025
A139: ATUL | B139: EQ | C139: 4904.45 | D139: 4970 | E139: 4845.05 | F139: 4890.45 | G139: 4891.3 | H139: 4904.45 | I139: 33592 | J139: 165210391.4 | K139: 2020-02-26 | L139: 5543 | M139: INE100A01010
A140: ATULAUTO | B140: EQ | C140: 242.45 | D140: 244.3 | E140: 233.5 | F140: 235.95 | G140: 237.8 | H140: 241.05 | I140: 21102 | J140: 5040918.5 | K140: 2020-02-26 | L140: 1527 | M140: INE951D01028
A141: AUBANK | B141: EQ | C141: 1155 | D141: 1201 | E141: 1019.1 | F141: 1178.95 | G141: 1179 | H141: 1158.1 | I141: 958992 | J141: 1129878958 | K141: 2020-02-26 | L141: 43192 | M141: INE949L01017
A142: AURIONPRO | B142: EQ | C142: 44.5 | D142: 44.8 | E142: 42.75 | F142: 43.7 | G142: 43.9 | H142: 44.35 | I142: 27285 | J142: 1189874.85 | K142: 2020-02-26 | L142: 540 | M142: INE132H01018
A143: AUROPHARMA | B143: EQ | C143: 507.4 | D143: 520 | E143: 504 | F143: 510 | G143: 510.2 | H143: 503.95 | I143: 7012760 | J143: 3578619959 | K143: 2020-02-26 | L143: 83121 | M143: INE406A01037
A144: AUSOMENT | B144: BE | C144: 38.3 | D144: 38.3 | E144: 37.15 | F144: 37.15 | G144: 37.9 | H144: 38.3 | I144: 1979 | J144: 74617.55 | K144: 2020-02-26 | L144: 10 | M144: INE218C01016
A145: AUTOAXLES | B145: EQ | C145: 730 | D145: 733.95 | E145: 716 | F145: 731.9 | G145: 733.9 | H145: 732.9 | I145: 10664 | J145: 7726001.6 | K145: 2020-02-26 | L145: 331 | M145: INE449A01011
A146: AUTOIND | B146: BE | C146: 22.35 | D146: 22.35 | E146: 21 | F146: 21.05 | G146: 21 | H146: 21.85 | I146: 1316 | J146: 27971.8 | K146: 2020-02-26 | L146: 18 | M146: INE718H01014
A147: AUTOLITIND | B147: EQ | C147: 20.6 | D147: 20.6 | E147: 18.25 | F147: 18.55 | G147: 18.5 | H147: 20.3 | I147: 11501 | J147: 217669.7 | K147: 2020-02-26 | L147: 233 | M147: INE448A01013
A148: AVADHSUGAR | B148: EQ | C148: 245.1 | D148: 254.35 | E148: 244.5 | F148: 247.25 | G148: 245.9 | H148: 251.65 | I148: 105568 | J148: 26209263.9 | K148: 2020-02-26 | L148: 2568 | M148: INE349W01017
A149: AVANTIFEED | B149: EQ | C149: 528.85 | D149: 533.95 | E149: 510 | F149: 514.5 | G149: 510.5 | H149: 534.05 | I149: 533848 | J149: 278289145.7 | K149: 2020-02-26 | L149: 20045 | M149: INE871C01038
A150: AVTNPL | B150: EQ | C150: 38.5 | D150: 40.4 | E150: 38.05 | F150: 38.65 | G150: 38.5 | H150: 39.35 | I150: 154335 | J150: 6064636.75 | K150: 2020-02-26 | L150: 1021 | M150: INE488D01021
A151: AXISBANK | B151: EQ | C151: 725.3 | D151: 735.75 | E151: 722 | F151: 729.4 | G151: 728.3 | H151: 728.75 | I151: 7136975 | J151: 5206673235 | K151: 2020-02-26 | L151: 115827 | M151: INE238A01034
A152: AXISCADES | B152: BE | C152: 56 | D152: 59.35 | E152: 54.4 | F152: 56.35 | G152: 57.5 | H152: 56.65 | I152: 6320 | J152: 363262.6 | K152: 2020-02-26 | L152: 111 | M152: INE555B01013
A153: AXISGOLD | B153: EQ | C153: 3732.5 | D153: 3773.95 | E153: 3695 | F153: 3736.1 | G153: 3739 | H153: 3736.65 | I153: 1400 | J153: 5235973.5 | K153: 2020-02-26 | L153: 231 | M153: INF846K01347
A154: AXISNIFTY | B154: EQ | C154: 1212.43 | D154: 1217.57 | E154: 1206 | F154: 1209.17 | G154: 1209.72 | H154: 1220.85 | I154: 180 | J154: 218654.07 | K154: 2020-02-26 | L154: 23 | M154: INF846K01ZL0
A155: AYMSYNTEX | B155: EQ | C155: 32.45 | D155: 32.5 | E155: 30.5 | F155: 32 | G155: 32 | H155: 31.4 | I155: 7931 | J155: 253460.55 | K155: 2020-02-26 | L155: 72 | M155: INE193B01039
A156: BAGFILMS | B156: BE | C156: 1.6 | D156: 1.7 | E156: 1.6 | F156: 1.65 | G156: 1.65 | H156: 1.65 | I156: 56813 | J156: 93091.2 | K156: 2020-02-26 | L156: 43 | M156: INE116D01028
A157: BAJAJ-AUTO | B157: EQ | C157: 2937 | D157: 2974 | E157: 2920 | F157: 2946.6 | G157: 2935 | H157: 2947.4 | I157: 445577 | J157: 1310862560 | K157: 2020-02-26 | L157: 25379 | M157: INE917I01010
A158: BAJAJCON | B158: EQ | C158: 189 | D158: 190 | E158: 184 | F158: 187.3 | G158: 190 | H158: 192.7 | I158: 286981 | J158: 53518777.8 | K158: 2020-02-26 | L158: 8623 | M158: INE933K01021
A159: BAJAJELEC | B159: EQ | C159: 445.9 | D159: 445.9 | E159: 431.3 | F159: 436.35 | G159: 440 | H159: 441.2 | I159: 184482 | J159: 80563790.05 | K159: 2020-02-26 | L159: 5417 | M159: INE193E01025
A160: BAJAJFINSV | B160: EQ | C160: 9455 | D160: 9494.9 | E160: 9360 | F160: 9387 | G160: 9377 | H160: 9525 | I160: 175517 | J160: 1655220328 | K160: 2020-02-26 | L160: 24442 | M160: INE918I01018
A161: BAJAJHIND | B161: EQ | C161: 5.8 | D161: 5.8 | E161: 5.65 | F161: 5.7 | G161: 5.7 | H161: 5.8 | I161: 766252 | J161: 4369954.6 | K161: 2020-02-26 | L161: 831 | M161: INE306A01021
A162: BAJAJHLDNG | B162: EQ | C162: 3648 | D162: 3648 | E162: 3465 | F162: 3483 | G162: 3494 | H162: 3642.25 | I162: 53905 | J162: 188709907 | K162: 2020-02-26 | L162: 6462 | M162: INE118A01012
A163: BAJFINANCE | B163: EQ | C163: 4815 | D163: 4837.75 | E163: 4767.25 | F163: 4810 | G163: 4814.55 | H163: 4825.95 | I163: 851346 | J163: 4094480687 | K163: 2020-02-26 | L163: 67774 | M163: INE296A01024
A164: BALAJITELE | B164: EQ | C164: 51.15 | D164: 52.3 | E164: 50.65 | F164: 50.75 | G164: 51 | H164: 52 | I164: 43436 | J164: 2229416.5 | K164: 2020-02-26 | L164: 491 | M164: INE794B01026
A165: BALAMINES | B165: EQ | C165: 429.5 | D165: 469.85 | E165: 422.75 | F165: 455.2 | G165: 464 | H165: 427.45 | I165: 357876 | J165: 163333946.7 | K165: 2020-02-26 | L165: 10576 | M165: INE050E01027
A166: BALAXI | B166: EQ | C166: 102.15 | D166: 114.5 | E166: 102.15 | F166: 112.55 | G166: 114.3 | H166: 112.45 | I166: 961 | J166: 107314.15 | K166: 2020-02-26 | L166: 230 | M166: INE618N01014
A167: BALKRISHNA | B167: EQ | C167: 16.25 | D167: 16.45 | E167: 15.4 | F167: 16.2 | G167: 16.2 | H167: 15.75 | I167: 2185 | J167: 35066.05 | K167: 2020-02-26 | L167: 34 | M167: INE875R01011
A168: BALKRISIND | B168: EQ | C168: 1200 | D168: 1210 | E168: 1181.15 | F168: 1186.3 | G168: 1188.5 | H168: 1212 | I168: 955428 | J168: 1137334012 | K168: 2020-02-26 | L168: 35259 | M168: INE787D01026
A169: BALLARPUR | B169: BE | C169: 0.5 | D169: 0.5 | E169: 0.45 | F169: 0.45 | G169: 0.45 | H169: 0.5 | I169: 413756 | J169: 190429.6 | K169: 2020-02-26 | L169: 56 | M169: INE294A01037
A170: BALMLAWRIE | B170: EQ | C170: 108 | D170: 108 | E170: 105.7 | F170: 106 | G170: 105.8 | H170: 108.45 | I170: 106505 | J170: 11385992.8 | K170: 2020-02-26 | L170: 2103 | M170: INE164A01016
A171: BALPHARMA | B171: EQ | C171: 37.05 | D171: 39 | E171: 35.1 | F171: 37.7 | G171: 37.55 | H171: 37 | I171: 9964 | J171: 369580.95 | K171: 2020-02-26 | L171: 309 | M171: INE083D01012
A172: BALRAMCHIN | B172: EQ | C172: 158 | D172: 158 | E172: 150.85 | F172: 151.6 | G172: 151.45 | H172: 159.35 | I172: 1033308 | J172: 159337660.9 | K172: 2020-02-26 | L172: 12754 | M172: INE119A01028
A173: BANARBEADS | B173: EQ | C173: 33.3 | D173: 36.4 | E173: 31 | F173: 33.25 | G173: 33.2 | H173: 33.4 | I173: 2599 | J173: 85861.6 | K173: 2020-02-26 | L173: 49 | M173: INE655B01011
A174: BANARISUG | B174: EQ | C174: 1399 | D174: 1400.05 | E174: 1350 | F174: 1369.2 | G174: 1350 | H174: 1395.7 | I174: 601 | J174: 833570.8 | K174: 2020-02-26 | L174: 130 | M174: INE459A01010
A175: BANCOINDIA | B175: EQ | C175: 92.6 | D175: 93.4 | E175: 91.05 | F175: 91.85 | G175: 91.3 | H175: 92.6 | I175: 17644 | J175: 1625346.4 | K175: 2020-02-26 | L175: 422 | M175: INE213C01025
A176: BANDHANBNK | B176: EQ | C176: 415 | D176: 423 | E176: 391.3 | F176: 394.1 | G176: 392.5 | H176: 403.9 | I176: 7223093 | J176: 2932243205 | K176: 2020-02-26 | L176: 151089 | M176: INE545U01014
A177: BANG | B177: EQ | C177: 18 | D177: 18.9 | E177: 18 | F177: 18.4 | G177: 18.35 | H177: 18.5 | I177: 2945 | J177: 54531 | K177: 2020-02-26 | L177: 22 | M177: INE863I01016
A178: BANKBARODA | B178: EQ | C178: 79.25 | D178: 81.05 | E178: 79.05 | F178: 80.2 | G178: 80.35 | H178: 80.05 | I178: 15584386 | J178: 1249208052 | K178: 2020-02-26 | L178: 29435 | M178: INE028A01039
A179: BANKBEES | B179: EQ | C179: 309.99 | D179: 311.4 | E179: 307.5 | F179: 309.92 | G179: 310.5 | H179: 310.54 | I179: 47536 | J179: 14697025.09 | K179: 2020-02-26 | L179: 2187 | M179: INF204KB15I9
A180: BANKINDIA | B180: EQ | C180: 57.9 | D180: 58.05 | E180: 56.55 | F180: 56.9 | G180: 56.7 | H180: 58.35 | I180: 1283896 | J180: 73684036.05 | K180: 2020-02-26 | L180: 7988 | M180: INE084A01016
A181: BANSWRAS | B181: BE | C181: 138.15 | D181: 138.15 | E181: 128.8 | F181: 130.35 | G181: 132 | H181: 134.9 | I181: 7464 | J181: 982886.6 | K181: 2020-02-26 | L181: 86 | M181: INE629D01012
A182: BARTRONICS | B182: BE | C182: 1 | D182: 1.05 | E182: 1 | F182: 1 | G182: 1 | H182: 1 | I182: 1566 | J182: 1627.4 | K182: 2020-02-26 | L182: 11 | M182: INE855F01034
A183: BASF | B183: EQ | C183: 814.35 | D183: 954 | E183: 809.15 | F183: 940.95 | G183: 936 | H183: 824.35 | I183: 436542 | J183: 396420812.5 | K183: 2020-02-26 | L183: 25478 | M183: INE373A01013
A184: BASML | B184: EQ | C184: 113 | D184: 113 | E184: 110 | F184: 110.2 | G184: 110 | H184: 109.35 | I184: 476 | J184: 52721.45 | K184: 2020-02-26 | L184: 21 | M184: INE186H01014
A185: BATAINDIA | B185: EQ | C185: 1710 | D185: 1711.9 | E185: 1667.65 | F185: 1676.85 | G185: 1675.6 | H185: 1719.6 | I185: 744063 | J185: 1258422107 | K185: 2020-02-26 | L185: 28303 | M185: INE176A01028
A186: BAYERCROP | B186: EQ | C186: 4455 | D186: 4560 | E186: 4430 | F186: 4457.7 | G186: 4463.35 | H186: 4500.2 | I186: 37471 | J186: 168335514.7 | K186: 2020-02-26 | L186: 2661 | M186: INE462A01022
A187: BBL | B187: EQ | C187: 791.1 | D187: 814.95 | E187: 786.05 | F187: 792.6 | G187: 786.2 | H187: 798.05 | I187: 6087 | J187: 4860971.85 | K187: 2020-02-26 | L187: 891 | M187: INE464A01028
A188: BBTC | B188: EQ | C188: 1068.55 | D188: 1109.8 | E188: 1055.1 | F188: 1099.45 | G188: 1102.7 | H188: 1076.55 | I188: 70895 | J188: 77659409.15 | K188: 2020-02-26 | L188: 4429 | M188: INE050A01025
A189: BCG | B189: BE | C189: 4.85 | D189: 5 | E189: 4.75 | F189: 4.85 | G189: 4.9 | H189: 5 | I189: 225003 | J189: 1087889.2 | K189: 2020-02-26 | L189: 182 | M189: INE425B01027
A190: BCP | B190: BE | C190: 19.65 | D190: 19.65 | E190: 18.1 | F190: 18.9 | G190: 19.1 | H190: 19 | I190: 3237 | J190: 61285.65 | K190: 2020-02-26 | L190: 26 | M190: INE905P01028
A191: BDL | B191: EQ | C191: 284.65 | D191: 287.35 | E191: 278 | F191: 280.15 | G191: 279.3 | H191: 283.85 | I191: 43911 | J191: 12412923.9 | K191: 2020-02-26 | L191: 2149 | M191: INE171Z01018
A192: BEARDSELL | B192: BE | C192: 6.8 | D192: 7.3 | E192: 6.8 | F192: 6.8 | G192: 6.8 | H192: 7.15 | I192: 1891 | J192: 12944.3 | K192: 2020-02-26 | L192: 9 | M192: INE520H01022
A193: BEDMUTHA | B193: BE | C193: 13.5 | D193: 14.15 | E193: 13.45 | F193: 13.6 | G193: 13.95 | H193: 13.5 | I193: 3093 | J193: 41959.25 | K193: 2020-02-26 | L193: 15 | M193: INE844K01012
A194: BEL | B194: EQ | C194: 82.1 | D194: 82.7 | E194: 79.3 | F194: 80.3 | G194: 80.15 | H194: 82.5 | I194: 6512548 | J194: 527769013.1 | K194: 2020-02-26 | L194: 24420 | M194: INE263A01024
A195: BEML | B195: EQ | C195: 843 | D195: 845 | E195: 817 | F195: 820.35 | G195: 822 | H195: 850.55 | I195: 229225 | J195: 189451010.5 | K195: 2020-02-26 | L195: 8512 | M195: INE258A01016
A196: BEPL | B196: EQ | C196: 42.5 | D196: 46.5 | E196: 42.3 | F196: 43.7 | G196: 43.65 | H196: 42.55 | I196: 875963 | J196: 39224757.15 | K196: 2020-02-26 | L196: 6968 | M196: INE922A01025
A197: BERGEPAINT | B197: EQ | C197: 570 | D197: 573.35 | E197: 565.05 | F197: 567 | G197: 566 | H197: 569.1 | I197: 792167 | J197: 451242231.5 | K197: 2020-02-26 | L197: 16965 | M197: INE463A01038
A198: BFINVEST | B198: EQ | C198: 319 | D198: 324.1 | E198: 315.3 | F198: 319.75 | G198: 320 | H198: 319.15 | I198: 39393 | J198: 12577888.5 | K198: 2020-02-26 | L198: 1232 | M198: INE878K01010
A199: BFUTILITIE | B199: EQ | C199: 296 | D199: 316.5 | E199: 290.6 | F199: 307.45 | G199: 308.1 | H199: 298.3 | I199: 260555 | J199: 79665914.45 | K199: 2020-02-26 | L199: 7008 | M199: INE243D01012
A200: BGLOBAL | B200: BE | C200: 1.3 | D200: 1.3 | E200: 1.3 | F200: 1.3 | G200: 1.3 | H200: 1.3 | I200: 10775 | J200: 14007.5 | K200: 2020-02-26 | L200: 6 | M200: INE224M01013
... 1488 more rows

Sheet Sheet1 (hidden)

Sheet Sheet3 (hidden)

Sheet Sheet4 (hidden)

Sheet Sheet5 (hidden)
